Organisation Name,Directorate,Supplier Name,Supplier ID,Expense type,Best Value Accounting Code of Practice,Document/Invoice number,Clearing/Payment date,Invoice Amount
Buckinghamshire Council,Communities,COMBINED OFFICE INTERIORS LTD,1000001,General Repairs & Maintenance,Premises,4101034654,15/03/2023,585.00
Buckinghamshire Council,Children's Services,COMBINED OFFICE INTERIORS LTD,1000001,Activities & General Recreation,Supplies & Services,4101035626,24/03/2023,13432.00
Buckinghamshire Council,Children's Services,COMBINED OFFICE INTERIORS LTD,1000001,Activities & General Recreation,Supplies & Services,4101035626,24/03/2023,-10812.00
Buckinghamshire Council,Children's Services,COMBINED OFFICE INTERIORS LTD,1000001,Activities & General Recreation,Supplies & Services,4101035666,24/03/2023,5150.00
Buckinghamshire Council,Children's Services,COMBINED OFFICE INTERIORS LTD,1000001,Activities & General Recreation,Supplies & Services,4101035667,24/03/2023,2530.00
Buckinghamshire Council,"Planning, Growth & Sustainability",COMBINED OFFICE INTERIORS LTD,1000001,Furniture,Supplies & Services,4101035754,24/03/2023,2400.00
Buckinghamshire Council,Adults and Health,Hertfordshire Supplies,1000002,Cleaning & Domestic Equipment,Supplies & Services,4500121724,24/03/2023,693.22
Buckinghamshire Council,Adults and Health,Hertfordshire Supplies,1000002,Other Equipment and Materials,Supplies & Services,4500121801,24/03/2023,516.54
Buckinghamshire Council,"Planning, Growth & Sustainability",Hertfordshire Supplies,1000002,Cleaning Materials,Premises,4500121926,24/03/2023,590.63
Buckinghamshire Council,Resources,LYRECO UK LTD,1000008,Printing & Stationery,Supplies & Services,4101039005,24/03/2023,2775.00
Buckinghamshire Council,Adults and Health,LYRECO UK LTD,1000008,Stationery & Office Supplies,Supplies & Services,4800092162,23/03/2023,27.74
Buckinghamshire Council,Adults and Health,LYRECO UK LTD,1000008,Stationery & Office Supplies,Supplies & Services,4800092162,23/03/2023,45.00
Buckinghamshire Council,Adults and Health,LYRECO UK LTD,1000008,Stationery & Office Supplies,Supplies & Services,4800092162,23/03/2023,176.50
Buckinghamshire Council,Adults and Health,LYRECO UK LTD,1000008,Stationery & Office Supplies,Supplies & Services,4800092162,23/03/2023,358.10
Buckinghamshire Council,Children's Services,LYRECO UK LTD,1000008,Stationery & Office Supplies,Supplies & Services,4800092293,23/03/2023,27.15
Buckinghamshire Council,Children's Services,LYRECO UK LTD,1000008,Stationery & Office Supplies,Supplies & Services,4800092293,23/03/2023,50.30
Buckinghamshire Council,Children's Services,LYRECO UK LTD,1000008,Stationery & Office Supplies,Supplies & Services,4800092293,23/03/2023,874.75
Buckinghamshire Council,Children's Services,LYRECO UK LTD,1000008,Stationery & Office Supplies,Supplies & Services,4800092293,23/03/2023,12.00
Buckinghamshire Council,Children's Services,LYRECO UK LTD,1000008,Stationery & Office Supplies,Supplies & Services,4800092293,23/03/2023,15.00
Buckinghamshire Council,Children's Services,LYRECO UK LTD,1000008,Stationery & Office Supplies,Supplies & Services,4800092293,23/03/2023,14.40
Buckinghamshire Council,Communities,Arriva The Shires Ltd,1000010,Bus Stops and Infrastructure,Supplies & Services,4101038541,22/03/2023,3693.00
Buckinghamshire Council,Communities,Arriva The Shires Ltd,1000010,National Concessionary Fares Scheme,Third Party Payments,4101038546,22/03/2023,418613.35
Buckinghamshire Council,Communities,Arriva The Shires Ltd,1000010,Subsidised Bus Services - Core,Third Party Payments,4101035961,08/03/2023,4451.26
Buckinghamshire Council,Communities,Arriva The Shires Ltd,1000010,Subsidised Bus Services - Core,Third Party Payments,4101036882,10/03/2023,15510.62
Buckinghamshire Council,Communities,Arriva The Shires Ltd,1000010,Travel Choice Scheme,Transfer Payments,4101037322,15/03/2023,948.50
Buckinghamshire Council,Adults and Health,RIVERSIDE ECHG,1000014,Extra Care,Transfer Payments,4101039012,24/03/2023,13602.41
Buckinghamshire Council,Adults and Health,RIVERSIDE ECHG,1000014,SP Legacy Care/Counsel - Gross,Third Party Payments,4101035471,03/03/2023,11018.00
Buckinghamshire Council,Adults and Health,RIVERSIDE ECHG,1000014,SP Legacy Care/Counsel - Gross,Third Party Payments,4101035527,03/03/2023,16876.25
Buckinghamshire Council,Children's Services,Foster Care Associates Ltd,1000015,External Fostering Payments,Third Party Payments,7003009358,15/03/2023,3956.40
Buckinghamshire Council,Children's Services,Foster Care Associates Ltd,1000015,External Fostering Payments,Third Party Payments,7003009358,15/03/2023,3440.64
Buckinghamshire Council,Children's Services,Foster Care Associates Ltd,1000015,External Fostering Payments,Third Party Payments,7003009358,15/03/2023,3378.60
Buckinghamshire Council,Children's Services,Foster Care Associates Ltd,1000015,External Fostering Payments,Third Party Payments,7003009358,15/03/2023,3378.60
Buckinghamshire Council,Children's Services,Foster Care Associates Ltd,1000015,External Fostering Payments,Third Party Payments,7003009358,15/03/2023,3956.00
Buckinghamshire Council,Children's Services,Foster Care Associates Ltd,1000015,External Fostering Payments,Third Party Payments,7003009358,15/03/2023,3440.64
Buckinghamshire Council,Children's Services,Foster Care Associates Ltd,1000015,External Fostering Payments,Third Party Payments,7003009358,15/03/2023,3275.72
Buckinghamshire Council,Children's Services,Foster Care Associates Ltd,1000015,External Fostering Payments,Third Party Payments,7003009358,15/03/2023,3600.52
Buckinghamshire Council,Children's Services,Foster Care Associates Ltd,1000015,External Fostering Payments,Third Party Payments,7003009358,15/03/2023,3211.88
Buckinghamshire Council,Children's Services,Foster Care Associates Ltd,1000015,External Fostering Payments,Third Party Payments,7003009358,15/03/2023,3378.20
Buckinghamshire Council,Children's Services,Foster Care Associates Ltd,1000015,External Fostering Payments,Third Party Payments,7003009358,15/03/2023,3052.00
Buckinghamshire Council,Children's Services,Foster Care Associates Ltd,1000015,Sec 20/31: Financial Assistance One Off,Transfer Payments,4101039183,24/03/2023,700.00
Buckinghamshire Council,Children's Services,FOLKSPUR FLOORING LTD,1000021,Construction - Building Work,Capital - Expenditure -Controllable,7003014186,24/03/2023,3494.00
Buckinghamshire Council,Children's Services,FOLKSPUR FLOORING LTD,1000021,Repair and Maintenance of Equipment,Supplies & Services,4101037581,17/03/2023,5721.00
Buckinghamshire Council,Children's Services,FOLKSPUR FLOORING LTD,1000021,General Repairs & Maintenance,Premises,4101037858,17/03/2023,17091.00
Buckinghamshire Council,"Planning, Growth & Sustainability",FOLKSPUR FLOORING LTD,1000021,General Repairs & Maintenance,Premises,7003011357,22/03/2023,1996.00
Buckinghamshire Council,Children's Services,FOLKSPUR FLOORING LTD,1000021,Repair and Maintenance of Equipment,Supplies & Services,4101035363,03/03/2023,5480.00
Buckinghamshire Council,"Planning, Growth & Sustainability",TENCER LIMITED,1000023,Urgent Repairs & Maintenance,Premises,7003014340,29/03/2023,983.86
Buckinghamshire Council,"Planning, Growth & Sustainability",TENCER LIMITED,1000023,General Repairs & Maintenance,Premises,7003014371,29/03/2023,599.75
Buckinghamshire Council,"Planning, Growth & Sustainability",TENCER LIMITED,1000023,Urgent Repairs & Maintenance,Premises,7003009810,22/03/2023,793.75
Buckinghamshire Council,"Planning, Growth & Sustainability",TENCER LIMITED,1000023,Urgent Repairs & Maintenance,Premises,7003009812,22/03/2023,620.00
Buckinghamshire Council,"Planning, Growth & Sustainability",TENCER LIMITED,1000023,Urgent Repairs & Maintenance,Premises,7003009867,22/03/2023,2032.26
Buckinghamshire Council,"Planning, Growth & Sustainability",TENCER LIMITED,1000023,Urgent Repairs & Maintenance,Premises,7003009877,22/03/2023,540.74
Buckinghamshire Council,"Planning, Growth & Sustainability",TENCER LIMITED,1000023,Urgent Repairs & Maintenance,Premises,7003009884,22/03/2023,1106.64
Buckinghamshire Council,"Planning, Growth & Sustainability",TENCER LIMITED,1000023,Urgent Repairs & Maintenance,Premises,7003009885,22/03/2023,1283.87
Buckinghamshire Council,"Planning, Growth & Sustainability",TENCER LIMITED,1000023,Urgent Repairs & Maintenance,Premises,7003009887,22/03/2023,732.20
Buckinghamshire Council,Communities,TENCER LIMITED,1000023,General Repairs & Maintenance,Premises,7003011289,22/03/2023,614.94
Buckinghamshire Council,"Planning, Growth & Sustainability",TENCER LIMITED,1000023,Urgent Repairs & Maintenance,Premises,7003011376,22/03/2023,3148.00
Buckinghamshire Council,"Planning, Growth & Sustainability",TENCER LIMITED,1000023,Urgent Repairs & Maintenance,Premises,7003011378,22/03/2023,749.58
Buckinghamshire Council,"Planning, Growth & Sustainability",TENCER LIMITED,1000023,Urgent Repairs & Maintenance,Premises,7003011379,22/03/2023,1397.60
Buckinghamshire Council,"Planning, Growth & Sustainability",TENCER LIMITED,1000023,Urgent Repairs & Maintenance,Premises,7003011417,22/03/2023,818.01
Buckinghamshire Council,"Planning, Growth & Sustainability",TENCER LIMITED,1000023,Urgent Repairs & Maintenance,Premises,7003011281,17/03/2023,7615.45
Buckinghamshire Council,"Planning, Growth & Sustainability",TENCER LIMITED,1000023,Urgent Repairs & Maintenance,Premises,7003011300,24/03/2023,821.35
Buckinghamshire Council,"Planning, Growth & Sustainability",TENCER LIMITED,1000023,Urgent Repairs & Maintenance,Premises,7003014221,24/03/2023,789.30
Buckinghamshire Council,"Planning, Growth & Sustainability",TENCER LIMITED,1000023,Buy Back Contracts,Premises,7003014532,24/03/2023,520.00
Buckinghamshire Council,"Planning, Growth & Sustainability",TENCER LIMITED,1000023,Service Contracts,Premises,7003014722,24/03/2023,608.49
Buckinghamshire Council,"Planning, Growth & Sustainability",TENCER LIMITED,1000023,Service Contracts,Premises,7003014749,24/03/2023,1154.46
Buckinghamshire Council,"Planning, Growth & Sustainability",TENCER LIMITED,1000023,Service Contracts,Premises,7003014776,24/03/2023,647.57
Buckinghamshire Council,"Planning, Growth & Sustainability",TENCER LIMITED,1000023,Service Contracts,Premises,7003014777,24/03/2023,641.99
Buckinghamshire Council,"Planning, Growth & Sustainability",TENCER LIMITED,1000023,Service Contracts,Premises,7003014790,24/03/2023,600.00
Buckinghamshire Council,"Planning, Growth & Sustainability",TENCER LIMITED,1000023,Buy Back Contracts,Premises,7003014810,24/03/2023,641.99
Buckinghamshire Council,"Planning, Growth & Sustainability",TENCER LIMITED,1000023,Buy Back Contracts,Premises,7003014990,24/03/2023,641.99
Buckinghamshire Council,"Planning, Growth & Sustainability",TENCER LIMITED,1000023,Buy Back Contracts,Premises,7003014991,24/03/2023,2065.53
Buckinghamshire Council,"Planning, Growth & Sustainability",TENCER LIMITED,1000023,Service Contracts,Premises,7003006783,10/03/2023,520.00
Buckinghamshire Council,"Planning, Growth & Sustainability",TENCER LIMITED,1000023,Service Contracts,Premises,7003006784,10/03/2023,520.00
Buckinghamshire Council,"Planning, Growth & Sustainability",TENCER LIMITED,1000023,Buy Back Contracts,Premises,7003006963,10/03/2023,520.00
Buckinghamshire Council,"Planning, Growth & Sustainability",TENCER LIMITED,1000023,Buy Back Contracts,Premises,7003006972,10/03/2023,520.00
Buckinghamshire Council,"Planning, Growth & Sustainability",TENCER LIMITED,1000023,Buy Back Contracts,Premises,7003007873,10/03/2023,520.00
Buckinghamshire Council,"Planning, Growth & Sustainability",TENCER LIMITED,1000023,Urgent Repairs & Maintenance,Premises,7003000615,03/03/2023,783.40
Buckinghamshire Council,"Planning, Growth & Sustainability",TENCER LIMITED,1000023,Urgent Repairs & Maintenance,Premises,7003000623,03/03/2023,2010.57
Buckinghamshire Council,"Planning, Growth & Sustainability",TENCER LIMITED,1000023,General Repairs & Maintenance,Premises,7003000624,03/03/2023,602.06
Buckinghamshire Council,"Planning, Growth & Sustainability",TENCER LIMITED,1000023,Urgent Repairs & Maintenance,Premises,7003000625,03/03/2023,584.38
Buckinghamshire Council,"Planning, Growth & Sustainability",TENCER LIMITED,1000023,Urgent Repairs & Maintenance,Premises,7003003065,03/03/2023,809.85
Buckinghamshire Council,"Planning, Growth & Sustainability",TENCER LIMITED,1000023,Urgent Repairs & Maintenance,Premises,7003003066,08/03/2023,1496.12
Buckinghamshire Council,"Planning, Growth & Sustainability",TENCER LIMITED,1000023,Urgent Repairs & Maintenance,Premises,7003003067,08/03/2023,567.25
Buckinghamshire Council,"Planning, Growth & Sustainability",TENCER LIMITED,1000023,Urgent Repairs & Maintenance,Premises,7003003071,08/03/2023,1968.65
Buckinghamshire Council,"Planning, Growth & Sustainability",TENCER LIMITED,1000023,Urgent Repairs & Maintenance,Premises,7003003072,08/03/2023,583.94
Buckinghamshire Council,"Planning, Growth & Sustainability",TENCER LIMITED,1000023,Urgent Repairs & Maintenance,Premises,7003003118,08/03/2023,812.07
Buckinghamshire Council,"Planning, Growth & Sustainability",TENCER LIMITED,1000023,Urgent Repairs & Maintenance,Premises,7003003119,08/03/2023,638.87
Buckinghamshire Council,"Planning, Growth & Sustainability",TENCER LIMITED,1000023,Urgent Repairs & Maintenance,Premises,7003003172,08/03/2023,2919.29
Buckinghamshire Council,"Planning, Growth & Sustainability",TENCER LIMITED,1000023,Urgent Repairs & Maintenance,Premises,7003003196,08/03/2023,855.75
Buckinghamshire Council,"Planning, Growth & Sustainability",TENCER LIMITED,1000023,Urgent Repairs & Maintenance,Premises,7003003197,08/03/2023,876.06
Buckinghamshire Council,"Planning, Growth & Sustainability",TENCER LIMITED,1000023,Urgent Repairs & Maintenance,Premises,7003003199,08/03/2023,525.94
Buckinghamshire Council,"Planning, Growth & Sustainability",TENCER LIMITED,1000023,Urgent Repairs & Maintenance,Premises,7003003201,08/03/2023,732.20
Buckinghamshire Council,"Planning, Growth & Sustainability",TENCER LIMITED,1000023,Urgent Repairs & Maintenance,Premises,7003003214,08/03/2023,553.95
Buckinghamshire Council,"Planning, Growth & Sustainability",TENCER LIMITED,1000023,General Repairs & Maintenance,Premises,7003003218,08/03/2023,531.11
Buckinghamshire Council,"Planning, Growth & Sustainability",TENCER LIMITED,1000023,Urgent Repairs & Maintenance,Premises,7003003222,08/03/2023,552.35
Buckinghamshire Council,"Planning, Growth & Sustainability",TENCER LIMITED,1000023,Buy Back Contracts,Premises,7003003396,08/03/2023,893.20
Buckinghamshire Council,"Planning, Growth & Sustainability",TENCER LIMITED,1000023,Urgent Repairs & Maintenance,Premises,7003004163,08/03/2023,590.00
Buckinghamshire Council,"Planning, Growth & Sustainability",TENCER LIMITED,1000023,Buy Back Contracts,Premises,7003004252,08/03/2023,641.99
Buckinghamshire Council,"Planning, Growth & Sustainability",TENCER LIMITED,1000023,General Repairs & Maintenance,Premises,7003004312,08/03/2023,949.01
Buckinghamshire Council,"Planning, Growth & Sustainability",TENCER LIMITED,1000023,General Repairs & Maintenance,Premises,7003004321,08/03/2023,1051.60
Buckinghamshire Council,"Planning, Growth & Sustainability",TENCER LIMITED,1000023,General Repairs & Maintenance,Premises,7003004322,08/03/2023,1051.60
Buckinghamshire Council,"Planning, Growth & Sustainability",TENCER LIMITED,1000023,General Repairs & Maintenance,Premises,7003004323,08/03/2023,949.01
Buckinghamshire Council,"Planning, Growth & Sustainability",TENCER LIMITED,1000023,General Repairs & Maintenance,Premises,7003005019,08/03/2023,858.41
Buckinghamshire Council,"Planning, Growth & Sustainability",TENCER LIMITED,1000023,Buy Back Contracts,Premises,7003005276,08/03/2023,641.99
Buckinghamshire Council,"Planning, Growth & Sustainability",TENCER LIMITED,1000023,General Repairs & Maintenance,Premises,7003005704,08/03/2023,580.00
Buckinghamshire Council,"Planning, Growth & Sustainability",TENCER LIMITED,1000023,Urgent Repairs & Maintenance,Premises,7002997976,01/03/2023,2507.00
Buckinghamshire Council,"Planning, Growth & Sustainability",TENCER LIMITED,1000023,Urgent Repairs & Maintenance,Premises,7002997977,01/03/2023,885.92
Buckinghamshire Council,"Planning, Growth & Sustainability",TENCER LIMITED,1000023,General Repairs & Maintenance,Premises,7002997997,01/03/2023,924.50
Buckinghamshire Council,"Planning, Growth & Sustainability",TENCER LIMITED,1000023,Urgent Repairs & Maintenance,Premises,7002997998,01/03/2023,676.00
Buckinghamshire Council,"Planning, Growth & Sustainability",TENCER LIMITED,1000023,Buy Back BCC,Premises,7002998006,01/03/2023,870.00
Buckinghamshire Council,"Planning, Growth & Sustainability",TENCER LIMITED,1000023,Urgent Repairs & Maintenance,Premises,7002998011,01/03/2023,909.64
Buckinghamshire Council,Children's Services,TENCER LIMITED,1000023,Construction - Building Work,Capital - Expenditure -Controllable,7002998021,01/03/2023,2538.45
Buckinghamshire Council,Adults and Health,MANDEVILLE CARE SERVICES LTD,1000027,Nurs-Perm EMI Other - Exp,Third Party Payments,7003008827,15/03/2023,5600.00
Buckinghamshire Council,Adults and Health,MANDEVILLE CARE SERVICES LTD,1000027,Nursing care-permanent -other,Third Party Payments,7003008827,15/03/2023,4600.00
Buckinghamshire Council,Adults and Health,MANDEVILLE CARE SERVICES LTD,1000027,Nursing care-permanent -other,Third Party Payments,7003008827,15/03/2023,4600.00
Buckinghamshire Council,Adults and Health,MANDEVILLE CARE SERVICES LTD,1000027,Nursing care-permanent -other,Third Party Payments,7003008827,15/03/2023,4600.00
Buckinghamshire Council,Adults and Health,MANDEVILLE CARE SERVICES LTD,1000027,Res care-permanent - other,Third Party Payments,7003008827,15/03/2023,4600.00
Buckinghamshire Council,Adults and Health,MANDEVILLE CARE SERVICES LTD,1000027,Nursing care-permanent -other,Third Party Payments,7003008827,15/03/2023,-1200.00
Buckinghamshire Council,Adults and Health,MANDEVILLE CARE SERVICES LTD,1000027,Nursing care-permanent -other,Controllable Customer & Client Receipts,7003008827,15/03/2023,-438.80
Buckinghamshire Council,Adults and Health,MANDEVILLE CARE SERVICES LTD,1000027,Nursing care-permanent -other,Controllable Customer & Client Receipts,7003008827,15/03/2023,-730.36
Buckinghamshire Council,Adults and Health,MANDEVILLE CARE SERVICES LTD,1000027,Nursing care-permanent -other,Controllable Customer & Client Receipts,7003008827,15/03/2023,-1368.44
Buckinghamshire Council,Adults and Health,MANDEVILLE CARE SERVICES LTD,1000027,Res care-permanent - other,Controllable Customer & Client Receipts,7003008827,15/03/2023,-1312.68
Buckinghamshire Council,Adults and Health,MANDEVILLE CARE SERVICES LTD,1000027,Nursing care-permanent -other,Controllable Customer & Client Receipts,7003008827,15/03/2023,-246.44
Buckinghamshire Council,Adults and Health,MANDEVILLE CARE SERVICES LTD,1000027,Nursing care-permanent -other,Controllable Customer & Client Receipts,7003008827,15/03/2023,-530.80
Buckinghamshire Council,Adults and Health,MANDEVILLE CARE SERVICES LTD,1000027,Nursing care-permanent -other,Controllable Customer & Client Receipts,7003008827,15/03/2023,310.03
Buckinghamshire Council,Children's Services,FOSTERING NETWORK,1000036,Support for Foster Carers,Third Party Payments,4101033639,15/03/2023,600.00
Buckinghamshire Council,Communities,REDACTED,1000114,Supply of consultancy services,Supplies & Services,4101037856,17/03/2023,4660.80
Buckinghamshire Council,Communities,REDACTED,1000114,Professional Services (non curriculum) -,Supplies & Services,4101038079,17/03/2023,24948.80
Buckinghamshire Council,Deputy Chief Executive,REDACTED,1000114,Legal Fees,Supplies & Services,4101039206,24/03/2023,10603.80
Buckinghamshire Council,Deputy Chief Executive,REDACTED,1000114,Legal Fees,Supplies & Services,4101038197,22/03/2023,4967.50
Buckinghamshire Council,Deputy Chief Executive,REDACTED,1000114,Legal Fees,Supplies & Services,4101038198,22/03/2023,2582.50
Buckinghamshire Council,Communities,REDACTED,1000114,Supply of consultancy services,Supplies & Services,4101038343,22/03/2023,1276.90
Buckinghamshire Council,Deputy Chief Executive,REDACTED,1000114,Legal Fees,Supplies & Services,4101040042,29/03/2023,1500.00
Buckinghamshire Council,Deputy Chief Executive,REDACTED,1000114,Legal Fees,Supplies & Services,4101040562,31/03/2023,3000.00
Buckinghamshire Council,Deputy Chief Executive,REDACTED,1000114,Legal Fees,Supplies & Services,4101040902,31/03/2023,3000.00
Buckinghamshire Council,Children's Services,FOSTERPLUS LTD,1000125,External Fostering Payments,Third Party Payments,7003009359,15/03/2023,3345.44
Buckinghamshire Council,Children's Services,A W R PICKERSGILL LIMITED,1000139,General Repairs & Maintenance,Premises,4101040392,31/03/2023,724.00
Buckinghamshire Council,Children's Services,A W R PICKERSGILL LIMITED,1000139,General Repairs & Maintenance,Premises,4101028423,03/03/2023,5224.00
Buckinghamshire Council,Children's Services,A W R PICKERSGILL LIMITED,1000139,General Repairs & Maintenance,Premises,4101028423,03/03/2023,20.00
Buckinghamshire Council,Children's Services,A W R PICKERSGILL LIMITED,1000139,General Repairs & Maintenance,Premises,4101036402,08/03/2023,4326.00
Buckinghamshire Council,Adults and Health,ABBEYFIELD BEACONSFIELD SOCIETY,1000144,Res care-permanent - other,Third Party Payments,7003008828,15/03/2023,1209.52
Buckinghamshire Council,Adults and Health,ABBEYFIELD BEACONSFIELD SOCIETY,1000144,Res care-permanent - other,Third Party Payments,7003008828,15/03/2023,3048.80
Buckinghamshire Council,Adults and Health,ABBEYFIELD BEACONSFIELD SOCIETY,1000144,Res care-permanent - other,Third Party Payments,7003008828,15/03/2023,4982.04
Buckinghamshire Council,Adults and Health,ABBEYFIELD BEACONSFIELD SOCIETY,1000144,Res care-permanent - other,Controllable Customer & Client Receipts,7003008828,15/03/2023,-2319.56
Buckinghamshire Council,Adults and Health,ABBEYFIELD BEACONSFIELD SOCIETY,1000144,Res care-permanent - other,Controllable Customer & Client Receipts,7003008828,15/03/2023,-914.68
Buckinghamshire Council,Adults and Health,ABBEYFIELD BEACONSFIELD SOCIETY,1000144,Res care-permanent - other,Controllable Customer & Client Receipts,7003008828,15/03/2023,-1209.52
Buckinghamshire Council,Adults and Health,ABBEYFIELD BEACONSFIELD SOCIETY,1000144,Res care-permanent - other,Controllable Customer & Client Receipts,7003008828,15/03/2023,-1876.92
Buckinghamshire Council,Adults and Health,BURNHAM LODGE CARE LTD,1000159,Nurs-Perm EMI Other - Exp,Third Party Payments,7003008829,15/03/2023,5042.88
Buckinghamshire Council,Adults and Health,BURNHAM LODGE CARE LTD,1000159,Nurs-Perm EMI Other - Exp,Third Party Payments,7003008829,15/03/2023,4944.00
Buckinghamshire Council,Adults and Health,BURNHAM LODGE CARE LTD,1000159,Nursing care-permanent -other,Third Party Payments,7003008829,15/03/2023,5200.00
Buckinghamshire Council,Adults and Health,BURNHAM LODGE CARE LTD,1000159,Nursing care-permanent -other,Third Party Payments,7003008829,15/03/2023,5042.88
Buckinghamshire Council,Adults and Health,BURNHAM LODGE CARE LTD,1000159,Nursing care-permanent -other,Third Party Payments,7003008829,15/03/2023,5042.88
Buckinghamshire Council,Adults and Health,BURNHAM LODGE CARE LTD,1000159,Nursing care-permanent -other,Third Party Payments,7003008829,15/03/2023,4202.40
Buckinghamshire Council,Adults and Health,BURNHAM LODGE CARE LTD,1000159,Res-Perm EMI-Other - Exp,Third Party Payments,7003008829,15/03/2023,5356.00
Buckinghamshire Council,Adults and Health,BURNHAM LODGE CARE LTD,1000159,Res-Perm EMI-Other - Exp,Third Party Payments,7003008829,15/03/2023,4622.64
Buckinghamshire Council,Adults and Health,BURNHAM LODGE CARE LTD,1000159,Res-Perm EMI-Other - Exp,Third Party Payments,7003008829,15/03/2023,-2207.14
Buckinghamshire Council,Adults and Health,BURNHAM LODGE CARE LTD,1000159,Res care-permanent - other,Controllable Customer & Client Receipts,7003008829,15/03/2023,-627.80
Buckinghamshire Council,Adults and Health,BURNHAM LODGE CARE LTD,1000159,Res care-permanent - other,Controllable Customer & Client Receipts,7003008829,15/03/2023,-139.48
Buckinghamshire Council,Adults and Health,BURNHAM LODGE CARE LTD,1000159,Nursing care-permanent -other,Controllable Customer & Client Receipts,7003008829,15/03/2023,-627.80
Buckinghamshire Council,Adults and Health,BURNHAM LODGE CARE LTD,1000159,Nursing care-permanent -other,Controllable Customer & Client Receipts,7003008829,15/03/2023,-653.00
Buckinghamshire Council,Adults and Health,BURNHAM LODGE CARE LTD,1000159,Nursing care-permanent -other,Controllable Customer & Client Receipts,7003008829,15/03/2023,-818.04
Buckinghamshire Council,Adults and Health,BURNHAM LODGE CARE LTD,1000159,Nursing care-permanent -other,Controllable Customer & Client Receipts,7003008829,15/03/2023,-1200.00
Buckinghamshire Council,Adults and Health,Wesgate Healthcare Ltd,1000160,Nurs-Perm EMI Other - Exp,Third Party Payments,7003008830,15/03/2023,4265.04
Buckinghamshire Council,Adults and Health,Wesgate Healthcare Ltd,1000160,Nursing care-permanent -other,Third Party Payments,7003008830,15/03/2023,4804.24
Buckinghamshire Council,Adults and Health,Wesgate Healthcare Ltd,1000160,Nursing care-permanent -other,Third Party Payments,7003008830,15/03/2023,6000.00
Buckinghamshire Council,Adults and Health,Wesgate Healthcare Ltd,1000160,Nurs-Perm EMI Other - Exp,Third Party Payments,7003008830,15/03/2023,4532.00
Buckinghamshire Council,Adults and Health,Wesgate Healthcare Ltd,1000160,Nurs-Perm EMI Other - Exp,Third Party Payments,7003008830,15/03/2023,4465.80
Buckinghamshire Council,Adults and Health,Wesgate Healthcare Ltd,1000160,Nurs-Perm EMI Other - Exp,Third Party Payments,7003008830,15/03/2023,5563.24
Buckinghamshire Council,Adults and Health,Wesgate Healthcare Ltd,1000160,Nurs-Perm EMI Other - Exp,Third Party Payments,7003008830,15/03/2023,5363.24
Buckinghamshire Council,Adults and Health,Wesgate Healthcare Ltd,1000160,Nursing care-permanent -other,Third Party Payments,7003008830,15/03/2023,49.60
Buckinghamshire Council,Adults and Health,Wesgate Healthcare Ltd,1000160,Nursing care-permanent -other,Third Party Payments,7003008830,15/03/2023,5356.00
Buckinghamshire Council,Adults and Health,Wesgate Healthcare Ltd,1000160,Nursing care-permanent -other,Third Party Payments,7003008830,15/03/2023,4479.16
Buckinghamshire Council,Adults and Health,Wesgate Healthcare Ltd,1000160,Nursing care-permanent -other,Third Party Payments,7003008830,15/03/2023,5600.00
Buckinghamshire Council,Adults and Health,Wesgate Healthcare Ltd,1000160,Nurs-Perm EMI Other - Exp,Third Party Payments,7003008830,15/03/2023,4785.84
Buckinghamshire Council,Adults and Health,Wesgate Healthcare Ltd,1000160,Nurs-Perm EMI Other - Exp,Third Party Payments,7003008830,15/03/2023,3433.24
Buckinghamshire Council,Adults and Health,Wesgate Healthcare Ltd,1000160,Nursing care-permanent -other,Third Party Payments,7003008830,15/03/2023,5003.36
Buckinghamshire Council,Adults and Health,Wesgate Healthcare Ltd,1000160,Res-Perm EMI-Other - Exp,Third Party Payments,7003008830,15/03/2023,4227.60
Buckinghamshire Council,Adults and Health,Wesgate Healthcare Ltd,1000160,Res-Perm EMI-Other - Exp,Third Party Payments,7003008830,15/03/2023,3107.14
Buckinghamshire Council,Adults and Health,Wesgate Healthcare Ltd,1000160,Res-Perm EMI-Other - Exp,Third Party Payments,7003008830,15/03/2023,5800.00
Buckinghamshire Council,Adults and Health,Wesgate Healthcare Ltd,1000160,Nursing care-permanent -other,Third Party Payments,7003008830,15/03/2023,2121.43
Buckinghamshire Council,Adults and Health,Wesgate Healthcare Ltd,1000160,Nursing care-permanent -other,Controllable Customer & Client Receipts,7003008830,15/03/2023,-359.80
Buckinghamshire Council,Adults and Health,Wesgate Healthcare Ltd,1000160,Nursing care-permanent -other,Controllable Customer & Client Receipts,7003008830,15/03/2023,-41.40
Buckinghamshire Council,Adults and Health,Wesgate Healthcare Ltd,1000160,Nursing care-permanent -other,Controllable Customer & Client Receipts,7003008830,15/03/2023,-988.24
Buckinghamshire Council,Adults and Health,Wesgate Healthcare Ltd,1000160,Nursing care-permanent -other,Controllable Customer & Client Receipts,7003008830,15/03/2023,-645.68
Buckinghamshire Council,Adults and Health,Wesgate Healthcare Ltd,1000160,Nursing care-permanent -other,Controllable Customer & Client Receipts,7003008830,15/03/2023,-735.48
Buckinghamshire Council,Adults and Health,Wesgate Healthcare Ltd,1000160,Nursing care-permanent -other,Controllable Customer & Client Receipts,7003008830,15/03/2023,-966.24
Buckinghamshire Council,Adults and Health,Wesgate Healthcare Ltd,1000160,Nursing care-permanent -other,Controllable Customer & Client Receipts,7003008830,15/03/2023,-1000.00
Buckinghamshire Council,Adults and Health,Wesgate Healthcare Ltd,1000160,Res care-permanent - other,Controllable Customer & Client Receipts,7003008830,15/03/2023,-627.80
Buckinghamshire Council,Adults and Health,Wesgate Healthcare Ltd,1000160,Nursing care-permanent -other,Controllable Customer & Client Receipts,7003008830,15/03/2023,-396.15
Buckinghamshire Council,Adults and Health,Wesgate Healthcare Ltd,1000160,Nursing care-permanent -other,Controllable Customer & Client Receipts,7003008830,15/03/2023,-744.59
Buckinghamshire Council,Adults and Health,Wesgate Healthcare Ltd,1000160,Nursing care-permanent -other,Controllable Customer & Client Receipts,7003008830,15/03/2023,-49.60
Buckinghamshire Council,Adults and Health,CHALFONT LODGE NURSING HOME,1000164,Nursing care-permanent -other,Third Party Payments,7003008831,15/03/2023,-4494.25
Buckinghamshire Council,Adults and Health,CHALFONT LODGE NURSING HOME,1000164,Nurs-Perm EMI Other - Exp,Third Party Payments,7003008831,15/03/2023,5400.00
Buckinghamshire Council,Adults and Health,CHALFONT LODGE NURSING HOME,1000164,Nursing care-permanent -other,Third Party Payments,7003008831,15/03/2023,5562.00
Buckinghamshire Council,Adults and Health,CHALFONT LODGE NURSING HOME,1000164,Nursing care-permanent -other,Third Party Payments,7003008831,15/03/2023,5201.08
Buckinghamshire Council,Adults and Health,CHALFONT LODGE NURSING HOME,1000164,Res-Perm EMI-Other - Exp,Third Party Payments,7003008831,15/03/2023,5562.00
Buckinghamshire Council,Adults and Health,CHALFONT LODGE NURSING HOME,1000164,Res-Perm EMI-Other - Exp,Third Party Payments,7003008831,15/03/2023,5800.00
Buckinghamshire Council,Adults and Health,CHALFONT LODGE NURSING HOME,1000164,Nurs-Perm EMI Other - Exp,Third Party Payments,7003008831,15/03/2023,6429.68
Buckinghamshire Council,Adults and Health,CHALFONT LODGE NURSING HOME,1000164,Nursing care-permanent -other,Third Party Payments,7003008831,15/03/2023,5652.04
Buckinghamshire Council,Adults and Health,CHALFONT LODGE NURSING HOME,1000164,Nursing care-permanent -other,Third Party Payments,7003008831,15/03/2023,6854.04
Buckinghamshire Council,Adults and Health,CHALFONT LODGE NURSING HOME,1000164,Nurs-Perm EMI Other - Exp,Third Party Payments,7003008831,15/03/2023,4791.56
Buckinghamshire Council,Adults and Health,CHALFONT LODGE NURSING HOME,1000164,Nurs-Perm EMI Other - Exp,Third Party Payments,7003008831,15/03/2023,5165.60
Buckinghamshire Council,Adults and Health,CHALFONT LODGE NURSING HOME,1000164,Nursing care-permanent -other,Third Party Payments,7003008831,15/03/2023,3299.92
Buckinghamshire Council,Adults and Health,CHALFONT LODGE NURSING HOME,1000164,Nursing care-permanent -other,Third Party Payments,7003008831,15/03/2023,6723.84
Buckinghamshire Council,Adults and Health,CHALFONT LODGE NURSING HOME,1000164,Nursing care-permanent -other,Third Party Payments,7003008831,15/03/2023,2206.36
Buckinghamshire Council,Adults and Health,CHALFONT LODGE NURSING HOME,1000164,Res-Perm EMI-Other - Exp,Third Party Payments,7003008831,15/03/2023,4202.40
Buckinghamshire Council,Adults and Health,CHALFONT LODGE NURSING HOME,1000164,Res-Perm EMI-Other - Exp,Third Party Payments,7003008831,15/03/2023,5800.00
Buckinghamshire Council,Adults and Health,CHALFONT LODGE NURSING HOME,1000164,Nursing care-permanent -other,Third Party Payments,7003008831,15/03/2023,5364.00
Buckinghamshire Council,Adults and Health,CHALFONT LODGE NURSING HOME,1000164,Nurs-Perm EMI Other - Exp,Third Party Payments,7003008831,15/03/2023,4944.00
Buckinghamshire Council,Adults and Health,CHALFONT LODGE NURSING HOME,1000164,Res care-permanent - other,Third Party Payments,7003008831,15/03/2023,5400.00
Buckinghamshire Council,Adults and Health,CHALFONT LODGE NURSING HOME,1000164,Nurs-Perm EMI Other - Exp,Third Party Payments,7003008831,15/03/2023,5800.00
Buckinghamshire Council,Adults and Health,CHALFONT LODGE NURSING HOME,1000164,Nursing care-permanent -other,Third Party Payments,7003008831,15/03/2023,5786.72
Buckinghamshire Council,Adults and Health,CHALFONT LODGE NURSING HOME,1000164,Nursing care-permanent -other,Third Party Payments,7003008831,15/03/2023,-4857.14
Buckinghamshire Council,Adults and Health,CHALFONT LODGE NURSING HOME,1000164,Nursing care-permanent -other,Third Party Payments,7003008831,15/03/2023,-6800.00
Buckinghamshire Council,Adults and Health,CHALFONT LODGE NURSING HOME,1000164,Nursing care-permanent -other,Controllable Customer & Client Receipts,7003008831,15/03/2023,360.44
Buckinghamshire Council,Adults and Health,CHALFONT LODGE NURSING HOME,1000164,Nursing care-permanent -other,Controllable Customer & Client Receipts,7003008831,15/03/2023,-1203.92
Buckinghamshire Council,Adults and Health,CHALFONT LODGE NURSING HOME,1000164,Nursing care-permanent -other,Controllable Customer & Client Receipts,7003008831,15/03/2023,-1166.64
Buckinghamshire Council,Adults and Health,CHALFONT LODGE NURSING HOME,1000164,Res care-permanent - other,Controllable Customer & Client Receipts,7003008831,15/03/2023,-770.88
Buckinghamshire Council,Adults and Health,CHALFONT LODGE NURSING HOME,1000164,Res care-permanent - other,Controllable Customer & Client Receipts,7003008831,15/03/2023,-900.40
Buckinghamshire Council,Adults and Health,CHALFONT LODGE NURSING HOME,1000164,Nursing care-permanent -other,Controllable Customer & Client Receipts,7003008831,15/03/2023,-1103.52
Buckinghamshire Council,Adults and Health,CHALFONT LODGE NURSING HOME,1000164,Nursing care-permanent -other,Controllable Customer & Client Receipts,7003008831,15/03/2023,-511.80
Buckinghamshire Council,Adults and Health,CHALFONT LODGE NURSING HOME,1000164,Res care-permanent - other,Controllable Customer & Client Receipts,7003008831,15/03/2023,-392.68
Buckinghamshire Council,Adults and Health,CHALFONT LODGE NURSING HOME,1000164,Res care-permanent - other,Controllable Customer & Client Receipts,7003008831,15/03/2023,-766.72
Buckinghamshire Council,Adults and Health,CHALFONT LODGE NURSING HOME,1000164,Nursing care-permanent -other,Controllable Customer & Client Receipts,7003008831,15/03/2023,-1062.68
Buckinghamshire Council,Adults and Health,CHALFONT LODGE NURSING HOME,1000164,Nursing care-permanent -other,Controllable Customer & Client Receipts,7003008831,15/03/2023,-940.16
Buckinghamshire Council,Adults and Health,CHALFONT LODGE NURSING HOME,1000164,Nursing care-permanent -other,Controllable Customer & Client Receipts,7003008831,15/03/2023,-627.80
Buckinghamshire Council,Adults and Health,CHALFONT LODGE NURSING HOME,1000164,Nursing care-permanent -other,Controllable Customer & Client Receipts,7003008831,15/03/2023,-197.20
Buckinghamshire Council,Adults and Health,CHALFONT LODGE NURSING HOME,1000164,Nursing care-permanent -other,Controllable Customer & Client Receipts,7003008831,15/03/2023,-730.40
Buckinghamshire Council,Adults and Health,CHALFONT LODGE NURSING HOME,1000164,Nursing care-permanent -other,Controllable Customer & Client Receipts,7003008831,15/03/2023,-666.00
Buckinghamshire Council,Adults and Health,CHALFONT LODGE NURSING HOME,1000164,Nursing care-permanent -other,Controllable Customer & Client Receipts,7003008831,15/03/2023,597.60
Buckinghamshire Council,Adults and Health,CHALFONT LODGE NURSING HOME,1000164,Nursing care-permanent -other,Controllable Customer & Client Receipts,7003008831,15/03/2023,836.64
Buckinghamshire Council,Adults and Health,CHALFONT LODGE NURSING HOME,1000164,Res care-permanent - other,Controllable Customer & Client Receipts,7003008831,15/03/2023,-11.74
Buckinghamshire Council,Adults and Health,CHALFONT LODGE NURSING HOME,1000164,Res care-permanent - other,Controllable Customer & Client Receipts,7003008831,15/03/2023,-25.28
Buckinghamshire Council,Adults and Health,CHALFONT LODGE NURSING HOME,1000164,Res care-permanent - other,Controllable Customer & Client Receipts,7003008831,15/03/2023,-25.28
Buckinghamshire Council,Adults and Health,CHALFONT LODGE NURSING HOME,1000164,Nursing care-permanent -other,Controllable Customer & Client Receipts,7003008831,15/03/2023,-3299.92
Buckinghamshire Council,Adults and Health,REDACTED,1000165,Nurs-Perm EMI Other - Exp,Third Party Payments,7003008832,15/03/2023,4000.00
Buckinghamshire Council,Adults and Health,REDACTED,1000165,Nursing care-permanent -other,Third Party Payments,7003008832,15/03/2023,5883.36
Buckinghamshire Council,Adults and Health,REDACTED,1000165,Nurs-Perm EMI Other - Exp,Third Party Payments,7003008832,15/03/2023,4000.00
Buckinghamshire Council,Adults and Health,REDACTED,1000165,Nurs-Perm EMI Other - Exp,Third Party Payments,7003008832,15/03/2023,4400.00
Buckinghamshire Council,Adults and Health,REDACTED,1000165,Nursing care-permanent -other,Third Party Payments,7003008832,15/03/2023,3429.16
Buckinghamshire Council,Adults and Health,REDACTED,1000165,Nursing care-permanent -other,Third Party Payments,7003008832,15/03/2023,3429.16
Buckinghamshire Council,Adults and Health,REDACTED,1000165,Res-Perm EMI-Other - Exp,Third Party Payments,7003008832,15/03/2023,3643.48
Buckinghamshire Council,Adults and Health,REDACTED,1000165,Res care-permanent - other,Third Party Payments,7003008832,15/03/2023,3708.00
Buckinghamshire Council,Adults and Health,REDACTED,1000165,Res care-permanent - other,Third Party Payments,7003008832,15/03/2023,3214.84
Buckinghamshire Council,Adults and Health,REDACTED,1000165,Nursing care-permanent -other,Third Party Payments,7003008832,15/03/2023,3429.16
Buckinghamshire Council,Adults and Health,REDACTED,1000165,Nurs-Perm EMI Other - Exp,Third Party Payments,7003008832,15/03/2023,3643.48
Buckinghamshire Council,Adults and Health,REDACTED,1000165,Nursing care-permanent -other,Controllable Customer & Client Receipts,7003008832,15/03/2023,-627.80
Buckinghamshire Council,Adults and Health,REDACTED,1000165,Nursing care-permanent -other,Controllable Customer & Client Receipts,7003008832,15/03/2023,-438.80
Buckinghamshire Council,Adults and Health,REDACTED,1000165,Res care-permanent - other,Controllable Customer & Client Receipts,7003008832,15/03/2023,-939.84
Buckinghamshire Council,Adults and Health,REDACTED,1000165,Res care-permanent - other,Controllable Customer & Client Receipts,7003008832,15/03/2023,-625.68
Buckinghamshire Council,Adults and Health,REDACTED,1000165,Res care-permanent - other,Controllable Customer & Client Receipts,7003008832,15/03/2023,-627.80
Buckinghamshire Council,Adults and Health,REDACTED,1000165,Nursing care-permanent -other,Controllable Customer & Client Receipts,7003008832,15/03/2023,-895.52
Buckinghamshire Council,Adults and Health,REDACTED,1000165,Nursing care-permanent -other,Controllable Customer & Client Receipts,7003008832,15/03/2023,-883.28
Buckinghamshire Council,Adults and Health,REDACTED,1000165,Nursing care-permanent -other,Controllable Customer & Client Receipts,7003008832,15/03/2023,-1120.64
Buckinghamshire Council,Adults and Health,REDACTED,1000165,Nursing care-permanent -other,Controllable Customer & Client Receipts,7003008832,15/03/2023,-627.80
Buckinghamshire Council,Adults and Health,CHERRY TREE NURSING HOME,1000166,Nurs-Perm EMI Other - Exp,Third Party Payments,7003008833,15/03/2023,5800.00
Buckinghamshire Council,Adults and Health,CHERRY TREE NURSING HOME,1000166,Nursing care-permanent -other,Third Party Payments,7003008833,15/03/2023,4944.00
Buckinghamshire Council,Adults and Health,CHERRY TREE NURSING HOME,1000166,Nursing care-permanent -other,Third Party Payments,7003008833,15/03/2023,4600.00
Buckinghamshire Council,Adults and Health,CHERRY TREE NURSING HOME,1000166,Nursing care-permanent -other,Third Party Payments,7003008833,15/03/2023,4600.00
Buckinghamshire Council,Adults and Health,CHERRY TREE NURSING HOME,1000166,Nursing care-permanent -other,Third Party Payments,7003008833,15/03/2023,4600.00
Buckinghamshire Council,Adults and Health,CHERRY TREE NURSING HOME,1000166,Nursing care-permanent -other,Third Party Payments,7003008833,15/03/2023,4600.00
Buckinghamshire Council,Adults and Health,CHERRY TREE NURSING HOME,1000166,Nursing care-permanent -other,Third Party Payments,7003008833,15/03/2023,4600.00
Buckinghamshire Council,Adults and Health,CHERRY TREE NURSING HOME,1000166,Res care-permanent - other,Third Party Payments,7003008833,15/03/2023,4800.00
Buckinghamshire Council,Adults and Health,CHERRY TREE NURSING HOME,1000166,Nursing care-permanent -other,Third Party Payments,7003008833,15/03/2023,4600.00
Buckinghamshire Council,Adults and Health,CHERRY TREE NURSING HOME,1000166,Nurs-Perm EMI Other - Exp,Third Party Payments,7003008833,15/03/2023,4600.00
Buckinghamshire Council,Adults and Health,CHERRY TREE NURSING HOME,1000166,Nursing care-permanent -other,Third Party Payments,7003008833,15/03/2023,4944.00
Buckinghamshire Council,Adults and Health,CHERRY TREE NURSING HOME,1000166,Nursing care-permanent -other,Third Party Payments,7003008833,15/03/2023,4944.00
Buckinghamshire Council,Adults and Health,CHERRY TREE NURSING HOME,1000166,Nurs-Perm EMI Other - Exp,Third Party Payments,7003008833,15/03/2023,1300.00
Buckinghamshire Council,Adults and Health,CHERRY TREE NURSING HOME,1000166,Nurs-Perm EMI Other - Exp,Third Party Payments,7003008833,15/03/2023,5200.00
Buckinghamshire Council,Adults and Health,CHERRY TREE NURSING HOME,1000166,Res care-permanent - other,Controllable Customer & Client Receipts,7003008833,15/03/2023,-771.28
Buckinghamshire Council,Adults and Health,CHERRY TREE NURSING HOME,1000166,Nursing care-permanent -other,Controllable Customer & Client Receipts,7003008833,15/03/2023,-972.64
Buckinghamshire Council,Adults and Health,CHERRY TREE NURSING HOME,1000166,Nursing care-permanent -other,Controllable Customer & Client Receipts,7003008833,15/03/2023,-238.48
Buckinghamshire Council,Adults and Health,CHERRY TREE NURSING HOME,1000166,Nursing care-permanent -other,Controllable Customer & Client Receipts,7003008833,15/03/2023,-638.36
Buckinghamshire Council,Adults and Health,CHERRY TREE NURSING HOME,1000166,Nursing care-permanent -other,Controllable Customer & Client Receipts,7003008833,15/03/2023,-676.08
Buckinghamshire Council,Adults and Health,CHERRY TREE NURSING HOME,1000166,Nursing care-permanent -other,Controllable Customer & Client Receipts,7003008833,15/03/2023,-4600.00
Buckinghamshire Council,Adults and Health,CHERRY TREE NURSING HOME,1000166,Nursing care-permanent -other,Controllable Customer & Client Receipts,7003008833,15/03/2023,-1428.56
Buckinghamshire Council,Adults and Health,CHERRY TREE NURSING HOME,1000166,Nursing care-permanent -other,Controllable Customer & Client Receipts,7003008833,15/03/2023,-627.80
Buckinghamshire Council,Adults and Health,CHERRY TREE NURSING HOME,1000166,Nursing care-permanent -other,Controllable Customer & Client Receipts,7003008833,15/03/2023,-564.92
Buckinghamshire Council,Adults and Health,CHERRY TREE NURSING HOME,1000166,Nursing care-permanent -other,Controllable Customer & Client Receipts,7003008833,15/03/2023,-687.80
Buckinghamshire Council,Adults and Health,CHERRY TREE NURSING HOME,1000166,Res care-permanent - other,Controllable Customer & Client Receipts,7003008833,15/03/2023,208.88
Buckinghamshire Council,Adults and Health,CHERRY TREE NURSING HOME,1000166,Nursing care-permanent -other,Controllable Customer & Client Receipts,7003008833,15/03/2023,-208.88
Buckinghamshire Council,Adults and Health,CHERRY TREE NURSING HOME,1000166,Nursing care-permanent -other,Controllable Customer & Client Receipts,7003008833,15/03/2023,-835.52
Buckinghamshire Council,Adults and Health,DENHAM MANOR NURSING HOME,1000169,Nursing care-permanent -other,Third Party Payments,7003008834,15/03/2023,3210.56
Buckinghamshire Council,Adults and Health,DENHAM MANOR NURSING HOME,1000169,Nurs-Perm EMI Other - Exp,Third Party Payments,7003008834,15/03/2023,4480.08
Buckinghamshire Council,Adults and Health,DENHAM MANOR NURSING HOME,1000169,Nursing care-permanent -other,Third Party Payments,7003008834,15/03/2023,3210.56
Buckinghamshire Council,Adults and Health,DENHAM MANOR NURSING HOME,1000169,Nursing care-permanent -other,Third Party Payments,7003008834,15/03/2023,3258.72
Buckinghamshire Council,Adults and Health,DENHAM MANOR NURSING HOME,1000169,Nursing care-permanent -other,Third Party Payments,7003008834,15/03/2023,3210.56
Buckinghamshire Council,Adults and Health,DENHAM MANOR NURSING HOME,1000169,Nursing care-permanent -other,Third Party Payments,7003008834,15/03/2023,3258.72
Buckinghamshire Council,Adults and Health,DENHAM MANOR NURSING HOME,1000169,Nursing care-permanent -other,Third Party Payments,7003008834,15/03/2023,4449.60
Buckinghamshire Council,Adults and Health,DENHAM MANOR NURSING HOME,1000169,Nursing care-permanent -other,Third Party Payments,7003008834,15/03/2023,-3522.24
Buckinghamshire Council,Adults and Health,DENHAM MANOR NURSING HOME,1000169,Nursing care-permanent -other,Third Party Payments,7003008834,15/03/2023,-4109.28
Buckinghamshire Council,Adults and Health,DENHAM MANOR NURSING HOME,1000169,Nursing care-permanent -other,Third Party Payments,7003008834,15/03/2023,-4109.28
Buckinghamshire Council,Adults and Health,DENHAM MANOR NURSING HOME,1000169,Nursing care-permanent -other,Controllable Customer & Client Receipts,7003008834,15/03/2023,-438.80
Buckinghamshire Council,Adults and Health,DENHAM MANOR NURSING HOME,1000169,Nursing care-permanent -other,Controllable Customer & Client Receipts,7003008834,15/03/2023,-627.80
Buckinghamshire Council,Adults and Health,DENHAM MANOR NURSING HOME,1000169,Nursing care-permanent -other,Controllable Customer & Client Receipts,7003008834,15/03/2023,-494.00
Buckinghamshire Council,Adults and Health,DENHAM MANOR NURSING HOME,1000169,Nursing care-permanent -other,Controllable Customer & Client Receipts,7003008834,15/03/2023,-504.64
Buckinghamshire Council,Adults and Health,DENHAM MANOR NURSING HOME,1000169,Nursing care-permanent -other,Controllable Customer & Client Receipts,7003008834,15/03/2023,-745.08
Buckinghamshire Council,Adults and Health,DENHAM MANOR NURSING HOME,1000169,Nursing care-permanent -other,Controllable Customer & Client Receipts,7003008834,15/03/2023,-499.80
Buckinghamshire Council,Adults and Health,DENHAM MANOR NURSING HOME,1000169,Nursing care-permanent -other,Controllable Customer & Client Receipts,7003008834,15/03/2023,-629.68
Buckinghamshire Council,Adults and Health,DENHAM MANOR NURSING HOME,1000169,Nursing care-permanent -other,Controllable Customer & Client Receipts,7003008834,15/03/2023,626.36
Buckinghamshire Council,Adults and Health,DENHAM MANOR NURSING HOME,1000169,Nursing care-permanent -other,Controllable Customer & Client Receipts,7003008834,15/03/2023,701.52
Buckinghamshire Council,Adults and Health,DENHAM MANOR NURSING HOME,1000169,Nursing care-permanent -other,Controllable Customer & Client Receipts,7003008834,15/03/2023,701.52
Buckinghamshire Council,Adults and Health,Ambient Support Limited,1000171,Extra Care,Transfer Payments,7003008823,15/03/2023,402.84
Buckinghamshire Council,Adults and Health,Ambient Support Limited,1000171,Extra Care,Transfer Payments,7003008823,15/03/2023,204.92
Buckinghamshire Council,Adults and Health,Ambient Support Limited,1000171,Extra Care,Transfer Payments,7003008823,15/03/2023,-868.39
Buckinghamshire Council,Adults and Health,Ambient Support Limited,1000171,Extra Care,Transfer Payments,7003008823,15/03/2023,-868.39
Buckinghamshire Council,Adults and Health,Ambient Support Limited,1000171,Extra Care,Transfer Payments,7003008823,15/03/2023,893.83
Buckinghamshire Council,Adults and Health,Ambient Support Limited,1000171,Extra Care,Transfer Payments,7003008823,15/03/2023,893.83
Buckinghamshire Council,Adults and Health,Ambient Support Limited,1000171,Extra Care,Transfer Payments,7003008823,15/03/2023,-1013.12
Buckinghamshire Council,Adults and Health,Ambient Support Limited,1000171,Extra Care,Transfer Payments,7003008823,15/03/2023,-1013.12
Buckinghamshire Council,Adults and Health,Ambient Support Limited,1000171,Extra Care,Transfer Payments,7003008823,15/03/2023,1042.80
Buckinghamshire Council,Adults and Health,Ambient Support Limited,1000171,Extra Care,Transfer Payments,7003008823,15/03/2023,1042.80
Buckinghamshire Council,Adults and Health,Ambient Support Limited,1000171,Extra Care,Transfer Payments,7003008823,15/03/2023,-1013.12
Buckinghamshire Council,Adults and Health,Ambient Support Limited,1000171,Extra Care,Transfer Payments,7003008823,15/03/2023,-1013.12
Buckinghamshire Council,Adults and Health,Ambient Support Limited,1000171,Extra Care,Transfer Payments,7003008823,15/03/2023,1042.80
Buckinghamshire Council,Adults and Health,Ambient Support Limited,1000171,Extra Care,Transfer Payments,7003008823,15/03/2023,1042.80
Buckinghamshire Council,Adults and Health,Ambient Support Limited,1000171,Extra Care,Transfer Payments,7003008823,15/03/2023,-1013.12
Buckinghamshire Council,Adults and Health,Ambient Support Limited,1000171,Extra Care,Transfer Payments,7003008823,15/03/2023,-1013.12
Buckinghamshire Council,Adults and Health,Ambient Support Limited,1000171,Extra Care,Transfer Payments,7003008823,15/03/2023,1042.80
Buckinghamshire Council,Adults and Health,Ambient Support Limited,1000171,Extra Care,Transfer Payments,7003008823,15/03/2023,1042.80
Buckinghamshire Council,Adults and Health,Ambient Support Limited,1000171,Extra Care,Transfer Payments,7003008823,15/03/2023,-1013.12
Buckinghamshire Council,Adults and Health,Ambient Support Limited,1000171,Extra Care,Transfer Payments,7003008823,15/03/2023,-1013.12
Buckinghamshire Council,Adults and Health,Ambient Support Limited,1000171,Extra Care,Transfer Payments,7003008823,15/03/2023,1042.80
Buckinghamshire Council,Adults and Health,Ambient Support Limited,1000171,Extra Care,Transfer Payments,7003008823,15/03/2023,1042.80
Buckinghamshire Council,Adults and Health,Ambient Support Limited,1000171,Extra Care,Transfer Payments,7003008823,15/03/2023,-1013.12
Buckinghamshire Council,Adults and Health,Ambient Support Limited,1000171,Extra Care,Transfer Payments,7003008823,15/03/2023,-1013.12
Buckinghamshire Council,Adults and Health,Ambient Support Limited,1000171,Extra Care,Transfer Payments,7003008823,15/03/2023,1042.80
Buckinghamshire Council,Adults and Health,Ambient Support Limited,1000171,Extra Care,Transfer Payments,7003008823,15/03/2023,1042.80
Buckinghamshire Council,Adults and Health,Ambient Support Limited,1000171,Extra Care,Transfer Payments,7003008823,15/03/2023,-1013.12
Buckinghamshire Council,Adults and Health,Ambient Support Limited,1000171,Extra Care,Transfer Payments,7003008823,15/03/2023,-1013.12
Buckinghamshire Council,Adults and Health,Ambient Support Limited,1000171,Extra Care,Transfer Payments,7003008823,15/03/2023,1042.80
Buckinghamshire Council,Adults and Health,Ambient Support Limited,1000171,Extra Care,Transfer Payments,7003008823,15/03/2023,1042.80
Buckinghamshire Council,Adults and Health,Ambient Support Limited,1000171,Extra Care,Transfer Payments,7003008823,15/03/2023,-1013.12
Buckinghamshire Council,Adults and Health,Ambient Support Limited,1000171,Extra Care,Transfer Payments,7003008823,15/03/2023,-1013.12
Buckinghamshire Council,Adults and Health,Ambient Support Limited,1000171,Extra Care,Transfer Payments,7003008823,15/03/2023,1042.80
Buckinghamshire Council,Adults and Health,Ambient Support Limited,1000171,Extra Care,Transfer Payments,7003008823,15/03/2023,1042.80
Buckinghamshire Council,Adults and Health,Ambient Support Limited,1000171,Extra Care,Transfer Payments,7003008823,15/03/2023,-1013.12
Buckinghamshire Council,Adults and Health,Ambient Support Limited,1000171,Extra Care,Transfer Payments,7003008823,15/03/2023,-1013.12
Buckinghamshire Council,Adults and Health,Ambient Support Limited,1000171,Extra Care,Transfer Payments,7003008823,15/03/2023,1042.80
Buckinghamshire Council,Adults and Health,Ambient Support Limited,1000171,Extra Care,Transfer Payments,7003008823,15/03/2023,1042.80
Buckinghamshire Council,Adults and Health,Ambient Support Limited,1000171,Extra Care,Transfer Payments,7003008823,15/03/2023,-1013.12
Buckinghamshire Council,Adults and Health,Ambient Support Limited,1000171,Extra Care,Transfer Payments,7003008823,15/03/2023,-1013.12
Buckinghamshire Council,Adults and Health,Ambient Support Limited,1000171,Extra Care,Transfer Payments,7003008823,15/03/2023,1042.80
Buckinghamshire Council,Adults and Health,Ambient Support Limited,1000171,Extra Care,Transfer Payments,7003008823,15/03/2023,1042.80
Buckinghamshire Council,Adults and Health,Ambient Support Limited,1000171,Extra Care,Transfer Payments,7003008823,15/03/2023,-1013.12
Buckinghamshire Council,Adults and Health,Ambient Support Limited,1000171,Extra Care,Transfer Payments,7003008823,15/03/2023,-1013.12
Buckinghamshire Council,Adults and Health,Ambient Support Limited,1000171,Extra Care,Transfer Payments,7003008823,15/03/2023,1042.80
Buckinghamshire Council,Adults and Health,Ambient Support Limited,1000171,Extra Care,Transfer Payments,7003008823,15/03/2023,1042.80
Buckinghamshire Council,Adults and Health,Ambient Support Limited,1000171,Extra Care,Transfer Payments,7003008823,15/03/2023,-1013.12
Buckinghamshire Council,Adults and Health,Ambient Support Limited,1000171,Extra Care,Transfer Payments,7003008823,15/03/2023,-1013.12
Buckinghamshire Council,Adults and Health,Ambient Support Limited,1000171,Extra Care,Transfer Payments,7003008823,15/03/2023,1042.80
Buckinghamshire Council,Adults and Health,Ambient Support Limited,1000171,Extra Care,Transfer Payments,7003008823,15/03/2023,1042.80
Buckinghamshire Council,Adults and Health,Ambient Support Limited,1000171,Extra Care,Transfer Payments,7003008823,15/03/2023,1042.80
Buckinghamshire Council,Adults and Health,Ambient Support Limited,1000171,Extra Care,Transfer Payments,7003008823,15/03/2023,1042.80
Buckinghamshire Council,Adults and Health,Ambient Support Limited,1000171,Extra Care,Transfer Payments,7003008823,15/03/2023,-8683.89
Buckinghamshire Council,Adults and Health,Ambient Support Limited,1000171,Extra Care,Transfer Payments,7003008823,15/03/2023,8938.29
Buckinghamshire Council,Adults and Health,Ambient Support Limited,1000171,Extra Care,Transfer Payments,7003008823,15/03/2023,-10131.20
Buckinghamshire Council,Adults and Health,Ambient Support Limited,1000171,Extra Care,Transfer Payments,7003008823,15/03/2023,10428.00
Buckinghamshire Council,Adults and Health,Ambient Support Limited,1000171,Extra Care,Transfer Payments,7003008823,15/03/2023,-10131.20
Buckinghamshire Council,Adults and Health,Ambient Support Limited,1000171,Extra Care,Transfer Payments,7003008823,15/03/2023,10428.00
Buckinghamshire Council,Adults and Health,Ambient Support Limited,1000171,Extra Care,Transfer Payments,7003008823,15/03/2023,-10131.20
Buckinghamshire Council,Adults and Health,Ambient Support Limited,1000171,Extra Care,Transfer Payments,7003008823,15/03/2023,10428.00
Buckinghamshire Council,Adults and Health,Ambient Support Limited,1000171,Extra Care,Transfer Payments,7003008823,15/03/2023,-10131.20
Buckinghamshire Council,Adults and Health,Ambient Support Limited,1000171,Extra Care,Transfer Payments,7003008823,15/03/2023,10428.00
Buckinghamshire Council,Adults and Health,Ambient Support Limited,1000171,Extra Care,Transfer Payments,7003008823,15/03/2023,-10131.20
Buckinghamshire Council,Adults and Health,Ambient Support Limited,1000171,Extra Care,Transfer Payments,7003008823,15/03/2023,10428.00
Buckinghamshire Council,Adults and Health,Ambient Support Limited,1000171,Extra Care,Transfer Payments,7003008823,15/03/2023,-10131.20
Buckinghamshire Council,Adults and Health,Ambient Support Limited,1000171,Extra Care,Transfer Payments,7003008823,15/03/2023,10428.00
Buckinghamshire Council,Adults and Health,Ambient Support Limited,1000171,Extra Care,Transfer Payments,7003008823,15/03/2023,-10131.20
Buckinghamshire Council,Adults and Health,Ambient Support Limited,1000171,Extra Care,Transfer Payments,7003008823,15/03/2023,10428.00
Buckinghamshire Council,Adults and Health,Ambient Support Limited,1000171,Extra Care,Transfer Payments,7003008823,15/03/2023,-10131.20
Buckinghamshire Council,Adults and Health,Ambient Support Limited,1000171,Extra Care,Transfer Payments,7003008823,15/03/2023,10428.00
Buckinghamshire Council,Adults and Health,Ambient Support Limited,1000171,Extra Care,Transfer Payments,7003008823,15/03/2023,-10131.20
Buckinghamshire Council,Adults and Health,Ambient Support Limited,1000171,Extra Care,Transfer Payments,7003008823,15/03/2023,10428.00
Buckinghamshire Council,Adults and Health,Ambient Support Limited,1000171,Extra Care,Transfer Payments,7003008823,15/03/2023,-10131.20
Buckinghamshire Council,Adults and Health,Ambient Support Limited,1000171,Extra Care,Transfer Payments,7003008823,15/03/2023,10428.00
Buckinghamshire Council,Adults and Health,Ambient Support Limited,1000171,Extra Care,Transfer Payments,7003008823,15/03/2023,-10131.20
Buckinghamshire Council,Adults and Health,Ambient Support Limited,1000171,Extra Care,Transfer Payments,7003008823,15/03/2023,10428.00
Buckinghamshire Council,Adults and Health,Ambient Support Limited,1000171,Extra Care,Transfer Payments,7003008823,15/03/2023,10428.00
Buckinghamshire Council,Adults and Health,Ambient Support Limited,1000171,Extra Care,Transfer Payments,7003008824,15/03/2023,373.00
Buckinghamshire Council,Adults and Health,Ambient Support Limited,1000171,Extra Care,Transfer Payments,7003008824,15/03/2023,104.44
Buckinghamshire Council,Adults and Health,Ambient Support Limited,1000171,Extra Care,Transfer Payments,7003008824,15/03/2023,613.64
Buckinghamshire Council,Adults and Health,Ambient Support Limited,1000171,Extra Care,Transfer Payments,7003008824,15/03/2023,533.60
Buckinghamshire Council,Adults and Health,Ambient Support Limited,1000171,Extra Care,Transfer Payments,7003008824,15/03/2023,696.27
Buckinghamshire Council,Adults and Health,Ambient Support Limited,1000171,Extra Care,Transfer Payments,7003008824,15/03/2023,417.76
Buckinghamshire Council,Adults and Health,Ambient Support Limited,1000171,Extra Care,Transfer Payments,7003008824,15/03/2023,134.28
Buckinghamshire Council,Adults and Health,Ambient Support Limited,1000171,Extra Care,Transfer Payments,7003008824,15/03/2023,292.72
Buckinghamshire Council,Adults and Health,Ambient Support Limited,1000171,Extra Care,Transfer Payments,7003008824,15/03/2023,-868.39
Buckinghamshire Council,Adults and Health,Ambient Support Limited,1000171,Extra Care,Transfer Payments,7003008824,15/03/2023,-868.39
Buckinghamshire Council,Adults and Health,Ambient Support Limited,1000171,Extra Care,Transfer Payments,7003008824,15/03/2023,-868.39
Buckinghamshire Council,Adults and Health,Ambient Support Limited,1000171,Extra Care,Transfer Payments,7003008824,15/03/2023,-868.39
Buckinghamshire Council,Adults and Health,Ambient Support Limited,1000171,Extra Care,Transfer Payments,7003008824,15/03/2023,893.83
Buckinghamshire Council,Adults and Health,Ambient Support Limited,1000171,Extra Care,Transfer Payments,7003008824,15/03/2023,893.83
Buckinghamshire Council,Adults and Health,Ambient Support Limited,1000171,Extra Care,Transfer Payments,7003008824,15/03/2023,893.83
Buckinghamshire Council,Adults and Health,Ambient Support Limited,1000171,Extra Care,Transfer Payments,7003008824,15/03/2023,893.83
Buckinghamshire Council,Adults and Health,Ambient Support Limited,1000171,Extra Care,Transfer Payments,7003008824,15/03/2023,-1013.12
Buckinghamshire Council,Adults and Health,Ambient Support Limited,1000171,Extra Care,Transfer Payments,7003008824,15/03/2023,-1013.12
Buckinghamshire Council,Adults and Health,Ambient Support Limited,1000171,Extra Care,Transfer Payments,7003008824,15/03/2023,-1013.12
Buckinghamshire Council,Adults and Health,Ambient Support Limited,1000171,Extra Care,Transfer Payments,7003008824,15/03/2023,-1013.12
Buckinghamshire Council,Adults and Health,Ambient Support Limited,1000171,Extra Care,Transfer Payments,7003008824,15/03/2023,1042.80
Buckinghamshire Council,Adults and Health,Ambient Support Limited,1000171,Extra Care,Transfer Payments,7003008824,15/03/2023,1042.80
Buckinghamshire Council,Adults and Health,Ambient Support Limited,1000171,Extra Care,Transfer Payments,7003008824,15/03/2023,1042.80
Buckinghamshire Council,Adults and Health,Ambient Support Limited,1000171,Extra Care,Transfer Payments,7003008824,15/03/2023,1042.80
Buckinghamshire Council,Adults and Health,Ambient Support Limited,1000171,Extra Care,Transfer Payments,7003008824,15/03/2023,-1013.12
Buckinghamshire Council,Adults and Health,Ambient Support Limited,1000171,Extra Care,Transfer Payments,7003008824,15/03/2023,-1013.12
Buckinghamshire Council,Adults and Health,Ambient Support Limited,1000171,Extra Care,Transfer Payments,7003008824,15/03/2023,-1013.12
Buckinghamshire Council,Adults and Health,Ambient Support Limited,1000171,Extra Care,Transfer Payments,7003008824,15/03/2023,-1013.12
Buckinghamshire Council,Adults and Health,Ambient Support Limited,1000171,Extra Care,Transfer Payments,7003008824,15/03/2023,1042.80
Buckinghamshire Council,Adults and Health,Ambient Support Limited,1000171,Extra Care,Transfer Payments,7003008824,15/03/2023,1042.80
Buckinghamshire Council,Adults and Health,Ambient Support Limited,1000171,Extra Care,Transfer Payments,7003008824,15/03/2023,1042.80
Buckinghamshire Council,Adults and Health,Ambient Support Limited,1000171,Extra Care,Transfer Payments,7003008824,15/03/2023,1042.80
Buckinghamshire Council,Adults and Health,Ambient Support Limited,1000171,Extra Care,Transfer Payments,7003008824,15/03/2023,-1013.12
Buckinghamshire Council,Adults and Health,Ambient Support Limited,1000171,Extra Care,Transfer Payments,7003008824,15/03/2023,-1013.12
Buckinghamshire Council,Adults and Health,Ambient Support Limited,1000171,Extra Care,Transfer Payments,7003008824,15/03/2023,-1013.12
Buckinghamshire Council,Adults and Health,Ambient Support Limited,1000171,Extra Care,Transfer Payments,7003008824,15/03/2023,-1013.12
Buckinghamshire Council,Adults and Health,Ambient Support Limited,1000171,Extra Care,Transfer Payments,7003008824,15/03/2023,1042.80
Buckinghamshire Council,Adults and Health,Ambient Support Limited,1000171,Extra Care,Transfer Payments,7003008824,15/03/2023,1042.80
Buckinghamshire Council,Adults and Health,Ambient Support Limited,1000171,Extra Care,Transfer Payments,7003008824,15/03/2023,1042.80
Buckinghamshire Council,Adults and Health,Ambient Support Limited,1000171,Extra Care,Transfer Payments,7003008824,15/03/2023,1042.80
Buckinghamshire Council,Adults and Health,Ambient Support Limited,1000171,Extra Care,Transfer Payments,7003008824,15/03/2023,-759.84
Buckinghamshire Council,Adults and Health,Ambient Support Limited,1000171,Extra Care,Transfer Payments,7003008824,15/03/2023,-1013.12
Buckinghamshire Council,Adults and Health,Ambient Support Limited,1000171,Extra Care,Transfer Payments,7003008824,15/03/2023,-506.56
Buckinghamshire Council,Adults and Health,Ambient Support Limited,1000171,Extra Care,Transfer Payments,7003008824,15/03/2023,-1013.12
Buckinghamshire Council,Adults and Health,Ambient Support Limited,1000171,Extra Care,Transfer Payments,7003008824,15/03/2023,-1013.12
Buckinghamshire Council,Adults and Health,Ambient Support Limited,1000171,Extra Care,Transfer Payments,7003008824,15/03/2023,-976.94
Buckinghamshire Council,Adults and Health,Ambient Support Limited,1000171,Extra Care,Transfer Payments,7003008824,15/03/2023,-976.94
Buckinghamshire Council,Adults and Health,Ambient Support Limited,1000171,Extra Care,Transfer Payments,7003008824,15/03/2023,1042.80
Buckinghamshire Council,Adults and Health,Ambient Support Limited,1000171,Extra Care,Transfer Payments,7003008824,15/03/2023,782.10
Buckinghamshire Council,Adults and Health,Ambient Support Limited,1000171,Extra Care,Transfer Payments,7003008824,15/03/2023,1005.56
Buckinghamshire Council,Adults and Health,Ambient Support Limited,1000171,Extra Care,Transfer Payments,7003008824,15/03/2023,521.40
Buckinghamshire Council,Adults and Health,Ambient Support Limited,1000171,Extra Care,Transfer Payments,7003008824,15/03/2023,1042.80
Buckinghamshire Council,Adults and Health,Ambient Support Limited,1000171,Extra Care,Transfer Payments,7003008824,15/03/2023,1042.80
Buckinghamshire Council,Adults and Health,Ambient Support Limited,1000171,Extra Care,Transfer Payments,7003008824,15/03/2023,1005.56
Buckinghamshire Council,Adults and Health,Ambient Support Limited,1000171,Extra Care,Transfer Payments,7003008824,15/03/2023,-361.83
Buckinghamshire Council,Adults and Health,Ambient Support Limited,1000171,Extra Care,Transfer Payments,7003008824,15/03/2023,-1013.12
Buckinghamshire Council,Adults and Health,Ambient Support Limited,1000171,Extra Care,Transfer Payments,7003008824,15/03/2023,-1013.12
Buckinghamshire Council,Adults and Health,Ambient Support Limited,1000171,Extra Care,Transfer Payments,7003008824,15/03/2023,-868.39
Buckinghamshire Council,Adults and Health,Ambient Support Limited,1000171,Extra Care,Transfer Payments,7003008824,15/03/2023,-1013.12
Buckinghamshire Council,Adults and Health,Ambient Support Limited,1000171,Extra Care,Transfer Payments,7003008824,15/03/2023,-1013.12
Buckinghamshire Council,Adults and Health,Ambient Support Limited,1000171,Extra Care,Transfer Payments,7003008824,15/03/2023,-1013.12
Buckinghamshire Council,Adults and Health,Ambient Support Limited,1000171,Extra Care,Transfer Payments,7003008824,15/03/2023,-1013.12
Buckinghamshire Council,Adults and Health,Ambient Support Limited,1000171,Extra Care,Transfer Payments,7003008824,15/03/2023,1042.80
Buckinghamshire Council,Adults and Health,Ambient Support Limited,1000171,Extra Care,Transfer Payments,7003008824,15/03/2023,1042.80
Buckinghamshire Council,Adults and Health,Ambient Support Limited,1000171,Extra Care,Transfer Payments,7003008824,15/03/2023,372.43
Buckinghamshire Council,Adults and Health,Ambient Support Limited,1000171,Extra Care,Transfer Payments,7003008824,15/03/2023,893.83
Buckinghamshire Council,Adults and Health,Ambient Support Limited,1000171,Extra Care,Transfer Payments,7003008824,15/03/2023,1042.80
Buckinghamshire Council,Adults and Health,Ambient Support Limited,1000171,Extra Care,Transfer Payments,7003008824,15/03/2023,1042.80
Buckinghamshire Council,Adults and Health,Ambient Support Limited,1000171,Extra Care,Transfer Payments,7003008824,15/03/2023,1042.80
Buckinghamshire Council,Adults and Health,Ambient Support Limited,1000171,Extra Care,Transfer Payments,7003008824,15/03/2023,1042.80
Buckinghamshire Council,Adults and Health,Ambient Support Limited,1000171,Extra Care,Transfer Payments,7003008824,15/03/2023,-1013.12
Buckinghamshire Council,Adults and Health,Ambient Support Limited,1000171,Extra Care,Transfer Payments,7003008824,15/03/2023,-1013.12
Buckinghamshire Council,Adults and Health,Ambient Support Limited,1000171,Extra Care,Transfer Payments,7003008824,15/03/2023,-1013.12
Buckinghamshire Council,Adults and Health,Ambient Support Limited,1000171,Extra Care,Transfer Payments,7003008824,15/03/2023,-434.19
Buckinghamshire Council,Adults and Health,Ambient Support Limited,1000171,Extra Care,Transfer Payments,7003008824,15/03/2023,-1013.12
Buckinghamshire Council,Adults and Health,Ambient Support Limited,1000171,Extra Care,Transfer Payments,7003008824,15/03/2023,-1013.12
Buckinghamshire Council,Adults and Health,Ambient Support Limited,1000171,Extra Care,Transfer Payments,7003008824,15/03/2023,-1013.12
Buckinghamshire Council,Adults and Health,Ambient Support Limited,1000171,Extra Care,Transfer Payments,7003008824,15/03/2023,-1013.12
Buckinghamshire Council,Adults and Health,Ambient Support Limited,1000171,Extra Care,Transfer Payments,7003008824,15/03/2023,-1013.12
Buckinghamshire Council,Adults and Health,Ambient Support Limited,1000171,Extra Care,Transfer Payments,7003008824,15/03/2023,1042.80
Buckinghamshire Council,Adults and Health,Ambient Support Limited,1000171,Extra Care,Transfer Payments,7003008824,15/03/2023,1042.80
Buckinghamshire Council,Adults and Health,Ambient Support Limited,1000171,Extra Care,Transfer Payments,7003008824,15/03/2023,1042.80
Buckinghamshire Council,Adults and Health,Ambient Support Limited,1000171,Extra Care,Transfer Payments,7003008824,15/03/2023,446.91
Buckinghamshire Council,Adults and Health,Ambient Support Limited,1000171,Extra Care,Transfer Payments,7003008824,15/03/2023,1042.80
Buckinghamshire Council,Adults and Health,Ambient Support Limited,1000171,Extra Care,Transfer Payments,7003008824,15/03/2023,1042.80
Buckinghamshire Council,Adults and Health,Ambient Support Limited,1000171,Extra Care,Transfer Payments,7003008824,15/03/2023,1042.80
Buckinghamshire Council,Adults and Health,Ambient Support Limited,1000171,Extra Care,Transfer Payments,7003008824,15/03/2023,1042.80
Buckinghamshire Council,Adults and Health,Ambient Support Limited,1000171,Extra Care,Transfer Payments,7003008824,15/03/2023,1042.80
Buckinghamshire Council,Adults and Health,Ambient Support Limited,1000171,Extra Care,Transfer Payments,7003008824,15/03/2023,-1013.12
Buckinghamshire Council,Adults and Health,Ambient Support Limited,1000171,Extra Care,Transfer Payments,7003008824,15/03/2023,-1013.12
Buckinghamshire Council,Adults and Health,Ambient Support Limited,1000171,Extra Care,Transfer Payments,7003008824,15/03/2023,-1013.12
Buckinghamshire Council,Adults and Health,Ambient Support Limited,1000171,Extra Care,Transfer Payments,7003008824,15/03/2023,-1013.12
Buckinghamshire Council,Adults and Health,Ambient Support Limited,1000171,Extra Care,Transfer Payments,7003008824,15/03/2023,-1013.12
Buckinghamshire Council,Adults and Health,Ambient Support Limited,1000171,Extra Care,Transfer Payments,7003008824,15/03/2023,-1013.12
Buckinghamshire Council,Adults and Health,Ambient Support Limited,1000171,Extra Care,Transfer Payments,7003008824,15/03/2023,-1013.12
Buckinghamshire Council,Adults and Health,Ambient Support Limited,1000171,Extra Care,Transfer Payments,7003008824,15/03/2023,-1013.12
Buckinghamshire Council,Adults and Health,Ambient Support Limited,1000171,Extra Care,Transfer Payments,7003008824,15/03/2023,-1013.12
Buckinghamshire Council,Adults and Health,Ambient Support Limited,1000171,Extra Care,Transfer Payments,7003008824,15/03/2023,1042.80
Buckinghamshire Council,Adults and Health,Ambient Support Limited,1000171,Extra Care,Transfer Payments,7003008824,15/03/2023,1042.80
Buckinghamshire Council,Adults and Health,Ambient Support Limited,1000171,Extra Care,Transfer Payments,7003008824,15/03/2023,1042.80
Buckinghamshire Council,Adults and Health,Ambient Support Limited,1000171,Extra Care,Transfer Payments,7003008824,15/03/2023,1042.80
Buckinghamshire Council,Adults and Health,Ambient Support Limited,1000171,Extra Care,Transfer Payments,7003008824,15/03/2023,1042.80
Buckinghamshire Council,Adults and Health,Ambient Support Limited,1000171,Extra Care,Transfer Payments,7003008824,15/03/2023,1042.80
Buckinghamshire Council,Adults and Health,Ambient Support Limited,1000171,Extra Care,Transfer Payments,7003008824,15/03/2023,1042.80
Buckinghamshire Council,Adults and Health,Ambient Support Limited,1000171,Extra Care,Transfer Payments,7003008824,15/03/2023,1042.80
Buckinghamshire Council,Adults and Health,Ambient Support Limited,1000171,Extra Care,Transfer Payments,7003008824,15/03/2023,1042.80
Buckinghamshire Council,Adults and Health,Ambient Support Limited,1000171,Extra Care,Transfer Payments,7003008824,15/03/2023,-1013.12
Buckinghamshire Council,Adults and Health,Ambient Support Limited,1000171,Extra Care,Transfer Payments,7003008824,15/03/2023,-1013.12
Buckinghamshire Council,Adults and Health,Ambient Support Limited,1000171,Extra Care,Transfer Payments,7003008824,15/03/2023,-1013.12
Buckinghamshire Council,Adults and Health,Ambient Support Limited,1000171,Extra Care,Transfer Payments,7003008824,15/03/2023,-1013.12
Buckinghamshire Council,Adults and Health,Ambient Support Limited,1000171,Extra Care,Transfer Payments,7003008824,15/03/2023,-1013.12
Buckinghamshire Council,Adults and Health,Ambient Support Limited,1000171,Extra Care,Transfer Payments,7003008824,15/03/2023,-1013.12
Buckinghamshire Council,Adults and Health,Ambient Support Limited,1000171,Extra Care,Transfer Payments,7003008824,15/03/2023,-1013.12
Buckinghamshire Council,Adults and Health,Ambient Support Limited,1000171,Extra Care,Transfer Payments,7003008824,15/03/2023,-1013.12
Buckinghamshire Council,Adults and Health,Ambient Support Limited,1000171,Extra Care,Transfer Payments,7003008824,15/03/2023,-1013.12
Buckinghamshire Council,Adults and Health,Ambient Support Limited,1000171,Extra Care,Transfer Payments,7003008824,15/03/2023,1042.80
Buckinghamshire Council,Adults and Health,Ambient Support Limited,1000171,Extra Care,Transfer Payments,7003008824,15/03/2023,1042.80
Buckinghamshire Council,Adults and Health,Ambient Support Limited,1000171,Extra Care,Transfer Payments,7003008824,15/03/2023,1042.80
Buckinghamshire Council,Adults and Health,Ambient Support Limited,1000171,Extra Care,Transfer Payments,7003008824,15/03/2023,1042.80
Buckinghamshire Council,Adults and Health,Ambient Support Limited,1000171,Extra Care,Transfer Payments,7003008824,15/03/2023,1042.80
Buckinghamshire Council,Adults and Health,Ambient Support Limited,1000171,Extra Care,Transfer Payments,7003008824,15/03/2023,1042.80
Buckinghamshire Council,Adults and Health,Ambient Support Limited,1000171,Extra Care,Transfer Payments,7003008824,15/03/2023,1042.80
Buckinghamshire Council,Adults and Health,Ambient Support Limited,1000171,Extra Care,Transfer Payments,7003008824,15/03/2023,1042.80
Buckinghamshire Council,Adults and Health,Ambient Support Limited,1000171,Extra Care,Transfer Payments,7003008824,15/03/2023,1042.80
Buckinghamshire Council,Adults and Health,Ambient Support Limited,1000171,Extra Care,Transfer Payments,7003008824,15/03/2023,-1013.12
Buckinghamshire Council,Adults and Health,Ambient Support Limited,1000171,Extra Care,Transfer Payments,7003008824,15/03/2023,-1013.12
Buckinghamshire Council,Adults and Health,Ambient Support Limited,1000171,Extra Care,Transfer Payments,7003008824,15/03/2023,-1013.12
Buckinghamshire Council,Adults and Health,Ambient Support Limited,1000171,Extra Care,Transfer Payments,7003008824,15/03/2023,-1013.12
Buckinghamshire Council,Adults and Health,Ambient Support Limited,1000171,Extra Care,Transfer Payments,7003008824,15/03/2023,-1013.12
Buckinghamshire Council,Adults and Health,Ambient Support Limited,1000171,Extra Care,Transfer Payments,7003008824,15/03/2023,-1013.12
Buckinghamshire Council,Adults and Health,Ambient Support Limited,1000171,Extra Care,Transfer Payments,7003008824,15/03/2023,-1013.12
Buckinghamshire Council,Adults and Health,Ambient Support Limited,1000171,Extra Care,Transfer Payments,7003008824,15/03/2023,-1013.12
Buckinghamshire Council,Adults and Health,Ambient Support Limited,1000171,Extra Care,Transfer Payments,7003008824,15/03/2023,-1013.12
Buckinghamshire Council,Adults and Health,Ambient Support Limited,1000171,Extra Care,Transfer Payments,7003008824,15/03/2023,1042.80
Buckinghamshire Council,Adults and Health,Ambient Support Limited,1000171,Extra Care,Transfer Payments,7003008824,15/03/2023,1042.80
Buckinghamshire Council,Adults and Health,Ambient Support Limited,1000171,Extra Care,Transfer Payments,7003008824,15/03/2023,1042.80
Buckinghamshire Council,Adults and Health,Ambient Support Limited,1000171,Extra Care,Transfer Payments,7003008824,15/03/2023,1042.80
Buckinghamshire Council,Adults and Health,Ambient Support Limited,1000171,Extra Care,Transfer Payments,7003008824,15/03/2023,1042.80
Buckinghamshire Council,Adults and Health,Ambient Support Limited,1000171,Extra Care,Transfer Payments,7003008824,15/03/2023,1042.80
Buckinghamshire Council,Adults and Health,Ambient Support Limited,1000171,Extra Care,Transfer Payments,7003008824,15/03/2023,1042.80
Buckinghamshire Council,Adults and Health,Ambient Support Limited,1000171,Extra Care,Transfer Payments,7003008824,15/03/2023,1042.80
Buckinghamshire Council,Adults and Health,Ambient Support Limited,1000171,Extra Care,Transfer Payments,7003008824,15/03/2023,1042.80
Buckinghamshire Council,Adults and Health,Ambient Support Limited,1000171,Extra Care,Transfer Payments,7003008824,15/03/2023,-1013.12
Buckinghamshire Council,Adults and Health,Ambient Support Limited,1000171,Extra Care,Transfer Payments,7003008824,15/03/2023,-1013.12
Buckinghamshire Council,Adults and Health,Ambient Support Limited,1000171,Extra Care,Transfer Payments,7003008824,15/03/2023,-1013.12
Buckinghamshire Council,Adults and Health,Ambient Support Limited,1000171,Extra Care,Transfer Payments,7003008824,15/03/2023,-1013.12
Buckinghamshire Council,Adults and Health,Ambient Support Limited,1000171,Extra Care,Transfer Payments,7003008824,15/03/2023,-1013.12
Buckinghamshire Council,Adults and Health,Ambient Support Limited,1000171,Extra Care,Transfer Payments,7003008824,15/03/2023,-1013.12
Buckinghamshire Council,Adults and Health,Ambient Support Limited,1000171,Extra Care,Transfer Payments,7003008824,15/03/2023,-1013.12
Buckinghamshire Council,Adults and Health,Ambient Support Limited,1000171,Extra Care,Transfer Payments,7003008824,15/03/2023,-1013.12
Buckinghamshire Council,Adults and Health,Ambient Support Limited,1000171,Extra Care,Transfer Payments,7003008824,15/03/2023,-1013.12
Buckinghamshire Council,Adults and Health,Ambient Support Limited,1000171,Extra Care,Transfer Payments,7003008824,15/03/2023,1042.80
Buckinghamshire Council,Adults and Health,Ambient Support Limited,1000171,Extra Care,Transfer Payments,7003008824,15/03/2023,1042.80
Buckinghamshire Council,Adults and Health,Ambient Support Limited,1000171,Extra Care,Transfer Payments,7003008824,15/03/2023,1042.80
Buckinghamshire Council,Adults and Health,Ambient Support Limited,1000171,Extra Care,Transfer Payments,7003008824,15/03/2023,1042.80
Buckinghamshire Council,Adults and Health,Ambient Support Limited,1000171,Extra Care,Transfer Payments,7003008824,15/03/2023,1042.80
Buckinghamshire Council,Adults and Health,Ambient Support Limited,1000171,Extra Care,Transfer Payments,7003008824,15/03/2023,1042.80
Buckinghamshire Council,Adults and Health,Ambient Support Limited,1000171,Extra Care,Transfer Payments,7003008824,15/03/2023,1042.80
Buckinghamshire Council,Adults and Health,Ambient Support Limited,1000171,Extra Care,Transfer Payments,7003008824,15/03/2023,1042.80
Buckinghamshire Council,Adults and Health,Ambient Support Limited,1000171,Extra Care,Transfer Payments,7003008824,15/03/2023,1042.80
Buckinghamshire Council,Adults and Health,Ambient Support Limited,1000171,Extra Care,Transfer Payments,7003008824,15/03/2023,-1013.12
Buckinghamshire Council,Adults and Health,Ambient Support Limited,1000171,Extra Care,Transfer Payments,7003008824,15/03/2023,-1013.12
Buckinghamshire Council,Adults and Health,Ambient Support Limited,1000171,Extra Care,Transfer Payments,7003008824,15/03/2023,-1013.12
Buckinghamshire Council,Adults and Health,Ambient Support Limited,1000171,Extra Care,Transfer Payments,7003008824,15/03/2023,-1013.12
Buckinghamshire Council,Adults and Health,Ambient Support Limited,1000171,Extra Care,Transfer Payments,7003008824,15/03/2023,-1013.12
Buckinghamshire Council,Adults and Health,Ambient Support Limited,1000171,Extra Care,Transfer Payments,7003008824,15/03/2023,-1013.12
Buckinghamshire Council,Adults and Health,Ambient Support Limited,1000171,Extra Care,Transfer Payments,7003008824,15/03/2023,-1013.12
Buckinghamshire Council,Adults and Health,Ambient Support Limited,1000171,Extra Care,Transfer Payments,7003008824,15/03/2023,-1013.12
Buckinghamshire Council,Adults and Health,Ambient Support Limited,1000171,Extra Care,Transfer Payments,7003008824,15/03/2023,-1013.12
Buckinghamshire Council,Adults and Health,Ambient Support Limited,1000171,Extra Care,Transfer Payments,7003008824,15/03/2023,1042.80
Buckinghamshire Council,Adults and Health,Ambient Support Limited,1000171,Extra Care,Transfer Payments,7003008824,15/03/2023,1042.80
Buckinghamshire Council,Adults and Health,Ambient Support Limited,1000171,Extra Care,Transfer Payments,7003008824,15/03/2023,1042.80
Buckinghamshire Council,Adults and Health,Ambient Support Limited,1000171,Extra Care,Transfer Payments,7003008824,15/03/2023,1042.80
Buckinghamshire Council,Adults and Health,Ambient Support Limited,1000171,Extra Care,Transfer Payments,7003008824,15/03/2023,1042.80
Buckinghamshire Council,Adults and Health,Ambient Support Limited,1000171,Extra Care,Transfer Payments,7003008824,15/03/2023,1042.80
Buckinghamshire Council,Adults and Health,Ambient Support Limited,1000171,Extra Care,Transfer Payments,7003008824,15/03/2023,1042.80
Buckinghamshire Council,Adults and Health,Ambient Support Limited,1000171,Extra Care,Transfer Payments,7003008824,15/03/2023,1042.80
Buckinghamshire Council,Adults and Health,Ambient Support Limited,1000171,Extra Care,Transfer Payments,7003008824,15/03/2023,1042.80
Buckinghamshire Council,Adults and Health,Ambient Support Limited,1000171,Extra Care,Transfer Payments,7003008824,15/03/2023,1042.80
Buckinghamshire Council,Adults and Health,Ambient Support Limited,1000171,Extra Care,Transfer Payments,7003008824,15/03/2023,1042.80
Buckinghamshire Council,Adults and Health,Ambient Support Limited,1000171,Extra Care,Transfer Payments,7003008824,15/03/2023,1042.80
Buckinghamshire Council,Adults and Health,Ambient Support Limited,1000171,Extra Care,Transfer Payments,7003008824,15/03/2023,1042.80
Buckinghamshire Council,Adults and Health,Ambient Support Limited,1000171,Extra Care,Transfer Payments,7003008824,15/03/2023,1042.80
Buckinghamshire Council,Adults and Health,Ambient Support Limited,1000171,Extra Care,Transfer Payments,7003008824,15/03/2023,1042.80
Buckinghamshire Council,Adults and Health,Ambient Support Limited,1000171,Extra Care,Transfer Payments,7003008824,15/03/2023,1042.80
Buckinghamshire Council,Adults and Health,Ambient Support Limited,1000171,Extra Care,Transfer Payments,7003008824,15/03/2023,1042.80
Buckinghamshire Council,Adults and Health,Ambient Support Limited,1000171,Extra Care,Transfer Payments,7003008824,15/03/2023,1042.80
Buckinghamshire Council,Adults and Health,Ambient Support Limited,1000171,Extra Care,Transfer Payments,7003008824,15/03/2023,-6947.11
Buckinghamshire Council,Adults and Health,Ambient Support Limited,1000171,Extra Care,Transfer Payments,7003008824,15/03/2023,7150.63
Buckinghamshire Council,Adults and Health,Ambient Support Limited,1000171,Extra Care,Transfer Payments,7003008824,15/03/2023,-8104.96
Buckinghamshire Council,Adults and Health,Ambient Support Limited,1000171,Extra Care,Transfer Payments,7003008824,15/03/2023,8342.40
Buckinghamshire Council,Adults and Health,Ambient Support Limited,1000171,Extra Care,Transfer Payments,7003008824,15/03/2023,-8104.96
Buckinghamshire Council,Adults and Health,Ambient Support Limited,1000171,Extra Care,Transfer Payments,7003008824,15/03/2023,8342.40
Buckinghamshire Council,Adults and Health,Ambient Support Limited,1000171,Extra Care,Transfer Payments,7003008824,15/03/2023,-8104.96
Buckinghamshire Council,Adults and Health,Ambient Support Limited,1000171,Extra Care,Transfer Payments,7003008824,15/03/2023,8342.40
Buckinghamshire Council,Adults and Health,Ambient Support Limited,1000171,Extra Care,Transfer Payments,7003008824,15/03/2023,-5897.81
Buckinghamshire Council,Adults and Health,Ambient Support Limited,1000171,Extra Care,Transfer Payments,7003008824,15/03/2023,6070.59
Buckinghamshire Council,Adults and Health,Ambient Support Limited,1000171,Extra Care,Transfer Payments,7003008824,15/03/2023,-4848.50
Buckinghamshire Council,Adults and Health,Ambient Support Limited,1000171,Extra Care,Transfer Payments,7003008824,15/03/2023,4990.54
Buckinghamshire Council,Adults and Health,Ambient Support Limited,1000171,Extra Care,Transfer Payments,7003008824,15/03/2023,-3618.29
Buckinghamshire Council,Adults and Health,Ambient Support Limited,1000171,Extra Care,Transfer Payments,7003008824,15/03/2023,3724.29
Buckinghamshire Council,Adults and Health,Ambient Support Limited,1000171,Extra Care,Transfer Payments,7003008824,15/03/2023,-3039.36
Buckinghamshire Council,Adults and Health,Ambient Support Limited,1000171,Extra Care,Transfer Payments,7003008824,15/03/2023,3128.40
Buckinghamshire Council,Adults and Health,Ambient Support Limited,1000171,Extra Care,Transfer Payments,7003008824,15/03/2023,-3039.36
Buckinghamshire Council,Adults and Health,Ambient Support Limited,1000171,Extra Care,Transfer Payments,7003008824,15/03/2023,3128.40
Buckinghamshire Council,Adults and Health,Ambient Support Limited,1000171,Extra Care,Transfer Payments,7003008824,15/03/2023,-3039.36
Buckinghamshire Council,Adults and Health,Ambient Support Limited,1000171,Extra Care,Transfer Payments,7003008824,15/03/2023,3128.40
Buckinghamshire Council,Adults and Health,Ambient Support Limited,1000171,Extra Care,Transfer Payments,7003008824,15/03/2023,-3039.36
Buckinghamshire Council,Adults and Health,Ambient Support Limited,1000171,Extra Care,Transfer Payments,7003008824,15/03/2023,3128.40
Buckinghamshire Council,Adults and Health,Ambient Support Limited,1000171,Extra Care,Transfer Payments,7003008824,15/03/2023,-3039.36
Buckinghamshire Council,Adults and Health,Ambient Support Limited,1000171,Extra Care,Transfer Payments,7003008824,15/03/2023,3128.40
Buckinghamshire Council,Adults and Health,Ambient Support Limited,1000171,Extra Care,Transfer Payments,7003008824,15/03/2023,3128.40
Buckinghamshire Council,Adults and Health,Ambient Support Limited,1000171,Extra Care,Transfer Payments,7003008825,15/03/2023,447.60
Buckinghamshire Council,Adults and Health,Ambient Support Limited,1000171,Extra Care,Transfer Payments,7003008825,15/03/2023,328.24
Buckinghamshire Council,Adults and Health,Ambient Support Limited,1000171,Extra Care,Transfer Payments,7003008825,15/03/2023,746.00
Buckinghamshire Council,Adults and Health,Ambient Support Limited,1000171,Extra Care,Transfer Payments,7003008825,15/03/2023,328.24
Buckinghamshire Council,Adults and Health,Ambient Support Limited,1000171,Extra Care,Transfer Payments,7003008825,15/03/2023,278.12
Buckinghamshire Council,Adults and Health,Ambient Support Limited,1000171,Extra Care,Transfer Payments,7003008825,15/03/2023,209.16
Buckinghamshire Council,Adults and Health,Ambient Support Limited,1000171,Extra Care,Transfer Payments,7003008825,15/03/2023,649.00
Buckinghamshire Council,Adults and Health,Ambient Support Limited,1000171,Extra Care,Transfer Payments,7003008825,15/03/2023,-705.26
Buckinghamshire Council,Adults and Health,Ambient Support Limited,1000171,Extra Care,Transfer Payments,7003008825,15/03/2023,-705.26
Buckinghamshire Council,Adults and Health,Ambient Support Limited,1000171,Extra Care,Transfer Payments,7003008825,15/03/2023,-705.26
Buckinghamshire Council,Adults and Health,Ambient Support Limited,1000171,Extra Care,Transfer Payments,7003008825,15/03/2023,-705.26
Buckinghamshire Council,Adults and Health,Ambient Support Limited,1000171,Extra Care,Transfer Payments,7003008825,15/03/2023,-705.26
Buckinghamshire Council,Adults and Health,Ambient Support Limited,1000171,Extra Care,Transfer Payments,7003008825,15/03/2023,-705.26
Buckinghamshire Council,Adults and Health,Ambient Support Limited,1000171,Extra Care,Transfer Payments,7003008825,15/03/2023,726.00
Buckinghamshire Council,Adults and Health,Ambient Support Limited,1000171,Extra Care,Transfer Payments,7003008825,15/03/2023,726.00
Buckinghamshire Council,Adults and Health,Ambient Support Limited,1000171,Extra Care,Transfer Payments,7003008825,15/03/2023,726.00
Buckinghamshire Council,Adults and Health,Ambient Support Limited,1000171,Extra Care,Transfer Payments,7003008825,15/03/2023,726.00
Buckinghamshire Council,Adults and Health,Ambient Support Limited,1000171,Extra Care,Transfer Payments,7003008825,15/03/2023,726.00
Buckinghamshire Council,Adults and Health,Ambient Support Limited,1000171,Extra Care,Transfer Payments,7003008825,15/03/2023,726.00
Buckinghamshire Council,Adults and Health,Ambient Support Limited,1000171,Extra Care,Transfer Payments,7003008825,15/03/2023,-822.80
Buckinghamshire Council,Adults and Health,Ambient Support Limited,1000171,Extra Care,Transfer Payments,7003008825,15/03/2023,-822.80
Buckinghamshire Council,Adults and Health,Ambient Support Limited,1000171,Extra Care,Transfer Payments,7003008825,15/03/2023,-822.80
Buckinghamshire Council,Adults and Health,Ambient Support Limited,1000171,Extra Care,Transfer Payments,7003008825,15/03/2023,-822.80
Buckinghamshire Council,Adults and Health,Ambient Support Limited,1000171,Extra Care,Transfer Payments,7003008825,15/03/2023,-822.80
Buckinghamshire Council,Adults and Health,Ambient Support Limited,1000171,Extra Care,Transfer Payments,7003008825,15/03/2023,-822.80
Buckinghamshire Council,Adults and Health,Ambient Support Limited,1000171,Extra Care,Transfer Payments,7003008825,15/03/2023,847.00
Buckinghamshire Council,Adults and Health,Ambient Support Limited,1000171,Extra Care,Transfer Payments,7003008825,15/03/2023,847.00
Buckinghamshire Council,Adults and Health,Ambient Support Limited,1000171,Extra Care,Transfer Payments,7003008825,15/03/2023,847.00
Buckinghamshire Council,Adults and Health,Ambient Support Limited,1000171,Extra Care,Transfer Payments,7003008825,15/03/2023,847.00
Buckinghamshire Council,Adults and Health,Ambient Support Limited,1000171,Extra Care,Transfer Payments,7003008825,15/03/2023,847.00
Buckinghamshire Council,Adults and Health,Ambient Support Limited,1000171,Extra Care,Transfer Payments,7003008825,15/03/2023,847.00
Buckinghamshire Council,Adults and Health,Ambient Support Limited,1000171,Extra Care,Transfer Payments,7003008825,15/03/2023,-822.80
Buckinghamshire Council,Adults and Health,Ambient Support Limited,1000171,Extra Care,Transfer Payments,7003008825,15/03/2023,-822.80
Buckinghamshire Council,Adults and Health,Ambient Support Limited,1000171,Extra Care,Transfer Payments,7003008825,15/03/2023,-822.80
Buckinghamshire Council,Adults and Health,Ambient Support Limited,1000171,Extra Care,Transfer Payments,7003008825,15/03/2023,-822.80
Buckinghamshire Council,Adults and Health,Ambient Support Limited,1000171,Extra Care,Transfer Payments,7003008825,15/03/2023,-822.80
Buckinghamshire Council,Adults and Health,Ambient Support Limited,1000171,Extra Care,Transfer Payments,7003008825,15/03/2023,-558.33
Buckinghamshire Council,Adults and Health,Ambient Support Limited,1000171,Extra Care,Transfer Payments,7003008825,15/03/2023,847.00
Buckinghamshire Council,Adults and Health,Ambient Support Limited,1000171,Extra Care,Transfer Payments,7003008825,15/03/2023,847.00
Buckinghamshire Council,Adults and Health,Ambient Support Limited,1000171,Extra Care,Transfer Payments,7003008825,15/03/2023,847.00
Buckinghamshire Council,Adults and Health,Ambient Support Limited,1000171,Extra Care,Transfer Payments,7003008825,15/03/2023,847.00
Buckinghamshire Council,Adults and Health,Ambient Support Limited,1000171,Extra Care,Transfer Payments,7003008825,15/03/2023,847.00
Buckinghamshire Council,Adults and Health,Ambient Support Limited,1000171,Extra Care,Transfer Payments,7003008825,15/03/2023,574.75
Buckinghamshire Council,Adults and Health,Ambient Support Limited,1000171,Extra Care,Transfer Payments,7003008825,15/03/2023,-822.80
Buckinghamshire Council,Adults and Health,Ambient Support Limited,1000171,Extra Care,Transfer Payments,7003008825,15/03/2023,-411.40
Buckinghamshire Council,Adults and Health,Ambient Support Limited,1000171,Extra Care,Transfer Payments,7003008825,15/03/2023,-822.80
Buckinghamshire Council,Adults and Health,Ambient Support Limited,1000171,Extra Care,Transfer Payments,7003008825,15/03/2023,-822.80
Buckinghamshire Council,Adults and Health,Ambient Support Limited,1000171,Extra Care,Transfer Payments,7003008825,15/03/2023,-822.80
Buckinghamshire Council,Adults and Health,Ambient Support Limited,1000171,Extra Care,Transfer Payments,7003008825,15/03/2023,-205.70
Buckinghamshire Council,Adults and Health,Ambient Support Limited,1000171,Extra Care,Transfer Payments,7003008825,15/03/2023,-793.41
Buckinghamshire Council,Adults and Health,Ambient Support Limited,1000171,Extra Care,Transfer Payments,7003008825,15/03/2023,-734.64
Buckinghamshire Council,Adults and Health,Ambient Support Limited,1000171,Extra Care,Transfer Payments,7003008825,15/03/2023,847.00
Buckinghamshire Council,Adults and Health,Ambient Support Limited,1000171,Extra Care,Transfer Payments,7003008825,15/03/2023,847.00
Buckinghamshire Council,Adults and Health,Ambient Support Limited,1000171,Extra Care,Transfer Payments,7003008825,15/03/2023,847.00
Buckinghamshire Council,Adults and Health,Ambient Support Limited,1000171,Extra Care,Transfer Payments,7003008825,15/03/2023,847.00
Buckinghamshire Council,Adults and Health,Ambient Support Limited,1000171,Extra Care,Transfer Payments,7003008825,15/03/2023,423.50
Buckinghamshire Council,Adults and Health,Ambient Support Limited,1000171,Extra Care,Transfer Payments,7003008825,15/03/2023,816.75
Buckinghamshire Council,Adults and Health,Ambient Support Limited,1000171,Extra Care,Transfer Payments,7003008825,15/03/2023,756.25
Buckinghamshire Council,Adults and Health,Ambient Support Limited,1000171,Extra Care,Transfer Payments,7003008825,15/03/2023,211.75
Buckinghamshire Council,Adults and Health,Ambient Support Limited,1000171,Extra Care,Transfer Payments,7003008825,15/03/2023,-822.80
Buckinghamshire Council,Adults and Health,Ambient Support Limited,1000171,Extra Care,Transfer Payments,7003008825,15/03/2023,-822.80
Buckinghamshire Council,Adults and Health,Ambient Support Limited,1000171,Extra Care,Transfer Payments,7003008825,15/03/2023,-822.80
Buckinghamshire Council,Adults and Health,Ambient Support Limited,1000171,Extra Care,Transfer Payments,7003008825,15/03/2023,-822.80
Buckinghamshire Council,Adults and Health,Ambient Support Limited,1000171,Extra Care,Transfer Payments,7003008825,15/03/2023,-822.80
Buckinghamshire Council,Adults and Health,Ambient Support Limited,1000171,Extra Care,Transfer Payments,7003008825,15/03/2023,-822.80
Buckinghamshire Council,Adults and Health,Ambient Support Limited,1000171,Extra Care,Transfer Payments,7003008825,15/03/2023,-822.80
Buckinghamshire Council,Adults and Health,Ambient Support Limited,1000171,Extra Care,Transfer Payments,7003008825,15/03/2023,847.00
Buckinghamshire Council,Adults and Health,Ambient Support Limited,1000171,Extra Care,Transfer Payments,7003008825,15/03/2023,847.00
Buckinghamshire Council,Adults and Health,Ambient Support Limited,1000171,Extra Care,Transfer Payments,7003008825,15/03/2023,847.00
Buckinghamshire Council,Adults and Health,Ambient Support Limited,1000171,Extra Care,Transfer Payments,7003008825,15/03/2023,847.00
Buckinghamshire Council,Adults and Health,Ambient Support Limited,1000171,Extra Care,Transfer Payments,7003008825,15/03/2023,847.00
Buckinghamshire Council,Adults and Health,Ambient Support Limited,1000171,Extra Care,Transfer Payments,7003008825,15/03/2023,847.00
Buckinghamshire Council,Adults and Health,Ambient Support Limited,1000171,Extra Care,Transfer Payments,7003008825,15/03/2023,847.00
Buckinghamshire Council,Adults and Health,Ambient Support Limited,1000171,Extra Care,Transfer Payments,7003008825,15/03/2023,-822.80
Buckinghamshire Council,Adults and Health,Ambient Support Limited,1000171,Extra Care,Transfer Payments,7003008825,15/03/2023,-822.80
Buckinghamshire Council,Adults and Health,Ambient Support Limited,1000171,Extra Care,Transfer Payments,7003008825,15/03/2023,-822.80
Buckinghamshire Council,Adults and Health,Ambient Support Limited,1000171,Extra Care,Transfer Payments,7003008825,15/03/2023,-822.80
Buckinghamshire Council,Adults and Health,Ambient Support Limited,1000171,Extra Care,Transfer Payments,7003008825,15/03/2023,-822.80
Buckinghamshire Council,Adults and Health,Ambient Support Limited,1000171,Extra Care,Transfer Payments,7003008825,15/03/2023,-822.80
Buckinghamshire Council,Adults and Health,Ambient Support Limited,1000171,Extra Care,Transfer Payments,7003008825,15/03/2023,-822.80
Buckinghamshire Council,Adults and Health,Ambient Support Limited,1000171,Extra Care,Transfer Payments,7003008825,15/03/2023,847.00
Buckinghamshire Council,Adults and Health,Ambient Support Limited,1000171,Extra Care,Transfer Payments,7003008825,15/03/2023,847.00
Buckinghamshire Council,Adults and Health,Ambient Support Limited,1000171,Extra Care,Transfer Payments,7003008825,15/03/2023,847.00
Buckinghamshire Council,Adults and Health,Ambient Support Limited,1000171,Extra Care,Transfer Payments,7003008825,15/03/2023,847.00
Buckinghamshire Council,Adults and Health,Ambient Support Limited,1000171,Extra Care,Transfer Payments,7003008825,15/03/2023,847.00
Buckinghamshire Council,Adults and Health,Ambient Support Limited,1000171,Extra Care,Transfer Payments,7003008825,15/03/2023,847.00
Buckinghamshire Council,Adults and Health,Ambient Support Limited,1000171,Extra Care,Transfer Payments,7003008825,15/03/2023,847.00
Buckinghamshire Council,Adults and Health,Ambient Support Limited,1000171,Extra Care,Transfer Payments,7003008825,15/03/2023,-822.80
Buckinghamshire Council,Adults and Health,Ambient Support Limited,1000171,Extra Care,Transfer Payments,7003008825,15/03/2023,-822.80
Buckinghamshire Council,Adults and Health,Ambient Support Limited,1000171,Extra Care,Transfer Payments,7003008825,15/03/2023,-822.80
Buckinghamshire Council,Adults and Health,Ambient Support Limited,1000171,Extra Care,Transfer Payments,7003008825,15/03/2023,-822.80
Buckinghamshire Council,Adults and Health,Ambient Support Limited,1000171,Extra Care,Transfer Payments,7003008825,15/03/2023,-822.80
Buckinghamshire Council,Adults and Health,Ambient Support Limited,1000171,Extra Care,Transfer Payments,7003008825,15/03/2023,-822.80
Buckinghamshire Council,Adults and Health,Ambient Support Limited,1000171,Extra Care,Transfer Payments,7003008825,15/03/2023,-822.80
Buckinghamshire Council,Adults and Health,Ambient Support Limited,1000171,Extra Care,Transfer Payments,7003008825,15/03/2023,847.00
Buckinghamshire Council,Adults and Health,Ambient Support Limited,1000171,Extra Care,Transfer Payments,7003008825,15/03/2023,847.00
Buckinghamshire Council,Adults and Health,Ambient Support Limited,1000171,Extra Care,Transfer Payments,7003008825,15/03/2023,847.00
Buckinghamshire Council,Adults and Health,Ambient Support Limited,1000171,Extra Care,Transfer Payments,7003008825,15/03/2023,847.00
Buckinghamshire Council,Adults and Health,Ambient Support Limited,1000171,Extra Care,Transfer Payments,7003008825,15/03/2023,847.00
Buckinghamshire Council,Adults and Health,Ambient Support Limited,1000171,Extra Care,Transfer Payments,7003008825,15/03/2023,847.00
Buckinghamshire Council,Adults and Health,Ambient Support Limited,1000171,Extra Care,Transfer Payments,7003008825,15/03/2023,847.00
Buckinghamshire Council,Adults and Health,Ambient Support Limited,1000171,Extra Care,Transfer Payments,7003008825,15/03/2023,-822.80
Buckinghamshire Council,Adults and Health,Ambient Support Limited,1000171,Extra Care,Transfer Payments,7003008825,15/03/2023,-88.16
Buckinghamshire Council,Adults and Health,Ambient Support Limited,1000171,Extra Care,Transfer Payments,7003008825,15/03/2023,-822.80
Buckinghamshire Council,Adults and Health,Ambient Support Limited,1000171,Extra Care,Transfer Payments,7003008825,15/03/2023,-822.80
Buckinghamshire Council,Adults and Health,Ambient Support Limited,1000171,Extra Care,Transfer Payments,7003008825,15/03/2023,-822.80
Buckinghamshire Council,Adults and Health,Ambient Support Limited,1000171,Extra Care,Transfer Payments,7003008825,15/03/2023,-822.80
Buckinghamshire Council,Adults and Health,Ambient Support Limited,1000171,Extra Care,Transfer Payments,7003008825,15/03/2023,-822.80
Buckinghamshire Council,Adults and Health,Ambient Support Limited,1000171,Extra Care,Transfer Payments,7003008825,15/03/2023,-822.80
Buckinghamshire Council,Adults and Health,Ambient Support Limited,1000171,Extra Care,Transfer Payments,7003008825,15/03/2023,847.00
Buckinghamshire Council,Adults and Health,Ambient Support Limited,1000171,Extra Care,Transfer Payments,7003008825,15/03/2023,847.00
Buckinghamshire Council,Adults and Health,Ambient Support Limited,1000171,Extra Care,Transfer Payments,7003008825,15/03/2023,847.00
Buckinghamshire Council,Adults and Health,Ambient Support Limited,1000171,Extra Care,Transfer Payments,7003008825,15/03/2023,847.00
Buckinghamshire Council,Adults and Health,Ambient Support Limited,1000171,Extra Care,Transfer Payments,7003008825,15/03/2023,90.75
Buckinghamshire Council,Adults and Health,Ambient Support Limited,1000171,Extra Care,Transfer Payments,7003008825,15/03/2023,847.00
Buckinghamshire Council,Adults and Health,Ambient Support Limited,1000171,Extra Care,Transfer Payments,7003008825,15/03/2023,847.00
Buckinghamshire Council,Adults and Health,Ambient Support Limited,1000171,Extra Care,Transfer Payments,7003008825,15/03/2023,847.00
Buckinghamshire Council,Adults and Health,Ambient Support Limited,1000171,Extra Care,Transfer Payments,7003008825,15/03/2023,-822.80
Buckinghamshire Council,Adults and Health,Ambient Support Limited,1000171,Extra Care,Transfer Payments,7003008825,15/03/2023,-499.56
Buckinghamshire Council,Adults and Health,Ambient Support Limited,1000171,Extra Care,Transfer Payments,7003008825,15/03/2023,-822.80
Buckinghamshire Council,Adults and Health,Ambient Support Limited,1000171,Extra Care,Transfer Payments,7003008825,15/03/2023,-822.80
Buckinghamshire Council,Adults and Health,Ambient Support Limited,1000171,Extra Care,Transfer Payments,7003008825,15/03/2023,-822.80
Buckinghamshire Council,Adults and Health,Ambient Support Limited,1000171,Extra Care,Transfer Payments,7003008825,15/03/2023,-822.80
Buckinghamshire Council,Adults and Health,Ambient Support Limited,1000171,Extra Care,Transfer Payments,7003008825,15/03/2023,-822.80
Buckinghamshire Council,Adults and Health,Ambient Support Limited,1000171,Extra Care,Transfer Payments,7003008825,15/03/2023,-822.80
Buckinghamshire Council,Adults and Health,Ambient Support Limited,1000171,Extra Care,Transfer Payments,7003008825,15/03/2023,-822.80
Buckinghamshire Council,Adults and Health,Ambient Support Limited,1000171,Extra Care,Transfer Payments,7003008825,15/03/2023,847.00
Buckinghamshire Council,Adults and Health,Ambient Support Limited,1000171,Extra Care,Transfer Payments,7003008825,15/03/2023,847.00
Buckinghamshire Council,Adults and Health,Ambient Support Limited,1000171,Extra Care,Transfer Payments,7003008825,15/03/2023,847.00
Buckinghamshire Council,Adults and Health,Ambient Support Limited,1000171,Extra Care,Transfer Payments,7003008825,15/03/2023,847.00
Buckinghamshire Council,Adults and Health,Ambient Support Limited,1000171,Extra Care,Transfer Payments,7003008825,15/03/2023,847.00
Buckinghamshire Council,Adults and Health,Ambient Support Limited,1000171,Extra Care,Transfer Payments,7003008825,15/03/2023,514.25
Buckinghamshire Council,Adults and Health,Ambient Support Limited,1000171,Extra Care,Transfer Payments,7003008825,15/03/2023,847.00
Buckinghamshire Council,Adults and Health,Ambient Support Limited,1000171,Extra Care,Transfer Payments,7003008825,15/03/2023,847.00
Buckinghamshire Council,Adults and Health,Ambient Support Limited,1000171,Extra Care,Transfer Payments,7003008825,15/03/2023,847.00
Buckinghamshire Council,Adults and Health,Ambient Support Limited,1000171,Extra Care,Transfer Payments,7003008825,15/03/2023,-822.80
Buckinghamshire Council,Adults and Health,Ambient Support Limited,1000171,Extra Care,Transfer Payments,7003008825,15/03/2023,-822.80
Buckinghamshire Council,Adults and Health,Ambient Support Limited,1000171,Extra Care,Transfer Payments,7003008825,15/03/2023,-822.80
Buckinghamshire Council,Adults and Health,Ambient Support Limited,1000171,Extra Care,Transfer Payments,7003008825,15/03/2023,-822.80
Buckinghamshire Council,Adults and Health,Ambient Support Limited,1000171,Extra Care,Transfer Payments,7003008825,15/03/2023,-822.80
Buckinghamshire Council,Adults and Health,Ambient Support Limited,1000171,Extra Care,Transfer Payments,7003008825,15/03/2023,-822.80
Buckinghamshire Council,Adults and Health,Ambient Support Limited,1000171,Extra Care,Transfer Payments,7003008825,15/03/2023,-822.80
Buckinghamshire Council,Adults and Health,Ambient Support Limited,1000171,Extra Care,Transfer Payments,7003008825,15/03/2023,-822.80
Buckinghamshire Council,Adults and Health,Ambient Support Limited,1000171,Extra Care,Transfer Payments,7003008825,15/03/2023,-822.80
Buckinghamshire Council,Adults and Health,Ambient Support Limited,1000171,Extra Care,Transfer Payments,7003008825,15/03/2023,847.00
Buckinghamshire Council,Adults and Health,Ambient Support Limited,1000171,Extra Care,Transfer Payments,7003008825,15/03/2023,847.00
Buckinghamshire Council,Adults and Health,Ambient Support Limited,1000171,Extra Care,Transfer Payments,7003008825,15/03/2023,847.00
Buckinghamshire Council,Adults and Health,Ambient Support Limited,1000171,Extra Care,Transfer Payments,7003008825,15/03/2023,847.00
Buckinghamshire Council,Adults and Health,Ambient Support Limited,1000171,Extra Care,Transfer Payments,7003008825,15/03/2023,847.00
Buckinghamshire Council,Adults and Health,Ambient Support Limited,1000171,Extra Care,Transfer Payments,7003008825,15/03/2023,847.00
Buckinghamshire Council,Adults and Health,Ambient Support Limited,1000171,Extra Care,Transfer Payments,7003008825,15/03/2023,847.00
Buckinghamshire Council,Adults and Health,Ambient Support Limited,1000171,Extra Care,Transfer Payments,7003008825,15/03/2023,847.00
Buckinghamshire Council,Adults and Health,Ambient Support Limited,1000171,Extra Care,Transfer Payments,7003008825,15/03/2023,847.00
Buckinghamshire Council,Adults and Health,Ambient Support Limited,1000171,Extra Care,Transfer Payments,7003008825,15/03/2023,-822.80
Buckinghamshire Council,Adults and Health,Ambient Support Limited,1000171,Extra Care,Transfer Payments,7003008825,15/03/2023,-822.80
Buckinghamshire Council,Adults and Health,Ambient Support Limited,1000171,Extra Care,Transfer Payments,7003008825,15/03/2023,-822.80
Buckinghamshire Council,Adults and Health,Ambient Support Limited,1000171,Extra Care,Transfer Payments,7003008825,15/03/2023,-822.80
Buckinghamshire Council,Adults and Health,Ambient Support Limited,1000171,Extra Care,Transfer Payments,7003008825,15/03/2023,-822.80
Buckinghamshire Council,Adults and Health,Ambient Support Limited,1000171,Extra Care,Transfer Payments,7003008825,15/03/2023,-822.80
Buckinghamshire Council,Adults and Health,Ambient Support Limited,1000171,Extra Care,Transfer Payments,7003008825,15/03/2023,-822.80
Buckinghamshire Council,Adults and Health,Ambient Support Limited,1000171,Extra Care,Transfer Payments,7003008825,15/03/2023,-822.80
Buckinghamshire Council,Adults and Health,Ambient Support Limited,1000171,Extra Care,Transfer Payments,7003008825,15/03/2023,847.00
Buckinghamshire Council,Adults and Health,Ambient Support Limited,1000171,Extra Care,Transfer Payments,7003008825,15/03/2023,847.00
Buckinghamshire Council,Adults and Health,Ambient Support Limited,1000171,Extra Care,Transfer Payments,7003008825,15/03/2023,847.00
Buckinghamshire Council,Adults and Health,Ambient Support Limited,1000171,Extra Care,Transfer Payments,7003008825,15/03/2023,847.00
Buckinghamshire Council,Adults and Health,Ambient Support Limited,1000171,Extra Care,Transfer Payments,7003008825,15/03/2023,847.00
Buckinghamshire Council,Adults and Health,Ambient Support Limited,1000171,Extra Care,Transfer Payments,7003008825,15/03/2023,847.00
Buckinghamshire Council,Adults and Health,Ambient Support Limited,1000171,Extra Care,Transfer Payments,7003008825,15/03/2023,847.00
Buckinghamshire Council,Adults and Health,Ambient Support Limited,1000171,Extra Care,Transfer Payments,7003008825,15/03/2023,847.00
Buckinghamshire Council,Adults and Health,Ambient Support Limited,1000171,Extra Care,Transfer Payments,7003008825,15/03/2023,-822.80
Buckinghamshire Council,Adults and Health,Ambient Support Limited,1000171,Extra Care,Transfer Payments,7003008825,15/03/2023,-822.80
Buckinghamshire Council,Adults and Health,Ambient Support Limited,1000171,Extra Care,Transfer Payments,7003008825,15/03/2023,-822.80
Buckinghamshire Council,Adults and Health,Ambient Support Limited,1000171,Extra Care,Transfer Payments,7003008825,15/03/2023,-822.80
Buckinghamshire Council,Adults and Health,Ambient Support Limited,1000171,Extra Care,Transfer Payments,7003008825,15/03/2023,-822.80
Buckinghamshire Council,Adults and Health,Ambient Support Limited,1000171,Extra Care,Transfer Payments,7003008825,15/03/2023,-822.80
Buckinghamshire Council,Adults and Health,Ambient Support Limited,1000171,Extra Care,Transfer Payments,7003008825,15/03/2023,-822.80
Buckinghamshire Council,Adults and Health,Ambient Support Limited,1000171,Extra Care,Transfer Payments,7003008825,15/03/2023,-822.80
Buckinghamshire Council,Adults and Health,Ambient Support Limited,1000171,Extra Care,Transfer Payments,7003008825,15/03/2023,847.00
Buckinghamshire Council,Adults and Health,Ambient Support Limited,1000171,Extra Care,Transfer Payments,7003008825,15/03/2023,847.00
Buckinghamshire Council,Adults and Health,Ambient Support Limited,1000171,Extra Care,Transfer Payments,7003008825,15/03/2023,847.00
Buckinghamshire Council,Adults and Health,Ambient Support Limited,1000171,Extra Care,Transfer Payments,7003008825,15/03/2023,847.00
Buckinghamshire Council,Adults and Health,Ambient Support Limited,1000171,Extra Care,Transfer Payments,7003008825,15/03/2023,847.00
Buckinghamshire Council,Adults and Health,Ambient Support Limited,1000171,Extra Care,Transfer Payments,7003008825,15/03/2023,847.00
Buckinghamshire Council,Adults and Health,Ambient Support Limited,1000171,Extra Care,Transfer Payments,7003008825,15/03/2023,847.00
Buckinghamshire Council,Adults and Health,Ambient Support Limited,1000171,Extra Care,Transfer Payments,7003008825,15/03/2023,847.00
Buckinghamshire Council,Adults and Health,Ambient Support Limited,1000171,Extra Care,Transfer Payments,7003008825,15/03/2023,847.00
Buckinghamshire Council,Adults and Health,Ambient Support Limited,1000171,Extra Care,Transfer Payments,7003008825,15/03/2023,847.00
Buckinghamshire Council,Adults and Health,Ambient Support Limited,1000171,Extra Care,Transfer Payments,7003008825,15/03/2023,847.00
Buckinghamshire Council,Adults and Health,Ambient Support Limited,1000171,Extra Care,Transfer Payments,7003008825,15/03/2023,847.00
Buckinghamshire Council,Adults and Health,Ambient Support Limited,1000171,Extra Care,Transfer Payments,7003008825,15/03/2023,847.00
Buckinghamshire Council,Adults and Health,Ambient Support Limited,1000171,Extra Care,Transfer Payments,7003008825,15/03/2023,847.00
Buckinghamshire Council,Adults and Health,Ambient Support Limited,1000171,Extra Care,Transfer Payments,7003008825,15/03/2023,847.00
Buckinghamshire Council,Adults and Health,Ambient Support Limited,1000171,Extra Care,Transfer Payments,7003008825,15/03/2023,847.00
Buckinghamshire Council,Adults and Health,Ambient Support Limited,1000171,Extra Care,Transfer Payments,7003008825,15/03/2023,-4231.54
Buckinghamshire Council,Adults and Health,Ambient Support Limited,1000171,Extra Care,Transfer Payments,7003008825,15/03/2023,4356.00
Buckinghamshire Council,Adults and Health,Ambient Support Limited,1000171,Extra Care,Transfer Payments,7003008825,15/03/2023,-4936.80
Buckinghamshire Council,Adults and Health,Ambient Support Limited,1000171,Extra Care,Transfer Payments,7003008825,15/03/2023,5082.00
Buckinghamshire Council,Adults and Health,Ambient Support Limited,1000171,Extra Care,Transfer Payments,7003008825,15/03/2023,-5201.27
Buckinghamshire Council,Adults and Health,Ambient Support Limited,1000171,Extra Care,Transfer Payments,7003008825,15/03/2023,5354.25
Buckinghamshire Council,Adults and Health,Ambient Support Limited,1000171,Extra Care,Transfer Payments,7003008825,15/03/2023,-4437.24
Buckinghamshire Council,Adults and Health,Ambient Support Limited,1000171,Extra Care,Transfer Payments,7003008825,15/03/2023,4567.75
Buckinghamshire Council,Adults and Health,Ambient Support Limited,1000171,Extra Care,Transfer Payments,7003008825,15/03/2023,-4114.00
Buckinghamshire Council,Adults and Health,Ambient Support Limited,1000171,Extra Care,Transfer Payments,7003008825,15/03/2023,4235.00
Buckinghamshire Council,Adults and Health,Ambient Support Limited,1000171,Extra Care,Transfer Payments,7003008825,15/03/2023,-4114.00
Buckinghamshire Council,Adults and Health,Ambient Support Limited,1000171,Extra Care,Transfer Payments,7003008825,15/03/2023,4235.00
Buckinghamshire Council,Adults and Health,Ambient Support Limited,1000171,Extra Care,Transfer Payments,7003008825,15/03/2023,-4114.00
Buckinghamshire Council,Adults and Health,Ambient Support Limited,1000171,Extra Care,Transfer Payments,7003008825,15/03/2023,4235.00
Buckinghamshire Council,Adults and Health,Ambient Support Limited,1000171,Extra Care,Transfer Payments,7003008825,15/03/2023,-4025.84
Buckinghamshire Council,Adults and Health,Ambient Support Limited,1000171,Extra Care,Transfer Payments,7003008825,15/03/2023,4144.25
Buckinghamshire Council,Adults and Health,Ambient Support Limited,1000171,Extra Care,Transfer Payments,7003008825,15/03/2023,-2791.64
Buckinghamshire Council,Adults and Health,Ambient Support Limited,1000171,Extra Care,Transfer Payments,7003008825,15/03/2023,2873.75
Buckinghamshire Council,Adults and Health,Ambient Support Limited,1000171,Extra Care,Transfer Payments,7003008825,15/03/2023,-2468.40
Buckinghamshire Council,Adults and Health,Ambient Support Limited,1000171,Extra Care,Transfer Payments,7003008825,15/03/2023,2541.00
Buckinghamshire Council,Adults and Health,Ambient Support Limited,1000171,Extra Care,Transfer Payments,7003008825,15/03/2023,-3291.20
Buckinghamshire Council,Adults and Health,Ambient Support Limited,1000171,Extra Care,Transfer Payments,7003008825,15/03/2023,3388.00
Buckinghamshire Council,Adults and Health,Ambient Support Limited,1000171,Extra Care,Transfer Payments,7003008825,15/03/2023,-3291.20
Buckinghamshire Council,Adults and Health,Ambient Support Limited,1000171,Extra Care,Transfer Payments,7003008825,15/03/2023,3388.00
Buckinghamshire Council,Adults and Health,Ambient Support Limited,1000171,Extra Care,Transfer Payments,7003008825,15/03/2023,3388.00
Buckinghamshire Council,Adults and Health,Ambient Support Limited,1000171,Res-Perm EMI-Other - Exp,Third Party Payments,7003008835,15/03/2023,2928.96
Buckinghamshire Council,Adults and Health,Ambient Support Limited,1000171,Res-Perm EMI-Other - Exp,Third Party Payments,7003008835,15/03/2023,2928.96
Buckinghamshire Council,Adults and Health,Ambient Support Limited,1000171,Res-Perm EMI-Other - Exp,Third Party Payments,7003008835,15/03/2023,2928.96
Buckinghamshire Council,Adults and Health,Ambient Support Limited,1000171,Res-Perm EMI-Other - Exp,Third Party Payments,7003008835,15/03/2023,2928.96
Buckinghamshire Council,Adults and Health,Ambient Support Limited,1000171,Res-Perm EMI-Other - Exp,Third Party Payments,7003008835,15/03/2023,2928.96
Buckinghamshire Council,Adults and Health,Ambient Support Limited,1000171,Res-Perm EMI-Other - Exp,Third Party Payments,7003008835,15/03/2023,2928.96
Buckinghamshire Council,Adults and Health,Ambient Support Limited,1000171,Res-Perm EMI-Other - Exp,Third Party Payments,7003008835,15/03/2023,2928.96
Buckinghamshire Council,Adults and Health,Ambient Support Limited,1000171,Res-Perm EMI-Other - Exp,Third Party Payments,7003008835,15/03/2023,2928.96
Buckinghamshire Council,Adults and Health,Ambient Support Limited,1000171,Res-Perm EMI-Other - Exp,Third Party Payments,7003008835,15/03/2023,2928.96
Buckinghamshire Council,Adults and Health,Ambient Support Limited,1000171,Res-Perm EMI-Other - Exp,Third Party Payments,7003008835,15/03/2023,2928.96
Buckinghamshire Council,Adults and Health,Ambient Support Limited,1000171,Res-Perm EMI-Other - Exp,Third Party Payments,7003008835,15/03/2023,2928.96
Buckinghamshire Council,Adults and Health,Ambient Support Limited,1000171,Res-Perm EMI-Other - Exp,Third Party Payments,7003008835,15/03/2023,2928.96
Buckinghamshire Council,Adults and Health,Ambient Support Limited,1000171,Res-Perm EMI-Other - Exp,Third Party Payments,7003008835,15/03/2023,2928.96
Buckinghamshire Council,Adults and Health,Ambient Support Limited,1000171,Res-Perm EMI-Other - Exp,Third Party Payments,7003008835,15/03/2023,2928.96
Buckinghamshire Council,Adults and Health,Ambient Support Limited,1000171,Res-Perm EMI-Other - Exp,Third Party Payments,7003008835,15/03/2023,1464.48
Buckinghamshire Council,Adults and Health,Ambient Support Limited,1000171,Res-Perm EMI-Other - Exp,Third Party Payments,7003008835,15/03/2023,2928.96
Buckinghamshire Council,Adults and Health,Ambient Support Limited,1000171,Res-Perm EMI-Other - Exp,Third Party Payments,7003008835,15/03/2023,2928.96
Buckinghamshire Council,Adults and Health,Ambient Support Limited,1000171,Res-Perm EMI-Other - Exp,Third Party Payments,7003008835,15/03/2023,2806.92
Buckinghamshire Council,Adults and Health,Ambient Support Limited,1000171,Res care-permanent - other,Third Party Payments,7003008835,15/03/2023,2604.00
Buckinghamshire Council,Adults and Health,Ambient Support Limited,1000171,Res care-permanent - other,Third Party Payments,7003008835,15/03/2023,2604.00
Buckinghamshire Council,Adults and Health,Ambient Support Limited,1000171,Res care-permanent - other,Third Party Payments,7003008835,15/03/2023,2604.00
Buckinghamshire Council,Adults and Health,Ambient Support Limited,1000171,Res care-permanent - other,Third Party Payments,7003008835,15/03/2023,2604.00
Buckinghamshire Council,Adults and Health,Ambient Support Limited,1000171,Res care-permanent - other,Third Party Payments,7003008835,15/03/2023,2604.00
Buckinghamshire Council,Adults and Health,Ambient Support Limited,1000171,Res care-permanent - other,Third Party Payments,7003008835,15/03/2023,2604.00
Buckinghamshire Council,Adults and Health,Ambient Support Limited,1000171,Res-Perm EMI-Other - Exp,Third Party Payments,7003008835,15/03/2023,2928.96
Buckinghamshire Council,Adults and Health,Ambient Support Limited,1000171,Res-Perm EMI-Other - Exp,Third Party Payments,7003008835,15/03/2023,2928.96
Buckinghamshire Council,Adults and Health,Ambient Support Limited,1000171,Res-Perm EMI-Other - Exp,Third Party Payments,7003008835,15/03/2023,2928.96
Buckinghamshire Council,Adults and Health,Ambient Support Limited,1000171,Res care-permanent - other,Third Party Payments,7003008835,15/03/2023,2604.00
Buckinghamshire Council,Adults and Health,Ambient Support Limited,1000171,Res-Perm EMI-Other - Exp,Third Party Payments,7003008835,15/03/2023,2928.96
Buckinghamshire Council,Adults and Health,Ambient Support Limited,1000171,Res-Perm EMI-Other - Exp,Third Party Payments,7003008835,15/03/2023,2928.96
Buckinghamshire Council,Adults and Health,Ambient Support Limited,1000171,Res-Perm EMI-Other - Exp,Third Party Payments,7003008835,15/03/2023,2928.96
Buckinghamshire Council,Adults and Health,Ambient Support Limited,1000171,Res care-permanent - other,Third Party Payments,7003008835,15/03/2023,2604.00
Buckinghamshire Council,Adults and Health,Ambient Support Limited,1000171,Res-Perm EMI-Other - Exp,Third Party Payments,7003008835,15/03/2023,3417.12
Buckinghamshire Council,Adults and Health,Ambient Support Limited,1000171,Res-Perm EMI-Other - Exp,Third Party Payments,7003008835,15/03/2023,3417.12
Buckinghamshire Council,Adults and Health,Ambient Support Limited,1000171,Res-Perm EMI-Other - Exp,Third Party Payments,7003008835,15/03/2023,3417.12
Buckinghamshire Council,Adults and Health,Ambient Support Limited,1000171,Res-Perm EMI-Other - Exp,Third Party Payments,7003008835,15/03/2023,3417.12
Buckinghamshire Council,Adults and Health,Ambient Support Limited,1000171,Res-Perm EMI-Other - Exp,Third Party Payments,7003008835,15/03/2023,3417.12
Buckinghamshire Council,Adults and Health,Ambient Support Limited,1000171,Res-Perm EMI-Other - Exp,Third Party Payments,7003008835,15/03/2023,3417.12
Buckinghamshire Council,Adults and Health,Ambient Support Limited,1000171,Res-Perm EMI-Other - Exp,Third Party Payments,7003008835,15/03/2023,3417.12
Buckinghamshire Council,Adults and Health,Ambient Support Limited,1000171,Res-Perm EMI-Other - Exp,Third Party Payments,7003008835,15/03/2023,3417.12
Buckinghamshire Council,Adults and Health,Ambient Support Limited,1000171,Res-Perm EMI-Other - Exp,Third Party Payments,7003008835,15/03/2023,3417.12
Buckinghamshire Council,Adults and Health,Ambient Support Limited,1000171,Res-Perm EMI-Other - Exp,Third Party Payments,7003008835,15/03/2023,3417.12
Buckinghamshire Council,Adults and Health,Ambient Support Limited,1000171,Res-Perm EMI-Other - Exp,Third Party Payments,7003008835,15/03/2023,3417.12
Buckinghamshire Council,Adults and Health,Ambient Support Limited,1000171,Res-Perm EMI-Other - Exp,Third Party Payments,7003008835,15/03/2023,3417.12
Buckinghamshire Council,Adults and Health,Ambient Support Limited,1000171,Res-Perm EMI-Other - Exp,Third Party Payments,7003008835,15/03/2023,3417.12
Buckinghamshire Council,Adults and Health,Ambient Support Limited,1000171,Res-Perm EMI-Other - Exp,Third Party Payments,7003008835,15/03/2023,3417.12
Buckinghamshire Council,Adults and Health,Ambient Support Limited,1000171,Res-Perm EMI-Other - Exp,Third Party Payments,7003008835,15/03/2023,3417.12
Buckinghamshire Council,Adults and Health,Ambient Support Limited,1000171,Res-Perm EMI-Other - Exp,Third Party Payments,7003008835,15/03/2023,3417.12
Buckinghamshire Council,Adults and Health,Ambient Support Limited,1000171,Res-Perm EMI-Other - Exp,Third Party Payments,7003008835,15/03/2023,3417.12
Buckinghamshire Council,Adults and Health,Ambient Support Limited,1000171,Res-Perm EMI-Other - Exp,Third Party Payments,7003008835,15/03/2023,3417.12
Buckinghamshire Council,Adults and Health,Ambient Support Limited,1000171,Res care-permanent - other,Third Party Payments,7003008835,15/03/2023,3038.00
Buckinghamshire Council,Adults and Health,Ambient Support Limited,1000171,Res care-permanent - other,Third Party Payments,7003008835,15/03/2023,3038.00
Buckinghamshire Council,Adults and Health,Ambient Support Limited,1000171,Res care-permanent - other,Third Party Payments,7003008835,15/03/2023,3038.00
Buckinghamshire Council,Adults and Health,Ambient Support Limited,1000171,Res care-permanent - other,Third Party Payments,7003008835,15/03/2023,3038.00
Buckinghamshire Council,Adults and Health,Ambient Support Limited,1000171,Res care-permanent - other,Third Party Payments,7003008835,15/03/2023,3038.00
Buckinghamshire Council,Adults and Health,Ambient Support Limited,1000171,Res care-permanent - other,Third Party Payments,7003008835,15/03/2023,3038.00
Buckinghamshire Council,Adults and Health,Ambient Support Limited,1000171,Res-Perm EMI-Other - Exp,Third Party Payments,7003008835,15/03/2023,3417.12
Buckinghamshire Council,Adults and Health,Ambient Support Limited,1000171,Res-Perm EMI-Other - Exp,Third Party Payments,7003008835,15/03/2023,3417.12
Buckinghamshire Council,Adults and Health,Ambient Support Limited,1000171,Res-Perm EMI-Other - Exp,Third Party Payments,7003008835,15/03/2023,488.16
Buckinghamshire Council,Adults and Health,Ambient Support Limited,1000171,Res-Perm EMI-Other - Exp,Third Party Payments,7003008835,15/03/2023,3417.12
Buckinghamshire Council,Adults and Health,Ambient Support Limited,1000171,Res care-permanent - other,Third Party Payments,7003008835,15/03/2023,3038.00
Buckinghamshire Council,Adults and Health,Ambient Support Limited,1000171,Res-Perm EMI-Other - Exp,Third Party Payments,7003008835,15/03/2023,3417.12
Buckinghamshire Council,Adults and Health,Ambient Support Limited,1000171,Res-Perm EMI-Other - Exp,Third Party Payments,7003008835,15/03/2023,3417.12
Buckinghamshire Council,Adults and Health,Ambient Support Limited,1000171,Res-Perm EMI-Other - Exp,Third Party Payments,7003008835,15/03/2023,3417.12
Buckinghamshire Council,Adults and Health,Ambient Support Limited,1000171,Res care-permanent - other,Third Party Payments,7003008835,15/03/2023,3038.00
Buckinghamshire Council,Adults and Health,Ambient Support Limited,1000171,Res-Perm EMI-Other - Exp,Third Party Payments,7003008835,15/03/2023,3417.12
Buckinghamshire Council,Adults and Health,Ambient Support Limited,1000171,Res-Perm EMI-Other - Exp,Third Party Payments,7003008835,15/03/2023,3417.12
Buckinghamshire Council,Adults and Health,Ambient Support Limited,1000171,Res-Perm EMI-Other - Exp,Third Party Payments,7003008835,15/03/2023,3417.12
Buckinghamshire Council,Adults and Health,Ambient Support Limited,1000171,Res-Perm EMI-Other - Exp,Third Party Payments,7003008835,15/03/2023,3417.12
Buckinghamshire Council,Adults and Health,Ambient Support Limited,1000171,Res-Perm EMI-Other - Exp,Third Party Payments,7003008835,15/03/2023,3417.12
Buckinghamshire Council,Adults and Health,Ambient Support Limited,1000171,Res-Perm EMI-Other - Exp,Third Party Payments,7003008835,15/03/2023,3417.12
Buckinghamshire Council,Adults and Health,Ambient Support Limited,1000171,Res-Perm EMI-Other - Exp,Third Party Payments,7003008835,15/03/2023,3417.12
Buckinghamshire Council,Adults and Health,Ambient Support Limited,1000171,Res-Perm EMI-Other - Exp,Third Party Payments,7003008835,15/03/2023,3417.12
Buckinghamshire Council,Adults and Health,Ambient Support Limited,1000171,Res-Perm EMI-Other - Exp,Third Party Payments,7003008835,15/03/2023,3417.12
Buckinghamshire Council,Adults and Health,Ambient Support Limited,1000171,Res-Perm EMI-Other - Exp,Third Party Payments,7003008835,15/03/2023,3417.12
Buckinghamshire Council,Adults and Health,Ambient Support Limited,1000171,Res-Perm EMI-Other - Exp,Third Party Payments,7003008835,15/03/2023,3417.12
Buckinghamshire Council,Adults and Health,Ambient Support Limited,1000171,Res-Perm EMI-Other - Exp,Third Party Payments,7003008835,15/03/2023,3417.12
Buckinghamshire Council,Adults and Health,Ambient Support Limited,1000171,Res-Perm EMI-Other - Exp,Third Party Payments,7003008835,15/03/2023,3417.12
Buckinghamshire Council,Adults and Health,Ambient Support Limited,1000171,Res-Perm EMI-Other - Exp,Third Party Payments,7003008835,15/03/2023,3417.12
Buckinghamshire Council,Adults and Health,Ambient Support Limited,1000171,Res-Perm EMI-Other - Exp,Third Party Payments,7003008835,15/03/2023,3417.12
Buckinghamshire Council,Adults and Health,Ambient Support Limited,1000171,Res-Perm EMI-Other - Exp,Third Party Payments,7003008835,15/03/2023,3417.12
Buckinghamshire Council,Adults and Health,Ambient Support Limited,1000171,Res-Perm EMI-Other - Exp,Third Party Payments,7003008835,15/03/2023,3417.12
Buckinghamshire Council,Adults and Health,Ambient Support Limited,1000171,Res-Perm EMI-Other - Exp,Third Party Payments,7003008835,15/03/2023,3417.12
Buckinghamshire Council,Adults and Health,Ambient Support Limited,1000171,Res care-permanent - other,Third Party Payments,7003008835,15/03/2023,3038.00
Buckinghamshire Council,Adults and Health,Ambient Support Limited,1000171,Res care-permanent - other,Third Party Payments,7003008835,15/03/2023,3038.00
Buckinghamshire Council,Adults and Health,Ambient Support Limited,1000171,Res care-permanent - other,Third Party Payments,7003008835,15/03/2023,3038.00
Buckinghamshire Council,Adults and Health,Ambient Support Limited,1000171,Res care-permanent - other,Third Party Payments,7003008835,15/03/2023,3038.00
Buckinghamshire Council,Adults and Health,Ambient Support Limited,1000171,Res care-permanent - other,Third Party Payments,7003008835,15/03/2023,3038.00
Buckinghamshire Council,Adults and Health,Ambient Support Limited,1000171,Res care-permanent - other,Third Party Payments,7003008835,15/03/2023,3038.00
Buckinghamshire Council,Adults and Health,Ambient Support Limited,1000171,Res care-permanent - other,Third Party Payments,7003008835,15/03/2023,2929.50
Buckinghamshire Council,Adults and Health,Ambient Support Limited,1000171,Res-Perm EMI-Other - Exp,Third Party Payments,7003008835,15/03/2023,3417.12
Buckinghamshire Council,Adults and Health,Ambient Support Limited,1000171,Res-Perm EMI-Other - Exp,Third Party Payments,7003008835,15/03/2023,3417.12
Buckinghamshire Council,Adults and Health,Ambient Support Limited,1000171,Res-Perm EMI-Other - Exp,Third Party Payments,7003008835,15/03/2023,3417.12
Buckinghamshire Council,Adults and Health,Ambient Support Limited,1000171,Res-Perm EMI-Other - Exp,Third Party Payments,7003008835,15/03/2023,3417.12
Buckinghamshire Council,Adults and Health,Ambient Support Limited,1000171,Res care-permanent - other,Third Party Payments,7003008835,15/03/2023,3038.00
Buckinghamshire Council,Adults and Health,Ambient Support Limited,1000171,Res-Perm EMI-Other - Exp,Third Party Payments,7003008835,15/03/2023,3417.12
Buckinghamshire Council,Adults and Health,Ambient Support Limited,1000171,Res-Perm EMI-Other - Exp,Third Party Payments,7003008835,15/03/2023,1586.52
Buckinghamshire Council,Adults and Health,Ambient Support Limited,1000171,Res-Perm EMI-Other - Exp,Third Party Payments,7003008835,15/03/2023,3417.12
Buckinghamshire Council,Adults and Health,Ambient Support Limited,1000171,Res-Perm EMI-Other - Exp,Third Party Payments,7003008835,15/03/2023,3417.12
Buckinghamshire Council,Adults and Health,Ambient Support Limited,1000171,Res care-permanent - other,Third Party Payments,7003008835,15/03/2023,3038.00
Buckinghamshire Council,Adults and Health,Ambient Support Limited,1000171,Res-Perm EMI-Other - Exp,Third Party Payments,7003008835,15/03/2023,3417.12
Buckinghamshire Council,Adults and Health,Ambient Support Limited,1000171,Res-Perm EMI-Other - Exp,Third Party Payments,7003008835,15/03/2023,3417.12
Buckinghamshire Council,Adults and Health,Ambient Support Limited,1000171,Res-Perm EMI-Other - Exp,Third Party Payments,7003008835,15/03/2023,3417.12
Buckinghamshire Council,Adults and Health,Ambient Support Limited,1000171,Res-Perm EMI-Other - Exp,Third Party Payments,7003008835,15/03/2023,3417.12
Buckinghamshire Council,Adults and Health,Ambient Support Limited,1000171,Res-Perm EMI-Other - Exp,Third Party Payments,7003008835,15/03/2023,3417.12
Buckinghamshire Council,Adults and Health,Ambient Support Limited,1000171,Res-Perm EMI-Other - Exp,Third Party Payments,7003008835,15/03/2023,3417.12
Buckinghamshire Council,Adults and Health,Ambient Support Limited,1000171,Res-Perm EMI-Other - Exp,Third Party Payments,7003008835,15/03/2023,3417.12
Buckinghamshire Council,Adults and Health,Ambient Support Limited,1000171,Res-Perm EMI-Other - Exp,Third Party Payments,7003008835,15/03/2023,3417.12
Buckinghamshire Council,Adults and Health,Ambient Support Limited,1000171,Res-Perm EMI-Other - Exp,Third Party Payments,7003008835,15/03/2023,3417.12
Buckinghamshire Council,Adults and Health,Ambient Support Limited,1000171,Res-Perm EMI-Other - Exp,Third Party Payments,7003008835,15/03/2023,3417.12
Buckinghamshire Council,Adults and Health,Ambient Support Limited,1000171,Res-Perm EMI-Other - Exp,Third Party Payments,7003008835,15/03/2023,3417.12
Buckinghamshire Council,Adults and Health,Ambient Support Limited,1000171,Res-Perm EMI-Other - Exp,Third Party Payments,7003008835,15/03/2023,3417.12
Buckinghamshire Council,Adults and Health,Ambient Support Limited,1000171,Res-Perm EMI-Other - Exp,Third Party Payments,7003008835,15/03/2023,3417.12
Buckinghamshire Council,Adults and Health,Ambient Support Limited,1000171,Res-Perm EMI-Other - Exp,Third Party Payments,7003008835,15/03/2023,854.28
Buckinghamshire Council,Adults and Health,Ambient Support Limited,1000171,Res-Perm EMI-Other - Exp,Third Party Payments,7003008835,15/03/2023,244.08
Buckinghamshire Council,Adults and Health,Ambient Support Limited,1000171,Res-Perm EMI-Other - Exp,Third Party Payments,7003008835,15/03/2023,3417.12
Buckinghamshire Council,Adults and Health,Ambient Support Limited,1000171,Res-Perm EMI-Other - Exp,Third Party Payments,7003008835,15/03/2023,3417.12
Buckinghamshire Council,Adults and Health,Ambient Support Limited,1000171,Res-Perm EMI-Other - Exp,Third Party Payments,7003008835,15/03/2023,3417.12
Buckinghamshire Council,Adults and Health,Ambient Support Limited,1000171,Res-Perm EMI-Other - Exp,Third Party Payments,7003008835,15/03/2023,3417.12
Buckinghamshire Council,Adults and Health,Ambient Support Limited,1000171,Res care-permanent - other,Third Party Payments,7003008835,15/03/2023,3038.00
Buckinghamshire Council,Adults and Health,Ambient Support Limited,1000171,Res care-permanent - other,Third Party Payments,7003008835,15/03/2023,3038.00
Buckinghamshire Council,Adults and Health,Ambient Support Limited,1000171,Res care-permanent - other,Third Party Payments,7003008835,15/03/2023,3038.00
Buckinghamshire Council,Adults and Health,Ambient Support Limited,1000171,Res care-permanent - other,Third Party Payments,7003008835,15/03/2023,3038.00
Buckinghamshire Council,Adults and Health,Ambient Support Limited,1000171,Res care-permanent - other,Third Party Payments,7003008835,15/03/2023,3038.00
Buckinghamshire Council,Adults and Health,Ambient Support Limited,1000171,Res care-permanent - other,Third Party Payments,7003008835,15/03/2023,3038.00
Buckinghamshire Council,Adults and Health,Ambient Support Limited,1000171,Res care-permanent - other,Third Party Payments,7003008835,15/03/2023,3038.00
Buckinghamshire Council,Adults and Health,Ambient Support Limited,1000171,Res-Perm EMI-Other - Exp,Third Party Payments,7003008835,15/03/2023,3417.12
Buckinghamshire Council,Adults and Health,Ambient Support Limited,1000171,Res-Perm EMI-Other - Exp,Third Party Payments,7003008835,15/03/2023,3417.12
Buckinghamshire Council,Adults and Health,Ambient Support Limited,1000171,Res-Perm EMI-Other - Exp,Third Party Payments,7003008835,15/03/2023,3417.12
Buckinghamshire Council,Adults and Health,Ambient Support Limited,1000171,Res-Perm EMI-Other - Exp,Third Party Payments,7003008835,15/03/2023,3417.12
Buckinghamshire Council,Adults and Health,Ambient Support Limited,1000171,Res care-permanent - other,Third Party Payments,7003008835,15/03/2023,3038.00
Buckinghamshire Council,Adults and Health,Ambient Support Limited,1000171,Res-Perm EMI-Other - Exp,Third Party Payments,7003008835,15/03/2023,3417.12
Buckinghamshire Council,Adults and Health,Ambient Support Limited,1000171,Res-Perm EMI-Other - Exp,Third Party Payments,7003008835,15/03/2023,3417.12
Buckinghamshire Council,Adults and Health,Ambient Support Limited,1000171,Res-Perm EMI-Other - Exp,Third Party Payments,7003008835,15/03/2023,3417.12
Buckinghamshire Council,Adults and Health,Ambient Support Limited,1000171,Res-Perm EMI-Other - Exp,Third Party Payments,7003008835,15/03/2023,3417.12
Buckinghamshire Council,Adults and Health,Ambient Support Limited,1000171,Res care-permanent - other,Third Party Payments,7003008835,15/03/2023,3038.00
Buckinghamshire Council,Adults and Health,Ambient Support Limited,1000171,Res-Perm EMI-Other - Exp,Third Party Payments,7003008835,15/03/2023,3417.12
Buckinghamshire Council,Adults and Health,Ambient Support Limited,1000171,Res-Perm EMI-Other - Exp,Third Party Payments,7003008835,15/03/2023,3417.12
Buckinghamshire Council,Adults and Health,Ambient Support Limited,1000171,Res-Perm EMI-Other - Exp,Third Party Payments,7003008835,15/03/2023,3417.12
Buckinghamshire Council,Adults and Health,Ambient Support Limited,1000171,Res-Perm EMI-Other - Exp,Third Party Payments,7003008835,15/03/2023,3417.12
Buckinghamshire Council,Adults and Health,Ambient Support Limited,1000171,Res-Perm EMI-Other - Exp,Third Party Payments,7003008835,15/03/2023,3417.12
Buckinghamshire Council,Adults and Health,Ambient Support Limited,1000171,Res-Perm EMI-Other - Exp,Third Party Payments,7003008835,15/03/2023,3417.12
Buckinghamshire Council,Adults and Health,Ambient Support Limited,1000171,Res-Perm EMI-Other - Exp,Third Party Payments,7003008835,15/03/2023,3417.12
Buckinghamshire Council,Adults and Health,Ambient Support Limited,1000171,Res-Perm EMI-Other - Exp,Third Party Payments,7003008835,15/03/2023,3417.12
Buckinghamshire Council,Adults and Health,Ambient Support Limited,1000171,Res-Perm EMI-Other - Exp,Third Party Payments,7003008835,15/03/2023,3417.12
Buckinghamshire Council,Adults and Health,Ambient Support Limited,1000171,Res-Perm EMI-Other - Exp,Third Party Payments,7003008835,15/03/2023,3417.12
Buckinghamshire Council,Adults and Health,Ambient Support Limited,1000171,Res-Perm EMI-Other - Exp,Third Party Payments,7003008835,15/03/2023,3417.12
Buckinghamshire Council,Adults and Health,Ambient Support Limited,1000171,Res-Perm EMI-Other - Exp,Third Party Payments,7003008835,15/03/2023,3417.12
Buckinghamshire Council,Adults and Health,Ambient Support Limited,1000171,Res-Perm EMI-Other - Exp,Third Party Payments,7003008835,15/03/2023,3417.12
Buckinghamshire Council,Adults and Health,Ambient Support Limited,1000171,Res-Perm EMI-Other - Exp,Third Party Payments,7003008835,15/03/2023,3417.12
Buckinghamshire Council,Adults and Health,Ambient Support Limited,1000171,Res-Perm EMI-Other - Exp,Third Party Payments,7003008835,15/03/2023,1464.48
Buckinghamshire Council,Adults and Health,Ambient Support Limited,1000171,Res-Perm EMI-Other - Exp,Third Party Payments,7003008835,15/03/2023,3417.12
Buckinghamshire Council,Adults and Health,Ambient Support Limited,1000171,Res-Perm EMI-Other - Exp,Third Party Payments,7003008835,15/03/2023,3417.12
Buckinghamshire Council,Adults and Health,Ambient Support Limited,1000171,Res-Perm EMI-Other - Exp,Third Party Payments,7003008835,15/03/2023,3417.12
Buckinghamshire Council,Adults and Health,Ambient Support Limited,1000171,Res care-permanent - other,Third Party Payments,7003008835,15/03/2023,3038.00
Buckinghamshire Council,Adults and Health,Ambient Support Limited,1000171,Res care-permanent - other,Third Party Payments,7003008835,15/03/2023,3038.00
Buckinghamshire Council,Adults and Health,Ambient Support Limited,1000171,Res care-permanent - other,Third Party Payments,7003008835,15/03/2023,3038.00
Buckinghamshire Council,Adults and Health,Ambient Support Limited,1000171,Res care-permanent - other,Third Party Payments,7003008835,15/03/2023,3038.00
Buckinghamshire Council,Adults and Health,Ambient Support Limited,1000171,Res care-permanent - other,Third Party Payments,7003008835,15/03/2023,3038.00
Buckinghamshire Council,Adults and Health,Ambient Support Limited,1000171,Res care-permanent - other,Third Party Payments,7003008835,15/03/2023,1302.00
Buckinghamshire Council,Adults and Health,Ambient Support Limited,1000171,Res care-permanent - other,Third Party Payments,7003008835,15/03/2023,3038.00
Buckinghamshire Council,Adults and Health,Ambient Support Limited,1000171,Res-Perm EMI-Other - Exp,Third Party Payments,7003008835,15/03/2023,3417.12
Buckinghamshire Council,Adults and Health,Ambient Support Limited,1000171,Res-Perm EMI-Other - Exp,Third Party Payments,7003008835,15/03/2023,3417.12
Buckinghamshire Council,Adults and Health,Ambient Support Limited,1000171,Res-Perm EMI-Other - Exp,Third Party Payments,7003008835,15/03/2023,3417.12
Buckinghamshire Council,Adults and Health,Ambient Support Limited,1000171,Res-Perm EMI-Other - Exp,Third Party Payments,7003008835,15/03/2023,3417.12
Buckinghamshire Council,Adults and Health,Ambient Support Limited,1000171,Res care-permanent - other,Third Party Payments,7003008835,15/03/2023,3038.00
Buckinghamshire Council,Adults and Health,Ambient Support Limited,1000171,Res-Perm EMI-Other - Exp,Third Party Payments,7003008835,15/03/2023,3417.12
Buckinghamshire Council,Adults and Health,Ambient Support Limited,1000171,Res-Perm EMI-Other - Exp,Third Party Payments,7003008835,15/03/2023,3417.12
Buckinghamshire Council,Adults and Health,Ambient Support Limited,1000171,Res-Perm EMI-Other - Exp,Third Party Payments,7003008835,15/03/2023,3417.12
Buckinghamshire Council,Adults and Health,Ambient Support Limited,1000171,Res-Perm EMI-Other - Exp,Third Party Payments,7003008835,15/03/2023,3417.12
Buckinghamshire Council,Adults and Health,Ambient Support Limited,1000171,Res care-permanent - other,Third Party Payments,7003008835,15/03/2023,3038.00
Buckinghamshire Council,Adults and Health,Ambient Support Limited,1000171,Res-Perm EMI-Other - Exp,Third Party Payments,7003008835,15/03/2023,3417.12
Buckinghamshire Council,Adults and Health,Ambient Support Limited,1000171,Res-Perm EMI-Other - Exp,Third Party Payments,7003008835,15/03/2023,3417.12
Buckinghamshire Council,Adults and Health,Ambient Support Limited,1000171,Res-Perm EMI-Other - Exp,Third Party Payments,7003008835,15/03/2023,3417.12
Buckinghamshire Council,Adults and Health,Ambient Support Limited,1000171,Res-Perm EMI-Other - Exp,Third Party Payments,7003008835,15/03/2023,3417.12
Buckinghamshire Council,Adults and Health,Ambient Support Limited,1000171,Res-Perm EMI-Other - Exp,Third Party Payments,7003008835,15/03/2023,3417.12
Buckinghamshire Council,Adults and Health,Ambient Support Limited,1000171,Res-Perm EMI-Other - Exp,Third Party Payments,7003008835,15/03/2023,3417.12
Buckinghamshire Council,Adults and Health,Ambient Support Limited,1000171,Res-Perm EMI-Other - Exp,Third Party Payments,7003008835,15/03/2023,3417.12
Buckinghamshire Council,Adults and Health,Ambient Support Limited,1000171,Res-Perm EMI-Other - Exp,Third Party Payments,7003008835,15/03/2023,3417.12
Buckinghamshire Council,Adults and Health,Ambient Support Limited,1000171,Res-Perm EMI-Other - Exp,Third Party Payments,7003008835,15/03/2023,3417.12
Buckinghamshire Council,Adults and Health,Ambient Support Limited,1000171,Res-Perm EMI-Other - Exp,Third Party Payments,7003008835,15/03/2023,3417.12
Buckinghamshire Council,Adults and Health,Ambient Support Limited,1000171,Res-Perm EMI-Other - Exp,Third Party Payments,7003008835,15/03/2023,3417.12
Buckinghamshire Council,Adults and Health,Ambient Support Limited,1000171,Res-Perm EMI-Other - Exp,Third Party Payments,7003008835,15/03/2023,3417.12
Buckinghamshire Council,Adults and Health,Ambient Support Limited,1000171,Res-Perm EMI-Other - Exp,Third Party Payments,7003008835,15/03/2023,3417.12
Buckinghamshire Council,Adults and Health,Ambient Support Limited,1000171,Res-Perm EMI-Other - Exp,Third Party Payments,7003008835,15/03/2023,3417.12
Buckinghamshire Council,Adults and Health,Ambient Support Limited,1000171,Res-Perm EMI-Other - Exp,Third Party Payments,7003008835,15/03/2023,3417.12
Buckinghamshire Council,Adults and Health,Ambient Support Limited,1000171,Res-Perm EMI-Other - Exp,Third Party Payments,7003008835,15/03/2023,3417.12
Buckinghamshire Council,Adults and Health,Ambient Support Limited,1000171,Res-Perm EMI-Other - Exp,Third Party Payments,7003008835,15/03/2023,3417.12
Buckinghamshire Council,Adults and Health,Ambient Support Limited,1000171,Res care-permanent - other,Third Party Payments,7003008835,15/03/2023,3038.00
Buckinghamshire Council,Adults and Health,Ambient Support Limited,1000171,Res care-permanent - other,Third Party Payments,7003008835,15/03/2023,3038.00
Buckinghamshire Council,Adults and Health,Ambient Support Limited,1000171,Res care-permanent - other,Third Party Payments,7003008835,15/03/2023,3038.00
Buckinghamshire Council,Adults and Health,Ambient Support Limited,1000171,Res care-permanent - other,Third Party Payments,7003008835,15/03/2023,3038.00
Buckinghamshire Council,Adults and Health,Ambient Support Limited,1000171,Res care-permanent - other,Third Party Payments,7003008835,15/03/2023,3038.00
Buckinghamshire Council,Adults and Health,Ambient Support Limited,1000171,Res care-permanent - other,Third Party Payments,7003008835,15/03/2023,2712.50
Buckinghamshire Council,Adults and Health,Ambient Support Limited,1000171,Res-Perm EMI-Other - Exp,Third Party Payments,7003008835,15/03/2023,3417.12
Buckinghamshire Council,Adults and Health,Ambient Support Limited,1000171,Res-Perm EMI-Other - Exp,Third Party Payments,7003008835,15/03/2023,3417.12
Buckinghamshire Council,Adults and Health,Ambient Support Limited,1000171,Res-Perm EMI-Other - Exp,Third Party Payments,7003008835,15/03/2023,3417.12
Buckinghamshire Council,Adults and Health,Ambient Support Limited,1000171,Res-Perm EMI-Other - Exp,Third Party Payments,7003008835,15/03/2023,3417.12
Buckinghamshire Council,Adults and Health,Ambient Support Limited,1000171,Res care-permanent - other,Third Party Payments,7003008835,15/03/2023,3038.00
Buckinghamshire Council,Adults and Health,Ambient Support Limited,1000171,Res-Perm EMI-Other - Exp,Third Party Payments,7003008835,15/03/2023,3417.12
Buckinghamshire Council,Adults and Health,Ambient Support Limited,1000171,Res-Perm EMI-Other - Exp,Third Party Payments,7003008835,15/03/2023,3417.12
Buckinghamshire Council,Adults and Health,Ambient Support Limited,1000171,Res-Perm EMI-Other - Exp,Third Party Payments,7003008835,15/03/2023,3417.12
Buckinghamshire Council,Adults and Health,Ambient Support Limited,1000171,Res-Perm EMI-Other - Exp,Third Party Payments,7003008835,15/03/2023,3417.12
Buckinghamshire Council,Adults and Health,Ambient Support Limited,1000171,Res care-permanent - other,Third Party Payments,7003008835,15/03/2023,3038.00
Buckinghamshire Council,Adults and Health,Ambient Support Limited,1000171,Res-Perm EMI-Other - Exp,Third Party Payments,7003008835,15/03/2023,1708.56
Buckinghamshire Council,Adults and Health,Ambient Support Limited,1000171,Res-Perm EMI-Other - Exp,Third Party Payments,7003008835,15/03/2023,1708.56
Buckinghamshire Council,Adults and Health,Ambient Support Limited,1000171,Res-Perm EMI-Other - Exp,Third Party Payments,7003008835,15/03/2023,1708.56
Buckinghamshire Council,Adults and Health,Ambient Support Limited,1000171,Res-Perm EMI-Other - Exp,Third Party Payments,7003008835,15/03/2023,1708.56
Buckinghamshire Council,Adults and Health,Ambient Support Limited,1000171,Res-Perm EMI-Other - Exp,Third Party Payments,7003008835,15/03/2023,1708.56
Buckinghamshire Council,Adults and Health,Ambient Support Limited,1000171,Res-Perm EMI-Other - Exp,Third Party Payments,7003008835,15/03/2023,1708.56
Buckinghamshire Council,Adults and Health,Ambient Support Limited,1000171,Res-Perm EMI-Other - Exp,Third Party Payments,7003008835,15/03/2023,1708.56
Buckinghamshire Council,Adults and Health,Ambient Support Limited,1000171,Res-Perm EMI-Other - Exp,Third Party Payments,7003008835,15/03/2023,1708.56
Buckinghamshire Council,Adults and Health,Ambient Support Limited,1000171,Res-Perm EMI-Other - Exp,Third Party Payments,7003008835,15/03/2023,1708.56
Buckinghamshire Council,Adults and Health,Ambient Support Limited,1000171,Res-Perm EMI-Other - Exp,Third Party Payments,7003008835,15/03/2023,1708.56
Buckinghamshire Council,Adults and Health,Ambient Support Limited,1000171,Res-Perm EMI-Other - Exp,Third Party Payments,7003008835,15/03/2023,1708.56
Buckinghamshire Council,Adults and Health,Ambient Support Limited,1000171,Res-Perm EMI-Other - Exp,Third Party Payments,7003008835,15/03/2023,1708.56
Buckinghamshire Council,Adults and Health,Ambient Support Limited,1000171,Res-Perm EMI-Other - Exp,Third Party Payments,7003008835,15/03/2023,1708.56
Buckinghamshire Council,Adults and Health,Ambient Support Limited,1000171,Res-Perm EMI-Other - Exp,Third Party Payments,7003008835,15/03/2023,1708.56
Buckinghamshire Council,Adults and Health,Ambient Support Limited,1000171,Res-Perm EMI-Other - Exp,Third Party Payments,7003008835,15/03/2023,1708.56
Buckinghamshire Council,Adults and Health,Ambient Support Limited,1000171,Res-Perm EMI-Other - Exp,Third Party Payments,7003008835,15/03/2023,1708.56
Buckinghamshire Council,Adults and Health,Ambient Support Limited,1000171,Res-Perm EMI-Other - Exp,Third Party Payments,7003008835,15/03/2023,1708.56
Buckinghamshire Council,Adults and Health,Ambient Support Limited,1000171,Res-Perm EMI-Other - Exp,Third Party Payments,7003008835,15/03/2023,1708.56
Buckinghamshire Council,Adults and Health,Ambient Support Limited,1000171,Res-Perm EMI-Other - Exp,Third Party Payments,7003008835,15/03/2023,1708.56
Buckinghamshire Council,Adults and Health,Ambient Support Limited,1000171,Res-Perm EMI-Other - Exp,Third Party Payments,7003008835,15/03/2023,1708.56
Buckinghamshire Council,Adults and Health,Ambient Support Limited,1000171,Res-Perm EMI-Other - Exp,Third Party Payments,7003008835,15/03/2023,1708.56
Buckinghamshire Council,Adults and Health,Ambient Support Limited,1000171,Res-Perm EMI-Other - Exp,Third Party Payments,7003008835,15/03/2023,1708.56
Buckinghamshire Council,Adults and Health,Ambient Support Limited,1000171,Res-Perm EMI-Other - Exp,Third Party Payments,7003008835,15/03/2023,1708.56
Buckinghamshire Council,Adults and Health,Ambient Support Limited,1000171,Res-Perm EMI-Other - Exp,Third Party Payments,7003008835,15/03/2023,1708.56
Buckinghamshire Council,Adults and Health,Ambient Support Limited,1000171,Res-Perm EMI-Other - Exp,Third Party Payments,7003008835,15/03/2023,1708.56
Buckinghamshire Council,Adults and Health,Ambient Support Limited,1000171,Res-Perm EMI-Other - Exp,Third Party Payments,7003008835,15/03/2023,1708.56
Buckinghamshire Council,Adults and Health,Ambient Support Limited,1000171,Res-Perm EMI-Other - Exp,Third Party Payments,7003008835,15/03/2023,1708.56
Buckinghamshire Council,Adults and Health,Ambient Support Limited,1000171,Res-Perm EMI-Other - Exp,Third Party Payments,7003008835,15/03/2023,1708.56
Buckinghamshire Council,Adults and Health,Ambient Support Limited,1000171,Res-Perm EMI-Other - Exp,Third Party Payments,7003008835,15/03/2023,854.28
Buckinghamshire Council,Adults and Health,Ambient Support Limited,1000171,Res-Perm EMI-Other - Exp,Third Party Payments,7003008835,15/03/2023,854.28
Buckinghamshire Council,Adults and Health,Ambient Support Limited,1000171,Res-Perm EMI-Other - Exp,Third Party Payments,7003008835,15/03/2023,1708.56
Buckinghamshire Council,Adults and Health,Ambient Support Limited,1000171,Res-Perm EMI-Other - Exp,Third Party Payments,7003008835,15/03/2023,1708.56
Buckinghamshire Council,Adults and Health,Ambient Support Limited,1000171,Res-Perm EMI-Other - Exp,Third Party Payments,7003008835,15/03/2023,488.16
Buckinghamshire Council,Adults and Health,Ambient Support Limited,1000171,Res-Perm EMI-Other - Exp,Third Party Payments,7003008835,15/03/2023,1708.56
Buckinghamshire Council,Adults and Health,Ambient Support Limited,1000171,Res-Perm EMI-Other - Exp,Third Party Payments,7003008835,15/03/2023,1708.56
Buckinghamshire Council,Adults and Health,Ambient Support Limited,1000171,Res-Perm EMI-Other - Exp,Third Party Payments,7003008835,15/03/2023,1708.56
Buckinghamshire Council,Adults and Health,Ambient Support Limited,1000171,Res-Perm EMI-Other - Exp,Third Party Payments,7003008835,15/03/2023,1708.56
Buckinghamshire Council,Adults and Health,Ambient Support Limited,1000171,Res-Perm EMI-Other - Exp,Third Party Payments,7003008835,15/03/2023,1708.56
Buckinghamshire Council,Adults and Health,Ambient Support Limited,1000171,Res care-permanent - other,Third Party Payments,7003008835,15/03/2023,1519.00
Buckinghamshire Council,Adults and Health,Ambient Support Limited,1000171,Res care-permanent - other,Third Party Payments,7003008835,15/03/2023,1519.00
Buckinghamshire Council,Adults and Health,Ambient Support Limited,1000171,Res care-permanent - other,Third Party Payments,7003008835,15/03/2023,1519.00
Buckinghamshire Council,Adults and Health,Ambient Support Limited,1000171,Res care-permanent - other,Third Party Payments,7003008835,15/03/2023,1519.00
Buckinghamshire Council,Adults and Health,Ambient Support Limited,1000171,Res care-permanent - other,Third Party Payments,7003008835,15/03/2023,1519.00
Buckinghamshire Council,Adults and Health,Ambient Support Limited,1000171,Res care-permanent - other,Third Party Payments,7003008835,15/03/2023,1519.00
Buckinghamshire Council,Adults and Health,Ambient Support Limited,1000171,Res care-permanent - other,Third Party Payments,7003008835,15/03/2023,1519.00
Buckinghamshire Council,Adults and Health,Ambient Support Limited,1000171,Res care-permanent - other,Third Party Payments,7003008835,15/03/2023,1519.00
Buckinghamshire Council,Adults and Health,Ambient Support Limited,1000171,Res care-permanent - other,Third Party Payments,7003008835,15/03/2023,1519.00
Buckinghamshire Council,Adults and Health,Ambient Support Limited,1000171,Res care-permanent - other,Third Party Payments,7003008835,15/03/2023,1519.00
Buckinghamshire Council,Adults and Health,Ambient Support Limited,1000171,Res care-permanent - other,Third Party Payments,7003008835,15/03/2023,1519.00
Buckinghamshire Council,Adults and Health,Ambient Support Limited,1000171,Res-Perm EMI-Other - Exp,Third Party Payments,7003008835,15/03/2023,1708.56
Buckinghamshire Council,Adults and Health,Ambient Support Limited,1000171,Res-Perm EMI-Other - Exp,Third Party Payments,7003008835,15/03/2023,1708.56
Buckinghamshire Council,Adults and Health,Ambient Support Limited,1000171,Res-Perm EMI-Other - Exp,Third Party Payments,7003008835,15/03/2023,1708.56
Buckinghamshire Council,Adults and Health,Ambient Support Limited,1000171,Res-Perm EMI-Other - Exp,Third Party Payments,7003008835,15/03/2023,1708.56
Buckinghamshire Council,Adults and Health,Ambient Support Limited,1000171,Res-Perm EMI-Other - Exp,Third Party Payments,7003008835,15/03/2023,1708.56
Buckinghamshire Council,Adults and Health,Ambient Support Limited,1000171,Res-Perm EMI-Other - Exp,Third Party Payments,7003008835,15/03/2023,1708.56
Buckinghamshire Council,Adults and Health,Ambient Support Limited,1000171,Res-Perm EMI-Other - Exp,Third Party Payments,7003008835,15/03/2023,1708.56
Buckinghamshire Council,Adults and Health,Ambient Support Limited,1000171,Res-Perm EMI-Other - Exp,Third Party Payments,7003008835,15/03/2023,1708.56
Buckinghamshire Council,Adults and Health,Ambient Support Limited,1000171,Res care-permanent - other,Third Party Payments,7003008835,15/03/2023,1519.00
Buckinghamshire Council,Adults and Health,Ambient Support Limited,1000171,Res care-permanent - other,Third Party Payments,7003008835,15/03/2023,1519.00
Buckinghamshire Council,Adults and Health,Ambient Support Limited,1000171,Res-Perm EMI-Other - Exp,Third Party Payments,7003008835,15/03/2023,1708.56
Buckinghamshire Council,Adults and Health,Ambient Support Limited,1000171,Res-Perm EMI-Other - Exp,Third Party Payments,7003008835,15/03/2023,1708.56
Buckinghamshire Council,Adults and Health,Ambient Support Limited,1000171,Res-Perm EMI-Other - Exp,Third Party Payments,7003008835,15/03/2023,1708.56
Buckinghamshire Council,Adults and Health,Ambient Support Limited,1000171,Res-Perm EMI-Other - Exp,Third Party Payments,7003008835,15/03/2023,1708.56
Buckinghamshire Council,Adults and Health,Ambient Support Limited,1000171,Res-Perm EMI-Other - Exp,Third Party Payments,7003008835,15/03/2023,1708.56
Buckinghamshire Council,Adults and Health,Ambient Support Limited,1000171,Res-Perm EMI-Other - Exp,Third Party Payments,7003008835,15/03/2023,1708.56
Buckinghamshire Council,Adults and Health,Ambient Support Limited,1000171,Res-Perm EMI-Other - Exp,Third Party Payments,7003008835,15/03/2023,1708.56
Buckinghamshire Council,Adults and Health,Ambient Support Limited,1000171,Res-Perm EMI-Other - Exp,Third Party Payments,7003008835,15/03/2023,1708.56
Buckinghamshire Council,Adults and Health,Ambient Support Limited,1000171,Res care-permanent - other,Third Party Payments,7003008835,15/03/2023,1519.00
Buckinghamshire Council,Adults and Health,Ambient Support Limited,1000171,Res care-permanent - other,Third Party Payments,7003008835,15/03/2023,1519.00
Buckinghamshire Council,Adults and Health,Ambient Support Limited,1000171,Res care-permanent - other,Third Party Payments,7003008835,15/03/2023,759.50
Buckinghamshire Council,Adults and Health,Ambient Support Limited,1000171,Res-Perm EMI-Other - Exp,Third Party Payments,7003008835,15/03/2023,3417.12
Buckinghamshire Council,Adults and Health,Ambient Support Limited,1000171,Res-Perm EMI-Other - Exp,Third Party Payments,7003008835,15/03/2023,3417.12
Buckinghamshire Council,Adults and Health,Ambient Support Limited,1000171,Res-Perm EMI-Other - Exp,Third Party Payments,7003008835,15/03/2023,3417.12
Buckinghamshire Council,Adults and Health,Ambient Support Limited,1000171,Res-Perm EMI-Other - Exp,Third Party Payments,7003008835,15/03/2023,3417.12
Buckinghamshire Council,Adults and Health,Ambient Support Limited,1000171,Res-Perm EMI-Other - Exp,Third Party Payments,7003008835,15/03/2023,3417.12
Buckinghamshire Council,Adults and Health,Ambient Support Limited,1000171,Res-Perm EMI-Other - Exp,Third Party Payments,7003008835,15/03/2023,3417.12
Buckinghamshire Council,Adults and Health,Ambient Support Limited,1000171,Res-Perm EMI-Other - Exp,Third Party Payments,7003008835,15/03/2023,3417.12
Buckinghamshire Council,Adults and Health,Ambient Support Limited,1000171,Res-Perm EMI-Other - Exp,Third Party Payments,7003008835,15/03/2023,3417.12
Buckinghamshire Council,Adults and Health,Ambient Support Limited,1000171,Res-Perm EMI-Other - Exp,Third Party Payments,7003008835,15/03/2023,3417.12
Buckinghamshire Council,Adults and Health,Ambient Support Limited,1000171,Res-Perm EMI-Other - Exp,Third Party Payments,7003008835,15/03/2023,3417.12
Buckinghamshire Council,Adults and Health,Ambient Support Limited,1000171,Res-Perm EMI-Other - Exp,Third Party Payments,7003008835,15/03/2023,3417.12
Buckinghamshire Council,Adults and Health,Ambient Support Limited,1000171,Res-Perm EMI-Other - Exp,Third Party Payments,7003008835,15/03/2023,3417.12
Buckinghamshire Council,Adults and Health,Ambient Support Limited,1000171,Res-Perm EMI-Other - Exp,Third Party Payments,7003008835,15/03/2023,3417.12
Buckinghamshire Council,Adults and Health,Ambient Support Limited,1000171,Res-Perm EMI-Other - Exp,Third Party Payments,7003008835,15/03/2023,3417.12
Buckinghamshire Council,Adults and Health,Ambient Support Limited,1000171,Res-Perm EMI-Other - Exp,Third Party Payments,7003008835,15/03/2023,3417.12
Buckinghamshire Council,Adults and Health,Ambient Support Limited,1000171,Res-Perm EMI-Other - Exp,Third Party Payments,7003008835,15/03/2023,3417.12
Buckinghamshire Council,Adults and Health,Ambient Support Limited,1000171,Res-Perm EMI-Other - Exp,Third Party Payments,7003008835,15/03/2023,3417.12
Buckinghamshire Council,Adults and Health,Ambient Support Limited,1000171,Res-Perm EMI-Other - Exp,Third Party Payments,7003008835,15/03/2023,3417.12
Buckinghamshire Council,Adults and Health,Ambient Support Limited,1000171,Res care-permanent - other,Third Party Payments,7003008835,15/03/2023,3038.00
Buckinghamshire Council,Adults and Health,Ambient Support Limited,1000171,Res care-permanent - other,Third Party Payments,7003008835,15/03/2023,3038.00
Buckinghamshire Council,Adults and Health,Ambient Support Limited,1000171,Res care-permanent - other,Third Party Payments,7003008835,15/03/2023,3038.00
Buckinghamshire Council,Adults and Health,Ambient Support Limited,1000171,Res care-permanent - other,Third Party Payments,7003008835,15/03/2023,3038.00
Buckinghamshire Council,Adults and Health,Ambient Support Limited,1000171,Res care-permanent - other,Third Party Payments,7003008835,15/03/2023,3038.00
Buckinghamshire Council,Adults and Health,Ambient Support Limited,1000171,Res care-permanent - other,Third Party Payments,7003008835,15/03/2023,1519.00
Buckinghamshire Council,Adults and Health,Ambient Support Limited,1000171,Res care-permanent - other,Third Party Payments,7003008835,15/03/2023,1519.00
Buckinghamshire Council,Adults and Health,Ambient Support Limited,1000171,Res-Perm EMI-Other - Exp,Third Party Payments,7003008835,15/03/2023,3417.12
Buckinghamshire Council,Adults and Health,Ambient Support Limited,1000171,Res-Perm EMI-Other - Exp,Third Party Payments,7003008835,15/03/2023,3417.12
Buckinghamshire Council,Adults and Health,Ambient Support Limited,1000171,Res-Perm EMI-Other - Exp,Third Party Payments,7003008835,15/03/2023,3417.12
Buckinghamshire Council,Adults and Health,Ambient Support Limited,1000171,Res-Perm EMI-Other - Exp,Third Party Payments,7003008835,15/03/2023,3417.12
Buckinghamshire Council,Adults and Health,Ambient Support Limited,1000171,Res care-permanent - other,Third Party Payments,7003008835,15/03/2023,3038.00
Buckinghamshire Council,Adults and Health,Ambient Support Limited,1000171,Res-Perm EMI-Other - Exp,Third Party Payments,7003008835,15/03/2023,3417.12
Buckinghamshire Council,Adults and Health,Ambient Support Limited,1000171,Res-Perm EMI-Other - Exp,Third Party Payments,7003008835,15/03/2023,3417.12
Buckinghamshire Council,Adults and Health,Ambient Support Limited,1000171,Res-Perm EMI-Other - Exp,Third Party Payments,7003008835,15/03/2023,3417.12
Buckinghamshire Council,Adults and Health,Ambient Support Limited,1000171,Res-Perm EMI-Other - Exp,Third Party Payments,7003008835,15/03/2023,3417.12
Buckinghamshire Council,Adults and Health,Ambient Support Limited,1000171,Res care-permanent - other,Third Party Payments,7003008835,15/03/2023,3038.00
Buckinghamshire Council,Adults and Health,Ambient Support Limited,1000171,Res care-permanent - other,Third Party Payments,7003008835,15/03/2023,325.50
Buckinghamshire Council,Adults and Health,Ambient Support Limited,1000171,Res care-permanent - other,Third Party Payments,7003008835,15/03/2023,3038.00
Buckinghamshire Council,Adults and Health,Ambient Support Limited,1000171,Res-Perm EMI-Other - Exp,Third Party Payments,7003008835,15/03/2023,3417.12
Buckinghamshire Council,Adults and Health,Ambient Support Limited,1000171,Res-Perm EMI-Other - Exp,Third Party Payments,7003008835,15/03/2023,3417.12
Buckinghamshire Council,Adults and Health,Ambient Support Limited,1000171,Res-Perm EMI-Other - Exp,Third Party Payments,7003008835,15/03/2023,3417.12
Buckinghamshire Council,Adults and Health,Ambient Support Limited,1000171,Res-Perm EMI-Other - Exp,Third Party Payments,7003008835,15/03/2023,3417.12
Buckinghamshire Council,Adults and Health,Ambient Support Limited,1000171,Res-Perm EMI-Other - Exp,Third Party Payments,7003008835,15/03/2023,3417.12
Buckinghamshire Council,Adults and Health,Ambient Support Limited,1000171,Res-Perm EMI-Other - Exp,Third Party Payments,7003008835,15/03/2023,3417.12
Buckinghamshire Council,Adults and Health,Ambient Support Limited,1000171,Res-Perm EMI-Other - Exp,Third Party Payments,7003008835,15/03/2023,3417.12
Buckinghamshire Council,Adults and Health,Ambient Support Limited,1000171,Res-Perm EMI-Other - Exp,Third Party Payments,7003008835,15/03/2023,3417.12
Buckinghamshire Council,Adults and Health,Ambient Support Limited,1000171,Res-Perm EMI-Other - Exp,Third Party Payments,7003008835,15/03/2023,3417.12
Buckinghamshire Council,Adults and Health,Ambient Support Limited,1000171,Res-Perm EMI-Other - Exp,Third Party Payments,7003008835,15/03/2023,3417.12
Buckinghamshire Council,Adults and Health,Ambient Support Limited,1000171,Res-Perm EMI-Other - Exp,Third Party Payments,7003008835,15/03/2023,3417.12
Buckinghamshire Council,Adults and Health,Ambient Support Limited,1000171,Res-Perm EMI-Other - Exp,Third Party Payments,7003008835,15/03/2023,3417.12
Buckinghamshire Council,Adults and Health,Ambient Support Limited,1000171,Res-Perm EMI-Other - Exp,Third Party Payments,7003008835,15/03/2023,3417.12
Buckinghamshire Council,Adults and Health,Ambient Support Limited,1000171,Res-Perm EMI-Other - Exp,Third Party Payments,7003008835,15/03/2023,3417.12
Buckinghamshire Council,Adults and Health,Ambient Support Limited,1000171,Res-Perm EMI-Other - Exp,Third Party Payments,7003008835,15/03/2023,1708.56
Buckinghamshire Council,Adults and Health,Ambient Support Limited,1000171,Res-Perm EMI-Other - Exp,Third Party Payments,7003008835,15/03/2023,3417.12
Buckinghamshire Council,Adults and Health,Ambient Support Limited,1000171,Res-Perm EMI-Other - Exp,Third Party Payments,7003008835,15/03/2023,3417.12
Buckinghamshire Council,Adults and Health,Ambient Support Limited,1000171,Res-Perm EMI-Other - Exp,Third Party Payments,7003008835,15/03/2023,3417.12
Buckinghamshire Council,Adults and Health,Ambient Support Limited,1000171,Res-Perm EMI-Other - Exp,Third Party Payments,7003008835,15/03/2023,3295.08
Buckinghamshire Council,Adults and Health,Ambient Support Limited,1000171,Res care-permanent - other,Third Party Payments,7003008835,15/03/2023,434.00
Buckinghamshire Council,Adults and Health,Ambient Support Limited,1000171,Res care-permanent - other,Third Party Payments,7003008835,15/03/2023,2604.00
Buckinghamshire Council,Adults and Health,Ambient Support Limited,1000171,Res care-permanent - other,Third Party Payments,7003008835,15/03/2023,434.00
Buckinghamshire Council,Adults and Health,Ambient Support Limited,1000171,Res care-permanent - other,Third Party Payments,7003008835,15/03/2023,2604.00
Buckinghamshire Council,Adults and Health,Ambient Support Limited,1000171,Res care-permanent - other,Third Party Payments,7003008835,15/03/2023,434.00
Buckinghamshire Council,Adults and Health,Ambient Support Limited,1000171,Res care-permanent - other,Third Party Payments,7003008835,15/03/2023,2604.00
Buckinghamshire Council,Adults and Health,Ambient Support Limited,1000171,Res care-permanent - other,Third Party Payments,7003008835,15/03/2023,434.00
Buckinghamshire Council,Adults and Health,Ambient Support Limited,1000171,Res care-permanent - other,Third Party Payments,7003008835,15/03/2023,2604.00
Buckinghamshire Council,Adults and Health,Ambient Support Limited,1000171,Res care-permanent - other,Third Party Payments,7003008835,15/03/2023,434.00
Buckinghamshire Council,Adults and Health,Ambient Support Limited,1000171,Res care-permanent - other,Third Party Payments,7003008835,15/03/2023,2604.00
Buckinghamshire Council,Adults and Health,Ambient Support Limited,1000171,Res care-permanent - other,Third Party Payments,7003008835,15/03/2023,2170.00
Buckinghamshire Council,Adults and Health,Ambient Support Limited,1000171,Res care-permanent - other,Third Party Payments,7003008835,15/03/2023,434.00
Buckinghamshire Council,Adults and Health,Ambient Support Limited,1000171,Res-Perm EMI-Other - Exp,Third Party Payments,7003008835,15/03/2023,3417.12
Buckinghamshire Council,Adults and Health,Ambient Support Limited,1000171,Res-Perm EMI-Other - Exp,Third Party Payments,7003008835,15/03/2023,3417.12
Buckinghamshire Council,Adults and Health,Ambient Support Limited,1000171,Res-Perm EMI-Other - Exp,Third Party Payments,7003008835,15/03/2023,3417.12
Buckinghamshire Council,Adults and Health,Ambient Support Limited,1000171,Res-Perm EMI-Other - Exp,Third Party Payments,7003008835,15/03/2023,3417.12
Buckinghamshire Council,Adults and Health,Ambient Support Limited,1000171,Res care-permanent - other,Third Party Payments,7003008835,15/03/2023,434.00
Buckinghamshire Council,Adults and Health,Ambient Support Limited,1000171,Res care-permanent - other,Third Party Payments,7003008835,15/03/2023,2604.00
Buckinghamshire Council,Adults and Health,Ambient Support Limited,1000171,Res-Perm EMI-Other - Exp,Third Party Payments,7003008835,15/03/2023,3417.12
Buckinghamshire Council,Adults and Health,Ambient Support Limited,1000171,Res-Perm EMI-Other - Exp,Third Party Payments,7003008835,15/03/2023,3417.12
Buckinghamshire Council,Adults and Health,Ambient Support Limited,1000171,Res-Perm EMI-Other - Exp,Third Party Payments,7003008835,15/03/2023,3417.12
Buckinghamshire Council,Adults and Health,Ambient Support Limited,1000171,Res-Perm EMI-Other - Exp,Third Party Payments,7003008835,15/03/2023,3417.12
Buckinghamshire Council,Adults and Health,Ambient Support Limited,1000171,Res care-permanent - other,Third Party Payments,7003008835,15/03/2023,434.00
Buckinghamshire Council,Adults and Health,Ambient Support Limited,1000171,Res care-permanent - other,Third Party Payments,7003008835,15/03/2023,2604.00
Buckinghamshire Council,Adults and Health,Ambient Support Limited,1000171,Res care-permanent - other,Third Party Payments,7003008835,15/03/2023,434.00
Buckinghamshire Council,Adults and Health,Ambient Support Limited,1000171,Res care-permanent - other,Third Party Payments,7003008835,15/03/2023,2604.00
Buckinghamshire Council,Adults and Health,Ambient Support Limited,1000171,Res care-permanent - other,Third Party Payments,7003008835,15/03/2023,434.00
Buckinghamshire Council,Adults and Health,Ambient Support Limited,1000171,Res care-permanent - other,Third Party Payments,7003008835,15/03/2023,2604.00
Buckinghamshire Council,Adults and Health,Ambient Support Limited,1000171,Res-Perm EMI-Other - Exp,Third Party Payments,7003008835,15/03/2023,3417.12
Buckinghamshire Council,Adults and Health,Ambient Support Limited,1000171,Res-Perm EMI-Other - Exp,Third Party Payments,7003008835,15/03/2023,3417.12
Buckinghamshire Council,Adults and Health,Ambient Support Limited,1000171,Res-Perm EMI-Other - Exp,Third Party Payments,7003008835,15/03/2023,3417.12
Buckinghamshire Council,Adults and Health,Ambient Support Limited,1000171,Res-Perm EMI-Other - Exp,Third Party Payments,7003008835,15/03/2023,3417.12
Buckinghamshire Council,Adults and Health,Ambient Support Limited,1000171,Res-Perm EMI-Other - Exp,Third Party Payments,7003008835,15/03/2023,3417.12
Buckinghamshire Council,Adults and Health,Ambient Support Limited,1000171,Res-Perm EMI-Other - Exp,Third Party Payments,7003008835,15/03/2023,3417.12
Buckinghamshire Council,Adults and Health,Ambient Support Limited,1000171,Res-Perm EMI-Other - Exp,Third Party Payments,7003008835,15/03/2023,3417.12
Buckinghamshire Council,Adults and Health,Ambient Support Limited,1000171,Res-Perm EMI-Other - Exp,Third Party Payments,7003008835,15/03/2023,3417.12
Buckinghamshire Council,Adults and Health,Ambient Support Limited,1000171,Res-Perm EMI-Other - Exp,Third Party Payments,7003008835,15/03/2023,3417.12
Buckinghamshire Council,Adults and Health,Ambient Support Limited,1000171,Res-Perm EMI-Other - Exp,Third Party Payments,7003008835,15/03/2023,3417.12
Buckinghamshire Council,Adults and Health,Ambient Support Limited,1000171,Res-Perm EMI-Other - Exp,Third Party Payments,7003008835,15/03/2023,3417.12
Buckinghamshire Council,Adults and Health,Ambient Support Limited,1000171,Res-Perm EMI-Other - Exp,Third Party Payments,7003008835,15/03/2023,3417.12
Buckinghamshire Council,Adults and Health,Ambient Support Limited,1000171,Res-Perm EMI-Other - Exp,Third Party Payments,7003008835,15/03/2023,3417.12
Buckinghamshire Council,Adults and Health,Ambient Support Limited,1000171,Res-Perm EMI-Other - Exp,Third Party Payments,7003008835,15/03/2023,3417.12
Buckinghamshire Council,Adults and Health,Ambient Support Limited,1000171,Res-Perm EMI-Other - Exp,Third Party Payments,7003008835,15/03/2023,3417.12
Buckinghamshire Council,Adults and Health,Ambient Support Limited,1000171,Res-Perm EMI-Other - Exp,Third Party Payments,7003008835,15/03/2023,2074.68
Buckinghamshire Council,Adults and Health,Ambient Support Limited,1000171,Res-Perm EMI-Other - Exp,Third Party Payments,7003008835,15/03/2023,3417.12
Buckinghamshire Council,Adults and Health,Ambient Support Limited,1000171,Res-Perm EMI-Other - Exp,Third Party Payments,7003008835,15/03/2023,3417.12
Buckinghamshire Council,Adults and Health,Ambient Support Limited,1000171,Res care-permanent - other,Third Party Payments,7003008835,15/03/2023,3038.00
Buckinghamshire Council,Adults and Health,Ambient Support Limited,1000171,Res care-permanent - other,Third Party Payments,7003008835,15/03/2023,3038.00
Buckinghamshire Council,Adults and Health,Ambient Support Limited,1000171,Res care-permanent - other,Third Party Payments,7003008835,15/03/2023,3038.00
Buckinghamshire Council,Adults and Health,Ambient Support Limited,1000171,Res care-permanent - other,Third Party Payments,7003008835,15/03/2023,3038.00
Buckinghamshire Council,Adults and Health,Ambient Support Limited,1000171,Res care-permanent - other,Third Party Payments,7003008835,15/03/2023,3038.00
Buckinghamshire Council,Adults and Health,Ambient Support Limited,1000171,Res care-permanent - other,Third Party Payments,7003008835,15/03/2023,3038.00
Buckinghamshire Council,Adults and Health,Ambient Support Limited,1000171,Res-Perm EMI-Other - Exp,Third Party Payments,7003008835,15/03/2023,3417.12
Buckinghamshire Council,Adults and Health,Ambient Support Limited,1000171,Res-Perm EMI-Other - Exp,Third Party Payments,7003008835,15/03/2023,3417.12
Buckinghamshire Council,Adults and Health,Ambient Support Limited,1000171,Res-Perm EMI-Other - Exp,Third Party Payments,7003008835,15/03/2023,3417.12
Buckinghamshire Council,Adults and Health,Ambient Support Limited,1000171,Res-Perm EMI-Other - Exp,Third Party Payments,7003008835,15/03/2023,3417.12
Buckinghamshire Council,Adults and Health,Ambient Support Limited,1000171,Res care-permanent - other,Third Party Payments,7003008835,15/03/2023,3038.00
Buckinghamshire Council,Adults and Health,Ambient Support Limited,1000171,Res-Perm EMI-Other - Exp,Third Party Payments,7003008835,15/03/2023,3417.12
Buckinghamshire Council,Adults and Health,Ambient Support Limited,1000171,Res-Perm EMI-Other - Exp,Third Party Payments,7003008835,15/03/2023,3417.12
Buckinghamshire Council,Adults and Health,Ambient Support Limited,1000171,Res-Perm EMI-Other - Exp,Third Party Payments,7003008835,15/03/2023,3417.12
Buckinghamshire Council,Adults and Health,Ambient Support Limited,1000171,Res-Perm EMI-Other - Exp,Third Party Payments,7003008835,15/03/2023,3417.12
Buckinghamshire Council,Adults and Health,Ambient Support Limited,1000171,Res care-permanent - other,Third Party Payments,7003008835,15/03/2023,3038.00
Buckinghamshire Council,Adults and Health,Ambient Support Limited,1000171,Res care-permanent - other,Third Party Payments,7003008835,15/03/2023,3038.00
Buckinghamshire Council,Adults and Health,Ambient Support Limited,1000171,Res care-permanent - other,Third Party Payments,7003008835,15/03/2023,3038.00
Buckinghamshire Council,Adults and Health,Ambient Support Limited,1000171,Res-Perm EMI-Other - Exp,Third Party Payments,7003008835,15/03/2023,3417.12
Buckinghamshire Council,Adults and Health,Ambient Support Limited,1000171,Res-Perm EMI-Other - Exp,Third Party Payments,7003008835,15/03/2023,3417.12
Buckinghamshire Council,Adults and Health,Ambient Support Limited,1000171,Res-Perm EMI-Other - Exp,Third Party Payments,7003008835,15/03/2023,3417.12
Buckinghamshire Council,Adults and Health,Ambient Support Limited,1000171,Res-Perm EMI-Other - Exp,Third Party Payments,7003008835,15/03/2023,3417.12
Buckinghamshire Council,Adults and Health,Ambient Support Limited,1000171,Res-Perm EMI-Other - Exp,Third Party Payments,7003008835,15/03/2023,3417.12
Buckinghamshire Council,Adults and Health,Ambient Support Limited,1000171,Res-Perm EMI-Other - Exp,Third Party Payments,7003008835,15/03/2023,3417.12
Buckinghamshire Council,Adults and Health,Ambient Support Limited,1000171,Res-Perm EMI-Other - Exp,Third Party Payments,7003008835,15/03/2023,3417.12
Buckinghamshire Council,Adults and Health,Ambient Support Limited,1000171,Res-Perm EMI-Other - Exp,Third Party Payments,7003008835,15/03/2023,3417.12
Buckinghamshire Council,Adults and Health,Ambient Support Limited,1000171,Res-Perm EMI-Other - Exp,Third Party Payments,7003008835,15/03/2023,3417.12
Buckinghamshire Council,Adults and Health,Ambient Support Limited,1000171,Res-Perm EMI-Other - Exp,Third Party Payments,7003008835,15/03/2023,3417.12
Buckinghamshire Council,Adults and Health,Ambient Support Limited,1000171,Res-Perm EMI-Other - Exp,Third Party Payments,7003008835,15/03/2023,3417.12
Buckinghamshire Council,Adults and Health,Ambient Support Limited,1000171,Res-Perm EMI-Other - Exp,Third Party Payments,7003008835,15/03/2023,3417.12
Buckinghamshire Council,Adults and Health,Ambient Support Limited,1000171,Res-Perm EMI-Other - Exp,Third Party Payments,7003008835,15/03/2023,3417.12
Buckinghamshire Council,Adults and Health,Ambient Support Limited,1000171,Res-Perm EMI-Other - Exp,Third Party Payments,7003008835,15/03/2023,3417.12
Buckinghamshire Council,Adults and Health,Ambient Support Limited,1000171,Res-Perm EMI-Other - Exp,Third Party Payments,7003008835,15/03/2023,3417.12
Buckinghamshire Council,Adults and Health,Ambient Support Limited,1000171,Res-Perm EMI-Other - Exp,Third Party Payments,7003008835,15/03/2023,244.08
Buckinghamshire Council,Adults and Health,Ambient Support Limited,1000171,Res-Perm EMI-Other - Exp,Third Party Payments,7003008835,15/03/2023,3417.12
Buckinghamshire Council,Adults and Health,Ambient Support Limited,1000171,Res-Perm EMI-Other - Exp,Third Party Payments,7003008835,15/03/2023,3417.12
Buckinghamshire Council,Adults and Health,Ambient Support Limited,1000171,Res care-permanent - other,Third Party Payments,7003008835,15/03/2023,542.50
Buckinghamshire Council,Adults and Health,Ambient Support Limited,1000171,Res care-permanent - other,Third Party Payments,7003008835,15/03/2023,1193.50
Buckinghamshire Council,Adults and Health,Ambient Support Limited,1000171,Res care-permanent - other,Third Party Payments,7003008835,15/03/2023,1302.00
Buckinghamshire Council,Adults and Health,Ambient Support Limited,1000171,Res care-permanent - other,Third Party Payments,7003008835,15/03/2023,542.50
Buckinghamshire Council,Adults and Health,Ambient Support Limited,1000171,Res care-permanent - other,Third Party Payments,7003008835,15/03/2023,1193.50
Buckinghamshire Council,Adults and Health,Ambient Support Limited,1000171,Res care-permanent - other,Third Party Payments,7003008835,15/03/2023,1302.00
Buckinghamshire Council,Adults and Health,Ambient Support Limited,1000171,Res care-permanent - other,Third Party Payments,7003008835,15/03/2023,542.50
Buckinghamshire Council,Adults and Health,Ambient Support Limited,1000171,Res care-permanent - other,Third Party Payments,7003008835,15/03/2023,1193.50
Buckinghamshire Council,Adults and Health,Ambient Support Limited,1000171,Res care-permanent - other,Third Party Payments,7003008835,15/03/2023,1302.00
Buckinghamshire Council,Adults and Health,Ambient Support Limited,1000171,Res care-permanent - other,Third Party Payments,7003008835,15/03/2023,542.50
Buckinghamshire Council,Adults and Health,Ambient Support Limited,1000171,Res care-permanent - other,Third Party Payments,7003008835,15/03/2023,1193.50
Buckinghamshire Council,Adults and Health,Ambient Support Limited,1000171,Res care-permanent - other,Third Party Payments,7003008835,15/03/2023,1302.00
Buckinghamshire Council,Adults and Health,Ambient Support Limited,1000171,Res care-permanent - other,Third Party Payments,7003008835,15/03/2023,542.50
Buckinghamshire Council,Adults and Health,Ambient Support Limited,1000171,Res care-permanent - other,Third Party Payments,7003008835,15/03/2023,1193.50
Buckinghamshire Council,Adults and Health,Ambient Support Limited,1000171,Res care-permanent - other,Third Party Payments,7003008835,15/03/2023,1302.00
Buckinghamshire Council,Adults and Health,Ambient Support Limited,1000171,Res care-permanent - other,Third Party Payments,7003008835,15/03/2023,542.50
Buckinghamshire Council,Adults and Health,Ambient Support Limited,1000171,Res care-permanent - other,Third Party Payments,7003008835,15/03/2023,1193.50
Buckinghamshire Council,Adults and Health,Ambient Support Limited,1000171,Res care-permanent - other,Third Party Payments,7003008835,15/03/2023,1302.00
Buckinghamshire Council,Adults and Health,Ambient Support Limited,1000171,Res care-permanent - other,Third Party Payments,7003008835,15/03/2023,1302.00
Buckinghamshire Council,Adults and Health,Ambient Support Limited,1000171,Res care-permanent - other,Third Party Payments,7003008835,15/03/2023,1844.50
Buckinghamshire Council,Adults and Health,Ambient Support Limited,1000171,Res-Perm EMI-Other - Exp,Third Party Payments,7003008835,15/03/2023,3417.12
Buckinghamshire Council,Adults and Health,Ambient Support Limited,1000171,Res-Perm EMI-Other - Exp,Third Party Payments,7003008835,15/03/2023,3417.12
Buckinghamshire Council,Adults and Health,Ambient Support Limited,1000171,Res-Perm EMI-Other - Exp,Third Party Payments,7003008835,15/03/2023,3417.12
Buckinghamshire Council,Adults and Health,Ambient Support Limited,1000171,Res-Perm EMI-Other - Exp,Third Party Payments,7003008835,15/03/2023,3417.12
Buckinghamshire Council,Adults and Health,Ambient Support Limited,1000171,Res care-permanent - other,Third Party Payments,7003008835,15/03/2023,542.50
Buckinghamshire Council,Adults and Health,Ambient Support Limited,1000171,Res care-permanent - other,Third Party Payments,7003008835,15/03/2023,1193.50
Buckinghamshire Council,Adults and Health,Ambient Support Limited,1000171,Res care-permanent - other,Third Party Payments,7003008835,15/03/2023,1302.00
Buckinghamshire Council,Adults and Health,Ambient Support Limited,1000171,Res-Perm EMI-Other - Exp,Third Party Payments,7003008835,15/03/2023,3417.12
Buckinghamshire Council,Adults and Health,Ambient Support Limited,1000171,Res-Perm EMI-Other - Exp,Third Party Payments,7003008835,15/03/2023,3417.12
Buckinghamshire Council,Adults and Health,Ambient Support Limited,1000171,Res-Perm EMI-Other - Exp,Third Party Payments,7003008835,15/03/2023,3417.12
Buckinghamshire Council,Adults and Health,Ambient Support Limited,1000171,Res-Perm EMI-Other - Exp,Third Party Payments,7003008835,15/03/2023,2562.84
Buckinghamshire Council,Adults and Health,Ambient Support Limited,1000171,Res care-permanent - other,Third Party Payments,7003008835,15/03/2023,542.50
Buckinghamshire Council,Adults and Health,Ambient Support Limited,1000171,Res care-permanent - other,Third Party Payments,7003008835,15/03/2023,1193.50
Buckinghamshire Council,Adults and Health,Ambient Support Limited,1000171,Res care-permanent - other,Third Party Payments,7003008835,15/03/2023,1302.00
Buckinghamshire Council,Adults and Health,Ambient Support Limited,1000171,Res care-permanent - other,Third Party Payments,7003008835,15/03/2023,542.50
Buckinghamshire Council,Adults and Health,Ambient Support Limited,1000171,Res care-permanent - other,Third Party Payments,7003008835,15/03/2023,976.50
Buckinghamshire Council,Adults and Health,Ambient Support Limited,1000171,Res care-permanent - other,Third Party Payments,7003008835,15/03/2023,1193.50
Buckinghamshire Council,Adults and Health,Ambient Support Limited,1000171,Res care-permanent - other,Third Party Payments,7003008835,15/03/2023,542.50
Buckinghamshire Council,Adults and Health,Ambient Support Limited,1000171,Res care-permanent - other,Third Party Payments,7003008835,15/03/2023,1193.50
Buckinghamshire Council,Adults and Health,Ambient Support Limited,1000171,Res care-permanent - other,Third Party Payments,7003008835,15/03/2023,1302.00
Buckinghamshire Council,Adults and Health,Ambient Support Limited,1000171,Res-Perm EMI-Other - Exp,Third Party Payments,7003008835,15/03/2023,3417.12
Buckinghamshire Council,Adults and Health,Ambient Support Limited,1000171,Res-Perm EMI-Other - Exp,Third Party Payments,7003008835,15/03/2023,3417.12
Buckinghamshire Council,Adults and Health,Ambient Support Limited,1000171,Res-Perm EMI-Other - Exp,Third Party Payments,7003008835,15/03/2023,3417.12
Buckinghamshire Council,Adults and Health,Ambient Support Limited,1000171,Res-Perm EMI-Other - Exp,Third Party Payments,7003008835,15/03/2023,3417.12
Buckinghamshire Council,Adults and Health,Ambient Support Limited,1000171,Res-Perm EMI-Other - Exp,Third Party Payments,7003008835,15/03/2023,3417.12
Buckinghamshire Council,Adults and Health,Ambient Support Limited,1000171,Res-Perm EMI-Other - Exp,Third Party Payments,7003008835,15/03/2023,3417.12
Buckinghamshire Council,Adults and Health,Ambient Support Limited,1000171,Res-Perm EMI-Other - Exp,Third Party Payments,7003008835,15/03/2023,3417.12
Buckinghamshire Council,Adults and Health,Ambient Support Limited,1000171,Res-Perm EMI-Other - Exp,Third Party Payments,7003008835,15/03/2023,3417.12
Buckinghamshire Council,Adults and Health,Ambient Support Limited,1000171,Res-Perm EMI-Other - Exp,Third Party Payments,7003008835,15/03/2023,3417.12
Buckinghamshire Council,Adults and Health,Ambient Support Limited,1000171,Res-Perm EMI-Other - Exp,Third Party Payments,7003008835,15/03/2023,3417.12
Buckinghamshire Council,Adults and Health,Ambient Support Limited,1000171,Res-Perm EMI-Other - Exp,Third Party Payments,7003008835,15/03/2023,3417.12
Buckinghamshire Council,Adults and Health,Ambient Support Limited,1000171,Res-Perm EMI-Other - Exp,Third Party Payments,7003008835,15/03/2023,3417.12
Buckinghamshire Council,Adults and Health,Ambient Support Limited,1000171,Res-Perm EMI-Other - Exp,Third Party Payments,7003008835,15/03/2023,3417.12
Buckinghamshire Council,Adults and Health,Ambient Support Limited,1000171,Res-Perm EMI-Other - Exp,Third Party Payments,7003008835,15/03/2023,3417.12
Buckinghamshire Council,Adults and Health,Ambient Support Limited,1000171,Res-Perm EMI-Other - Exp,Third Party Payments,7003008835,15/03/2023,3417.12
Buckinghamshire Council,Adults and Health,Ambient Support Limited,1000171,Res-Perm EMI-Other - Exp,Third Party Payments,7003008835,15/03/2023,366.12
Buckinghamshire Council,Adults and Health,Ambient Support Limited,1000171,Res-Perm EMI-Other - Exp,Third Party Payments,7003008835,15/03/2023,1342.44
Buckinghamshire Council,Adults and Health,Ambient Support Limited,1000171,Res-Perm EMI-Other - Exp,Third Party Payments,7003008835,15/03/2023,3417.12
Buckinghamshire Council,Adults and Health,Ambient Support Limited,1000171,Res care-permanent - other,Third Party Payments,7003008835,15/03/2023,2604.00
Buckinghamshire Council,Adults and Health,Ambient Support Limited,1000171,Res care-permanent - other,Third Party Payments,7003008835,15/03/2023,2604.00
Buckinghamshire Council,Adults and Health,Ambient Support Limited,1000171,Res care-permanent - other,Third Party Payments,7003008835,15/03/2023,2604.00
Buckinghamshire Council,Adults and Health,Ambient Support Limited,1000171,Res care-permanent - other,Third Party Payments,7003008835,15/03/2023,542.50
Buckinghamshire Council,Adults and Health,Ambient Support Limited,1000171,Res care-permanent - other,Third Party Payments,7003008835,15/03/2023,2604.00
Buckinghamshire Council,Adults and Health,Ambient Support Limited,1000171,Res care-permanent - other,Third Party Payments,7003008835,15/03/2023,2604.00
Buckinghamshire Council,Adults and Health,Ambient Support Limited,1000171,Res care-permanent - other,Third Party Payments,7003008835,15/03/2023,2604.00
Buckinghamshire Council,Adults and Health,Ambient Support Limited,1000171,Res care-permanent - other,Third Party Payments,7003008835,15/03/2023,1193.50
Buckinghamshire Council,Adults and Health,Ambient Support Limited,1000171,Res care-permanent - other,Third Party Payments,7003008835,15/03/2023,1844.50
Buckinghamshire Council,Adults and Health,Ambient Support Limited,1000171,Res-Perm EMI-Other - Exp,Third Party Payments,7003008835,15/03/2023,3417.12
Buckinghamshire Council,Adults and Health,Ambient Support Limited,1000171,Res-Perm EMI-Other - Exp,Third Party Payments,7003008835,15/03/2023,3417.12
Buckinghamshire Council,Adults and Health,Ambient Support Limited,1000171,Res-Perm EMI-Other - Exp,Third Party Payments,7003008835,15/03/2023,3417.12
Buckinghamshire Council,Adults and Health,Ambient Support Limited,1000171,Res-Perm EMI-Other - Exp,Third Party Payments,7003008835,15/03/2023,1830.60
Buckinghamshire Council,Adults and Health,Ambient Support Limited,1000171,Res care-permanent - other,Third Party Payments,7003008835,15/03/2023,2604.00
Buckinghamshire Council,Adults and Health,Ambient Support Limited,1000171,Res-Perm EMI-Other - Exp,Third Party Payments,7003008835,15/03/2023,3417.12
Buckinghamshire Council,Adults and Health,Ambient Support Limited,1000171,Res-Perm EMI-Other - Exp,Third Party Payments,7003008835,15/03/2023,3417.12
Buckinghamshire Council,Adults and Health,Ambient Support Limited,1000171,Res-Perm EMI-Other - Exp,Third Party Payments,7003008835,15/03/2023,3417.12
Buckinghamshire Council,Adults and Health,Ambient Support Limited,1000171,Res care-permanent - other,Third Party Payments,7003008835,15/03/2023,2604.00
Buckinghamshire Council,Adults and Health,Ambient Support Limited,1000171,Res care-permanent - other,Third Party Payments,7003008835,15/03/2023,2604.00
Buckinghamshire Council,Adults and Health,Ambient Support Limited,1000171,Res-Perm EMI-Other - Exp,Third Party Payments,7003008835,15/03/2023,610.20
Buckinghamshire Council,Adults and Health,Ambient Support Limited,1000171,Res-Perm EMI-Other - Exp,Third Party Payments,7003008838,15/03/2023,4882.20
Buckinghamshire Council,Adults and Health,Ambient Support Limited,1000171,Res care-permanent - other,Third Party Payments,7003008838,15/03/2023,3700.00
Buckinghamshire Council,Adults and Health,Ambient Support Limited,1000171,Res-Perm EMI-Other - Exp,Third Party Payments,7003008838,15/03/2023,-711.66
Buckinghamshire Council,Adults and Health,Ambient Support Limited,1000171,Res-Perm EMI-Other - Exp,Third Party Payments,7003008838,15/03/2023,-2134.98
Buckinghamshire Council,Adults and Health,Ambient Support Limited,1000171,Res-Perm EMI-Other - Exp,Third Party Payments,7003008838,15/03/2023,-711.66
Buckinghamshire Council,Adults and Health,Ambient Support Limited,1000171,Res-Perm EMI-Other - Exp,Third Party Payments,7003008838,15/03/2023,-711.66
Buckinghamshire Council,Adults and Health,Ambient Support Limited,1000171,Res-Perm EMI-Other - Exp,Third Party Payments,7003008838,15/03/2023,-711.66
Buckinghamshire Council,Adults and Health,Ambient Support Limited,1000171,Res-Perm EMI-Other - Exp,Third Party Payments,7003008838,15/03/2023,-2134.98
Buckinghamshire Council,Adults and Health,Ambient Support Limited,1000171,Res-Perm EMI-Other - Exp,Third Party Payments,7003008838,15/03/2023,-2134.98
Buckinghamshire Council,Adults and Health,Ambient Support Limited,1000171,Res-Perm EMI-Other - Exp,Third Party Payments,7003008838,15/03/2023,-2134.98
Buckinghamshire Council,Adults and Health,Ambient Support Limited,1000171,Res-Perm EMI-Other - Exp,Third Party Payments,7003008838,15/03/2023,-711.66
Buckinghamshire Council,Adults and Health,Ambient Support Limited,1000171,Res-Perm EMI-Other - Exp,Third Party Payments,7003008838,15/03/2023,-711.66
Buckinghamshire Council,Adults and Health,Ambient Support Limited,1000171,Res-Perm EMI-Other - Exp,Third Party Payments,7003008838,15/03/2023,-2134.98
Buckinghamshire Council,Adults and Health,Ambient Support Limited,1000171,Res-Perm EMI-Other - Exp,Third Party Payments,7003008838,15/03/2023,-2134.98
Buckinghamshire Council,Adults and Health,Ambient Support Limited,1000171,Res care-permanent - other,Third Party Payments,7003008838,15/03/2023,-2532.00
Buckinghamshire Council,Adults and Health,Ambient Support Limited,1000171,Res care-permanent - other,Third Party Payments,7003008838,15/03/2023,-2532.00
Buckinghamshire Council,Adults and Health,Ambient Support Limited,1000171,Res care-permanent - other,Third Party Payments,7003008838,15/03/2023,-2532.00
Buckinghamshire Council,Adults and Health,Ambient Support Limited,1000171,Res care-permanent - other,Third Party Payments,7003008838,15/03/2023,-2532.00
Buckinghamshire Council,Adults and Health,Ambient Support Limited,1000171,Res-Perm EMI-Other - Exp,Third Party Payments,7003008838,15/03/2023,-711.66
Buckinghamshire Council,Adults and Health,Ambient Support Limited,1000171,Res-Perm EMI-Other - Exp,Third Party Payments,7003008838,15/03/2023,-711.66
Buckinghamshire Council,Adults and Health,Ambient Support Limited,1000171,Res-Perm EMI-Other - Exp,Third Party Payments,7003008838,15/03/2023,-711.66
Buckinghamshire Council,Adults and Health,Ambient Support Limited,1000171,Res-Perm EMI-Other - Exp,Third Party Payments,7003008838,15/03/2023,-711.66
Buckinghamshire Council,Adults and Health,Ambient Support Limited,1000171,Res-Perm EMI-Other - Exp,Third Party Payments,7003008838,15/03/2023,-711.66
Buckinghamshire Council,Adults and Health,Ambient Support Limited,1000171,Res-Perm EMI-Other - Exp,Third Party Payments,7003008838,15/03/2023,-711.66
Buckinghamshire Council,Adults and Health,Ambient Support Limited,1000171,Res-Perm EMI-Other - Exp,Third Party Payments,7003008838,15/03/2023,-711.66
Buckinghamshire Council,Adults and Health,Ambient Support Limited,1000171,Res-Perm EMI-Other - Exp,Third Party Payments,7003008838,15/03/2023,-711.66
Buckinghamshire Council,Adults and Health,Ambient Support Limited,1000171,Res-Perm EMI-Other - Exp,Third Party Payments,7003008838,15/03/2023,-711.66
Buckinghamshire Council,Adults and Health,Ambient Support Limited,1000171,Res-Perm EMI-Other - Exp,Third Party Payments,7003008838,15/03/2023,-711.66
Buckinghamshire Council,Adults and Health,Ambient Support Limited,1000171,Res-Perm EMI-Other - Exp,Third Party Payments,7003008838,15/03/2023,-711.66
Buckinghamshire Council,Adults and Health,Ambient Support Limited,1000171,Res-Perm EMI-Other - Exp,Third Party Payments,7003008838,15/03/2023,-711.66
Buckinghamshire Council,Adults and Health,Ambient Support Limited,1000171,Res-Perm EMI-Other - Exp,Third Party Payments,7003008838,15/03/2023,-2134.98
Buckinghamshire Council,Adults and Health,Ambient Support Limited,1000171,Res-Perm EMI-Other - Exp,Third Party Payments,7003008838,15/03/2023,-2134.98
Buckinghamshire Council,Adults and Health,Ambient Support Limited,1000171,Res-Perm EMI-Other - Exp,Third Party Payments,7003008838,15/03/2023,-2134.98
Buckinghamshire Council,Adults and Health,Ambient Support Limited,1000171,Res-Perm EMI-Other - Exp,Third Party Payments,7003008838,15/03/2023,-2134.98
Buckinghamshire Council,Adults and Health,Ambient Support Limited,1000171,Res-Perm EMI-Other - Exp,Third Party Payments,7003008838,15/03/2023,-2134.98
Buckinghamshire Council,Adults and Health,Ambient Support Limited,1000171,Res-Perm EMI-Other - Exp,Third Party Payments,7003008838,15/03/2023,-2134.98
Buckinghamshire Council,Adults and Health,Ambient Support Limited,1000171,Res-Perm EMI-Other - Exp,Third Party Payments,7003008838,15/03/2023,-2134.98
Buckinghamshire Council,Adults and Health,Ambient Support Limited,1000171,Res-Perm EMI-Other - Exp,Third Party Payments,7003008838,15/03/2023,-2134.98
Buckinghamshire Council,Adults and Health,Ambient Support Limited,1000171,Res-Perm EMI-Other - Exp,Third Party Payments,7003008838,15/03/2023,-2134.98
Buckinghamshire Council,Adults and Health,Ambient Support Limited,1000171,Res-Perm EMI-Other - Exp,Third Party Payments,7003008838,15/03/2023,-2134.98
Buckinghamshire Council,Adults and Health,Ambient Support Limited,1000171,Res-Perm EMI-Other - Exp,Third Party Payments,7003008838,15/03/2023,-2134.98
Buckinghamshire Council,Adults and Health,Ambient Support Limited,1000171,Res-Perm EMI-Other - Exp,Third Party Payments,7003008838,15/03/2023,-2134.98
Buckinghamshire Council,Adults and Health,Ambient Support Limited,1000171,Res care-permanent - other,Third Party Payments,7003008838,15/03/2023,-2532.00
Buckinghamshire Council,Adults and Health,Ambient Support Limited,1000171,Res care-permanent - other,Third Party Payments,7003008838,15/03/2023,-2532.00
Buckinghamshire Council,Adults and Health,Ambient Support Limited,1000171,Res care-permanent - other,Third Party Payments,7003008838,15/03/2023,-2532.00
Buckinghamshire Council,Adults and Health,Ambient Support Limited,1000171,Res-Perm EMI-Other - Exp,Third Party Payments,7003008838,15/03/2023,-711.66
Buckinghamshire Council,Adults and Health,Ambient Support Limited,1000171,Res-Perm EMI-Other - Exp,Third Party Payments,7003008838,15/03/2023,-2134.98
Buckinghamshire Council,Adults and Health,Ambient Support Limited,1000171,Res-Perm EMI-Other - Exp,Third Party Payments,7003008838,15/03/2023,-711.66
Buckinghamshire Council,Adults and Health,Ambient Support Limited,1000171,Res-Perm EMI-Other - Exp,Third Party Payments,7003008838,15/03/2023,-2134.98
Buckinghamshire Council,Adults and Health,Ambient Support Limited,1000171,Res-Perm EMI-Other - Exp,Third Party Payments,7003008838,15/03/2023,-711.66
Buckinghamshire Council,Adults and Health,Ambient Support Limited,1000171,Res-Perm EMI-Other - Exp,Third Party Payments,7003008838,15/03/2023,-2134.98
Buckinghamshire Council,Adults and Health,Ambient Support Limited,1000171,Res-Perm EMI-Other - Exp,Third Party Payments,7003008838,15/03/2023,732.24
Buckinghamshire Council,Adults and Health,Ambient Support Limited,1000171,Res-Perm EMI-Other - Exp,Third Party Payments,7003008838,15/03/2023,2196.72
Buckinghamshire Council,Adults and Health,Ambient Support Limited,1000171,Res-Perm EMI-Other - Exp,Third Party Payments,7003008838,15/03/2023,732.24
Buckinghamshire Council,Adults and Health,Ambient Support Limited,1000171,Res-Perm EMI-Other - Exp,Third Party Payments,7003008838,15/03/2023,2196.72
Buckinghamshire Council,Adults and Health,Ambient Support Limited,1000171,Res-Perm EMI-Other - Exp,Third Party Payments,7003008838,15/03/2023,732.24
Buckinghamshire Council,Adults and Health,Ambient Support Limited,1000171,Res-Perm EMI-Other - Exp,Third Party Payments,7003008838,15/03/2023,2196.72
Buckinghamshire Council,Adults and Health,Ambient Support Limited,1000171,Res-Perm EMI-Other - Exp,Third Party Payments,7003008838,15/03/2023,732.24
Buckinghamshire Council,Adults and Health,Ambient Support Limited,1000171,Res-Perm EMI-Other - Exp,Third Party Payments,7003008838,15/03/2023,2196.72
Buckinghamshire Council,Adults and Health,Ambient Support Limited,1000171,Res-Perm EMI-Other - Exp,Third Party Payments,7003008838,15/03/2023,732.24
Buckinghamshire Council,Adults and Health,Ambient Support Limited,1000171,Res-Perm EMI-Other - Exp,Third Party Payments,7003008838,15/03/2023,2196.72
Buckinghamshire Council,Adults and Health,Ambient Support Limited,1000171,Res-Perm EMI-Other - Exp,Third Party Payments,7003008838,15/03/2023,732.24
Buckinghamshire Council,Adults and Health,Ambient Support Limited,1000171,Res-Perm EMI-Other - Exp,Third Party Payments,7003008838,15/03/2023,2196.72
Buckinghamshire Council,Adults and Health,Ambient Support Limited,1000171,Res-Perm EMI-Other - Exp,Third Party Payments,7003008838,15/03/2023,732.24
Buckinghamshire Council,Adults and Health,Ambient Support Limited,1000171,Res-Perm EMI-Other - Exp,Third Party Payments,7003008838,15/03/2023,2196.72
Buckinghamshire Council,Adults and Health,Ambient Support Limited,1000171,Res care-permanent - other,Third Party Payments,7003008838,15/03/2023,2604.00
